{"text_format":"1","workbook":"xlsx","n_sheets":3,"sheets":["Лист1","Лист2","Лист3"],"not_rendered":{"charts":0,"images":0,"macros":1,"external_links":0,"defined_names":0,"comments":0,"pivot_tables":0},"unopened":[],"bounds":{"document_bytes":16777216,"sheet_cells":100000,"rows_first":2000,"rows_last":500,"rows_between":2000,"halvings":0,"cell_chars":16384,"cell_head_chars":4096},"cells_cut":2,"cells_raw":0,"read":"whole","date_system":"1900"}

{"sheet":"Лист1","index":0,"n_rows":539,"n_cols":12,"rows_kept":539,"cut":false,"hidden":false,"merged":[]}
["<html><head>"]
["    <title>Интернет-магазин фирмы «Гамма» — швейная фурнитура и товары для рукоделия оптом (Москва).</title>"]
["    <meta content=\"text/html; charset=windows-1251\" http-equiv=\"Content-Type\">"]
["    <meta content=\"width=device-width, initial-scale=1.0\" name=\"viewport\">"]
["    <meta name=\"keywords\" content=\"интернет магазин гамма, фирма гамма, швейные машины micron, вязальные машины оптом, швейная фурнитура оптом,"]
["фурнитура швейная москва, пряжа оптом, стразы оптом, бисер оптом, ткани оптом, гамма нитки, товары для шитья, пяльца оптом, нитки для вязания опт,"]
["мулине гамма, флизелин опт, пуговицы оптом (Москва).\">"]
["    <meta name=\"description\" content=\"Оптовый интернет-магазин фирмы «Гамма» - каталог товаров (Москва).\">"]
[null,"<meta http-equiv=\"Pragma\" content=\"no-cache\">"]
[null,"<meta name=\"verify-v1\" content=\"3WEgHXTI8LqlYLN9jOfuydpunqWwTHj0UfidgTTWnvc=\">"]
[null,"<meta name=\"yandex-verification\" content=\"6604683e53ef7fe3\">      "]
["    <link rel=\"stylesheet\" type=\"text/css\" href=\"/css/style-1.0.7.css?v=5\">"]
["    <link rel=\"stylesheet\" type=\"text/css\" media=\"screen and (min-width: 768px) and (max-width: 1023px)\" href=\"/css/style-768.css\">"]
["    <!-- <link rel=\"stylesheet\" type=\"text/css\" media=\"screen and (min-width: 600px) and (max-width: 767px)\" href=\"/css/style-600.css\">-->"]
["    <link rel=\"stylesheet\" type=\"text/css\" media=\"screen and (min-width: 640px) and (max-width: 767px)\" href=\"/css/style-480.css\">"]
["    <link rel=\"stylesheet\" type=\"text/css\" media=\"screen and (max-width: 639px)\" href=\"/css/style-320.css\">"]
["    <!--[if lte IE 8]>"]
["    <link rel=\"stylesheet\" type=\"text/css\" href=\"/css/fix-ie8.css\" />"]
["    <![endif]-->"]
["    <!--[if lte IE 7]>"]
["    <link rel=\"stylesheet\" type=\"text/css\" href=\"/css/fix-ie7.css\" />"]
["    <![endif]-->"]
["    <link rel=\"stylesheet\" type=\"text/css\" href=\"/css/msk_style.css\">"]
["    <link rel=\"SHORTCUT ICON\" href=\"/favicon.ico\">"]
["    <script type=\"text/javascript\" async=\"\" src=\"http://www.google-analytics.com/ga.js\"></script><script type=\"text/javascript\" src=\"/jscripts/jquery-1.9.1.js\"></script>"]
["    <!--[if (gte IE 6)&(lte IE 8)]>"]
["  ",null,"<script type=\"text/javascript\" src=\"/jscripts/selectivizr.js\"></script>"]
[null,"<![endif]-->"]
["    <script type=\"text/javascript\" src=\"/jscripts/jquery-migrate-1.1.1.js\"></script>"]
["    <script type=\"text/javascript\" src=\"/jscripts/jquery.selectbox-0.2.js\"></script>"]
["    <script type=\"text/javascript\" src=\"/jscripts/jquery.ezmark.min.js\"></script>"]
["    <script type=\"text/javascript\" src=\"/jscripts/scroll.min.js\"></script>"]
["    <script type=\"text/javascript\" src=\"/jscripts/theme.js\"></script>"]
["    <script type=\"text/javascript\" src=\"/jscripts/main-1.0.7.js?v=17\"></script>"]
["    <script language=\"javascript\" type=\"text/javascript\" src=\"/jscripts/chat.js\"></script><script>var complain_enable=1;</script><script>var money=true;</script>"]
["  </head>"]
["    <body>"]
["    <div id=\"page-wrapper\"><div id=\"page\">"]
["      <a id=\"gotop\" class=\"scrollTop\" href=\"#\" style=\"left: 471px; display: none; opacity: 1;\"></a>"]
["  "]
["<script type=\"text/javascript\">"]
[]
["  var _gaq = _gaq || [];"]
["  _gaq.push(['_setAccount', 'UA-1831001-13']);"]
[" _gaq.push(['_addOrganic', 'http://go.mail.ru', 'q']);"]
["  _gaq.push(['_trackPageview']);"]
["  /*try { analitics_transaction(); } catch(zzzzz) {};*/"]
[]
["  (function() {"]
["    var ga = document.createElement('script'); ga.type = 'text/javascript'; ga.async = true;"]
["    ga.src = ('https:' == document.location.protocol ? 'https://ssl' : 'http://www') + '.google-analytics.com/ga.js';"]
["    var s = document.getElementsByTagName('script')[0]; s.parentNode.insertBefore(ga, s);"]
["  })();"]
[]
["</script>"]
[]
["   <div id=\"navigation\">"]
["        <ul id=\"main-menu\" class=\"links inline clearfix\">"]
["          <li><a class=\"link active\" href=\"/\">Каталог</a></li>"]
["          <li><a class=\"link\" href=\"/info/about/\">О компании</a></li>"]
["          <li><a class=\"link\" href=\"/info/rules/\">Условия работы</a></li>"]
["          <li><a class=\"link\" href=\"/info/feedback/\">Контакты Москва</a></li>"]
["          <li><a class=\"link\" href=\"/info/help/\">Справка</a></li>"]
["         <!--  <li><a class=\"link\" style=\"background-color:#FFFFAF;color:black;\" href=\"/action/\">День всех влюбленных</a></li> -->"]
["         "]
["         <li><a href=\"#\" class=\"thematic\">Тематические товары <img src=\"/i/arrowdown.jpg\" alt=\"\"></a><ul><li><a class=\"link\" href=\"/action/11/\">8 июля - День семьи, любви и верности</a></li><li><a class=\"link\" href=\"/action/33/\">24 июля – День флориста</a></li><li><a class=\"link\" href=\"/action/34/\">5 августа – День лоскутного шитья </a></li><li><a class=\"link\" href=\"/action/35/\">20 августа – День моделиста</a></li><li><a class=\"link\" href=\"/action/12/\">1 сентября - День знаний</a></li><li><a class=\"link\" href=\"/action/13/\">12 сентября - День вязания крючком</a></li></ul></li>          <li id=\"mclasslink\"><a class=\"link\" href=\"http://firma-gamma.ru/client/mclass/\" target=\"_blank\">Мастер-классы (101) <sup style=\"color:#0099ff\">+3NEW</sup></a></li>"]
["         </ul>"]
["         <script src=\"http://www.firma-gamma.ru/ajax/mclasses.php\"></script>"]
["      </div>"]
[]
[]
["     <div id=\"header\"><div class=\"section clearfix\">"]
["        <div id=\"logo-and-name\"><div class=\"clearfix\">"]
["          <a id=\"logo\" rel=\"home\" title=\"Home\" href=\"/\">"]
["            <img alt=\"Home\" src=\"/i/logo.png\">"]
["          </a>"]
[]
["          <a href=\"/\" id=\"site-name\"><img alt=\"Home\" src=\"/i/msk_gamma_s.png\"></a>"]
["        </div></div>"]
[]
[]
["<div id=\"ulogined\" class=\"uwarn-win\">Вы вошли под пользователем \"mg715652\" <form action=\"/\" method=\"post\"><input type=\"hidden\" name=\"uact\" value=\"logout\"><input type=\"submit\" value=\"Выход\"></form></div>"]
[null,"</div></div>"]
["      <div id=\"search\"><div class=\"section clearfix\">"]
["        <div class=\"base-info\">"]
["          <p>База данных обновлена: 2016-07-06 20:16 <span style=\"cursor:pointer;\" title=\"Время московское\">MSK</span></p>"]
["        </div>"]
[]
["        <form id=\"search-form\" action=\"/search/\">"]
["          <div class=\"form-item form-type-textfield form-item-title\">"]
["            <input class=\"form-text\" type=\"text\" maxlength=\"60\" size=\"60\" value=\"Поиск товара по названию\" name=\"query\" onfocus=\"if (this.value == 'Поиск товара по названию') this.value = '';\" onblur=\"if (this.value == '') this.value = 'Поиск товара по названию';\">"]
["          </div>"]
[]
["          <div class=\"form-item form-type-select form-item-type\">"]
["            <select class=\"form-select\" name=\"type\">"]
["              <option selected=\"selected\" value=\"all\">искать в названии</option>"]
["              <option value=\"noall\">искать в описании</option>"]
["            </select>"]
["          </div>"]
[]
["          <div class=\"form-actions form-wrapper\">"]
["            <input class=\"form-submit\" type=\"submit\" value=\"Поиск\">"]
["          </div>"]
["        </form>"]
["      </div>     "]
["      <div id=\"basket\"><div>Ваша корзина <a class=\"javalink\" onclick=\"$('#cart_container').toggle();return false;\">\"Без названия\"</a> пуста.</div></div>"]
["      </div>"]
["      "]
["      <div id=\"message\" style=\"width:100%;text-align:center;\"><a href=\"http://www.firma-gamma.ru/company/news/128/\" style=\"color:red;font-weight: bold;font-size: 15px;\">Посетите наши мастер-классы!</a></div>      <div id=\"main-wrapper\"><div id=\"main\" class=\"clearfix\">"]
["        <div id=\"sidebar-first\" class=\"column sidebar\"><div class=\"section\">"]
["      <div class=\"block\">"]
["      <ul>"]
[null,null,null,"<!--<div id=\"banner01\"><a href=\"http://www.firma-gamma.ru/client/specialsale/\">"]
[{"$cut":{"chars":32767,"head":"<img src=\"/i/podelki_iz_kartona.gif\"></a></div>--><li class=\"menubutton\"><div>Каталог</div><ul id=\"catalogmenu\" style=\"display: block;\"><li class=\"menu2\"><div>Товары для шитья и рукоделия</div></li><li class=\"menu1\"><div>Бисер, бусы, бижутерия</div><ul id=\"menuopen2904005262\"><li><a class=\"link\" id=\"opentree2664885252\" href=\"/opentree/2664885252\">    \"Zlatka\" для рукоделия</a></li><li><a class=\"link\" id=\"opentree18031937522\" href=\"/opentree/18031937522\">    \"Zlatka\" заколки</a></li><li><a class=\"link\" id=\"opentree18031914142\" href=\"/opentree/18031914142\">    \"Zlatka\" подвески</a></li><li><a class=\"link\" id=\"opentree18031953662\" href=\"/opentree/18031953662\">    \"Zlatka\" фурнитура</a></li><li><a class=\"link\" id=\"opentree12783397562\" href=\"/opentree/12783397562\">    Бисер  Япония \"TOHO\"</a></li><li><a class=\"link\" id=\"opentree1702331532\" href=\"/opentree/1702331532\">    Бисер \"Zlatka\" 100 г</a></li><li><a class=\"link\" id=\"opentree1311936412\" href=\"/opentree/1311936412\">    Бисер \"Zlatka\" 10х10 г</a></li><li><a class=\"link\" id=\"opentree25444083122\" href=\"/opentree/25444083122\">    Бисер \"Zlatka\" 500 г</a></li><li><a class=\"link\" id=\"opentree890444702\" href=\"/opentree/890444702\">    Бисер \"Zlatka\" в тубах  6х20 г</a></li><li><a class=\"link\" id=\"opentree1311937022\" href=\"/opentree/1311937022\">    Бисер Чехия</a></li><li><a class=\"link\" id=\"opentree21907711542\" href=\"/opentree/21907711542\">    Бисер Чехия \"GAMMA\"</a></li><li><a class=\"link\" id=\"opentree890447052\" href=\"/opentree/890447052\">    Бусины прочие</a></li><li><a class=\"link\" id=\"opentree456236521\" href=\"/opentree/456236521\">    Бусины стеклянные</a></li><li><a class=\"link\" id=\"opentree8830327952\" href=\"/opentree/8830327952\">    Бусины Чехия</a></li><li><a class=\"link\" id=\"opentree108149\" href=\"/opentree/108149\">    Для рукоделия и работы с бисером</a></li><li><a class=\"link\" id=\"opentree22565720952\" href=\"/opentree/22565720952\">    Лэмпворк Чехия</a></li><li><a class=\"link\" id=\"opentree1311970852\" href=\"/opentree/1311970852\">    Наборы с бисером и бусами</a></li><li><a class=\"link\" id=\"opentree21888003482\" href=\"/opentree/21888003482\">   \"FAYCRAFT\" для рукоделия</a></li><li><a class=\"link\" id=\"opentree26800622182\" href=\"/opentree/26800622182\">   Детская бижутерия</a></li></ul></li><li class=\"menu1\"><div>Для вышивания</div><ul id=\"menuopen1306610112\"><li><a class=\"link\" id=\"opentree1306540572\" href=\"/opentree/1306540572\">    \"DIMENSIONS\" наборы для вышивания</a></li><li><a class=\"link\" id=\"opentree2044990532\" href=\"/opentree/2044990532\">    \"Janlynn\" наборы для вышивания</a></li><li><a class=\"link\" id=\"opentree2624240452\" href=\"/opentree/2624240452\">    \"Lanarte\" наборы для вышивания</a></li><li><a class=\"link\" id=\"opentree2899822232\" href=\"/opentree/2899822232\">    \"Pinn\" наборы для вышивания</a></li><li><a class=\"link\" id=\"opentree3249413352\" href=\"/opentree/3249413352\">    \"Rico Design\" наборы для вышивания</a></li><li><a class=\"link\" id=\"opentree32845135792\" href=\"/opentree/32845135792\">    \"RIOLIS\" наборы для вышивания</a></li><li><a class=\"link\" id=\"opentree2044987822\" href=\"/opentree/2044987822\">    \"Vervaco\" наборы для вышивания</a></li><li><a class=\"link\" id=\"opentree2131698872\" href=\"/opentree/2131698872\">    \"Алиса\" наборы для вышивания</a></li><li><a class=\"link\" id=\"opentree1306865932\" href=\"/opentree/1306865932\">    \"ИН\" наборы для вышивания</a></li><li><a class=\"link\" id=\"opentree1309284502\" href=\"/opentree/1309284502\">    \"М.П.Студия\" наборы для вышивания</a></li><li><a class=\"link\" id=\"opentree11791419412\" href=\"/opentree/11791419412\">    \"Нова Слобода\" наборы для вышивания</a></li><li><a class=\"link\" id=\"opentree11625852832\" href=\"/opentree/11625852832\">    \"Радуга бисера\" наборы для вышивания</a></li><li><a class=\"link\" id=\"opentree9770150352\" href=\"/opentree/9770150352\">    \"Чудесная Игла\" наборы для вышивания</a></li><li><a class=\"link\" id=\"opentree637488991\" href=\"/opentree/637488991\">    Канва</a></li><li><a class=\"link\" id=\"opentree2650416302\" href=\"/opentree/2650416302\">    Канва/ткань с рисунком</a></li><li><a class=\"link\" id=\"opentree27\" href="}}]
["больше не закупаемые на склад(помечены в названии кодом «СК»): коллекции"]
["пуговиц, марочная пряжа предыдущих лет, различная металлофурнитура  и"]
["другие товары, снятые с производства. Кроме того, в этом разделе"]
["находятся товары с незначительным браком(помечены в названии кодом «2-й"]
["сорт»).<br>"]
["Товары категории «Распродажа» продаются по более низким ценам,а в"]
["некоторых случаях объединяются в ценовые группы для удобства"]
["реализации(все товары - по одинаковой цене).  Приобретаемые товары этих"]
["категорий не подлежат дальнейшему возврату и обмену (кроме случаев"]
[{"$cut":{"chars":22129,"head":"получения товара на реализацию).</p><li class=\"menu1\"><div>Ароматерапия, свечи, мыловарение</div><ul id=\"menuopen9861055262ck\"><li><a class=\"link\" id=\"opentree80108ck\" href=\"/opentree/80108ck/\">   Изготовление свечей</a></li><li><a class=\"link\" id=\"opentree50501ck\" href=\"/opentree/50501ck/\">   Мыльная основа</a></li></ul></li><li class=\"menu1\"><div>Бисер, бусы, бижутерия</div><ul id=\"menuopen2904005262ck\"><li><a class=\"link\" id=\"opentree2664885252ck\" href=\"/opentree/2664885252ck/\">    \"Zlatka\" для рукоделия</a></li><li><a class=\"link\" id=\"opentree12783397562ck\" href=\"/opentree/12783397562ck/\">    Бисер  Япония \"TOHO\"</a></li><li><a class=\"link\" id=\"opentree1311937022ck\" href=\"/opentree/1311937022ck/\">    Бисер Чехия</a></li><li><a class=\"link\" id=\"opentree890447052ck\" href=\"/opentree/890447052ck/\">    Бусины прочие</a></li><li><a class=\"link\" id=\"opentree456236521ck\" href=\"/opentree/456236521ck/\">    Бусины стеклянные</a></li><li><a class=\"link\" id=\"opentree108149ck\" href=\"/opentree/108149ck/\">    Для рукоделия и работы с бисером</a></li><li><a class=\"link\" id=\"opentree22565720952ck\" href=\"/opentree/22565720952ck/\">    Лэмпворк Чехия</a></li></ul></li><li class=\"menu1\"><div>Бумага и бумажная продукция</div><ul id=\"menuopen9840081872ck\"><li><a class=\"link\" id=\"opentree9832634272ck\" href=\"/opentree/9832634272ck/\">   Блокноты, записные книжки</a></li><li><a class=\"link\" id=\"opentree9956433302ck\" href=\"/opentree/9956433302ck/\">   Бумага прочая</a></li><li><a class=\"link\" id=\"opentree9840248682ck\" href=\"/opentree/9840248682ck/\">   Цветная бумага, картон</a></li></ul></li><li class=\"menu1\"><div>Графические материалы, канцелярия</div><ul id=\"menuopen9878843292ck\"><li><a class=\"link\" id=\"opentree6678267942ck\" href=\"/opentree/6678267942ck/\">   Клей</a></li><li><a class=\"link\" id=\"opentree16561251152ck\" href=\"/opentree/16561251152ck/\">   Маркеры дизайнерские</a></li><li><a class=\"link\" id=\"opentree9839982312ck\" href=\"/opentree/9839982312ck/\">   Ручки</a></li></ul></li><li class=\"menu1\"><div>Для вышивания</div><ul id=\"menuopen1306610112ck\"><li><a class=\"link\" id=\"opentree3249413352ck\" href=\"/opentree/3249413352ck/\">    \"Rico Design\" наборы для вышивания</a></li><li><a class=\"link\" id=\"opentree32845135792ck\" href=\"/opentree/32845135792ck/\">    \"RIOLIS\" наборы для вышивания</a></li><li><a class=\"link\" id=\"opentree27ck\" href=\"/opentree/27ck/\">    Нитки вышивальные, мулине</a></li><li><a class=\"link\" id=\"opentree2921005562ck\" href=\"/opentree/2921005562ck/\">    Рамки, паспарту</a></li><li><a class=\"link\" id=\"opentree2650419532ck\" href=\"/opentree/2650419532ck/\">    Схемы для вышивания</a></li></ul></li><li class=\"menu1\"><div>Для вязания</div><ul id=\"menuopen9875363762ck\"><li><a class=\"link\" id=\"opentree305037611ck\" href=\"/opentree/305037611ck/\">    Инструменты для вязания</a></li><li><a class=\"link\" id=\"opentree1311898972ck\" href=\"/opentree/1311898972ck/\">    Крючки</a></li><li><a class=\"link\" id=\"opentree1311894072ck\" href=\"/opentree/1311894072ck/\">    Пряжа Adelia</a></li><li><a class=\"link\" id=\"opentree28531181ck\" href=\"/opentree/28531181ck/\">    Пряжа Alpina</a></li><li><a class=\"link\" id=\"opentree24727081ck\" href=\"/opentree/24727081ck/\">    Пряжа прочая</a></li></ul></li><li class=\"menu1\"><div>Для рукоделия</div><ul id=\"menuopen63386871ck\"><li><a class=\"link\" id=\"opentree26ck\" href=\"/opentree/26ck/\">    Булавки английские</a></li><li><a class=\"link\" id=\"opentree81ck\" href=\"/opentree/81ck/\">    Иглы ручные</a></li><li><a class=\"link\" id=\"opentree271057011ck\" href=\"/opentree/271057011ck/\">    Коробки для рукоделия</a></li><li><a class=\"link\" id=\"opentree156422841ck\" href=\"/opentree/156422841ck/\">    Лампы и лупы</a></li><li><a class=\"link\" id=\"opentree585391ck\" href=\"/opentree/585391ck/\">    Мел, карандаши, маркеры</a></li><li><a class=\"link\" id=\"opentree3220970762ck\" href=\"/opentree/3220970762ck/\">    Наборы для шитья</a></li><li><a class=\"link\" id=\"opentree82ck\" href=\"/opentree/82ck/\">    Ножницы \"GAMMA\"</a></li><li><a class=\"link\" id=\"opentree1310863302ck\" href=\"/opentree/1310863302ck/\">    Ножницы \"KONIG-PAUL\"</a></li><li><a class"}}]
[" <div>Кабинет покупателя</div>"]
[" <ul id=\"clientmenu\" class=\"level1\">"]
[" <li><div><a href=\"/cart/\">Ваша корзина</a></div></li><li><div><a href=\"/importorder/\">Импорт заказов</a></div></li><li><div><a href=\"/feedback/\">Обратная связь</a></div></li><li><div><a href=\"/order/\">Оформление заказа</a></div></li><li><div><a href=\"/password/\">Смена пароля</a></div></li><li><div><a href=\"/fsale/\">Фьючерсы</a></div></li><li><div><a href=\"/oldorders/\">История заказов</a></div></li><li><div><a href=\"/info/api/\">Интеграция с интернет-магазинами</a></div></li><li id=\"chat_on_btn\" style=\"display: none;\"><div><a style=\"cursor:pointer;\">Включить чат</a></div></li>  "]
[" </ul>"]
["</li><li class=\"menubutton\">"]
[" <div>Информация</div>"]
[" <ul id=\"clientmenu\">"]
["  <li><div><a href=\"http://www.firma-gamma.ru/client/free-eq/\" target=\"_blank\">Бесплатное торговое оборудование</a></div></li>  "]
["  <li><div><a href=\"http://www.firma-gamma.ru/client/dilers/\" target=\"_blank\">Информация для дилеров</a></div></li>  "]
["  <li><div><a href=\"/info/feedback/\">Контакты (Москва)</a></div></li>"]
[" <li><div><a href=\"/shopnews/\">Новости интернет-магазина</a></div></li>  <li><div><a href=\"/info/about/\">О компании</a></div></li>"]
["  <li><div><a href=\"http://www.firma-gamma.ru/client/ad-in-magazine/\" target=\"_blank\">Реклама в журналах</a></div></li>  "]
["  <li><div><a href=\"/info/help/\">Справка</a></div></li>"]
["  <li><div><a href=\"http://www.firma-gamma.ru/client/toorder/\" target=\"_blank\">Товары под заказ</a></div></li>  "]
["  <li><div><a href=\"/info/rules/\">Условия работы</a></div></li>"]
[" </ul>"]
["</li>   </ul>"]
["      </div></div></div>"]
["      <div id=\"content\" class=\"column\"><div class=\"section\">"]
["<h1 id=\"page-title\" data-id=\"70106\">Игры, игровые наборы и аксессуары<div class=\"idcodes collapse\">(9972839722)</div> /    Пазлы <div class=\"idcodes collapse\">(70106)</div></h1>"]
["<div id=\"filter-two\">"]
[null,"<div class=\"section clearfix\">"]
[null,null,"<form id=\"filter-two-form\" action=\"/\">"]
[null,null,null,"<!-- <div class=\"form-item form-type-radios form-item-choice clearfix\">"]
[null,null,null,null,"<label for=\"edit-choice\">Фильтр по наличию</label>"]
[]
[null,null,null,null,"<div id=\"edit-choice\" class=\"form-radios\">"]
[null,null,null,null,null,"<div class=\"form-item form-type-radio\">"]
[null,null,null,null,null,null,"<input id=\"edit-choice-1\" class=\"form-radio filter\" type=\"radio\""]
[null,null,null,null,null,null,null,"value=\"all\" name=\"nalich\" checked> <label class=\"option\""]
[null,null,null,null,null,null,null,"for=\"edit-choice-1\">ВСЕ</label>"]
[null,null,null,null,null,"</div>"]
[]
[null,null,null,null,null,"<div class=\"form-item form-type-radio\">"]
[null,null,null,null,null,null,"<input id=\"edit-choice-2\" class=\"form-radio filter\" type=\"radio\""]
[null,null,null,null,null,null,null,"value=\"1\" name=\"nalich\"> <label class=\"option\""]
[null,null,null,null,null,null,null,"for=\"edit-choice-2\">В наличии</label>"]
[null,null,null,null,null,"</div>"]
[null,null,null,null,"</div>"]
[null,null,null,"</div> -->"]
[]
[null,null,null,"<div class=\"filter-price-wrapper\">"]
[null,null,null,null,"<label class=\"filter-price\">Фильтр по цене (руб.)</label>"]
[]
[null,null,null,null,"<div class=\"form-item form-type-textfield form-item-price-from\">"]
[null,null,null,null,null,"<label for=\"price-from\">от</label> <input id=\"price-from\" class=\"form-text filter\" type=\"text\" maxlength=\"60\" size=\"60\" value=\"\" name=\"price_from\">"]
[null,null,null,null,"</div>"]
[]
[null,null,null,null,"<div class=\"form-item form-type-textfield form-item-price-to\">"]
[null,null,null,null,null,"<label for=\"price-to\">до</label> <input id=\"price-to\" class=\"form-text filter\" type=\"text\" maxlength=\"60\" size=\"60\" value=\"\" name=\"price_to\">"]
[null,null,null,null,"</div>"]
[null,null,null,"</div>"]
[]
[null,null,null,"<div class=\"toggle-wrapper\">"]
[null,null,null,null,"<a class=\"toggle-show-all\" href=\"#\">Раскрыть все товары</a> <a class=\"toggle-hide-all\" href=\"#\">Закрыть все товары</a>"]
[null,null,null,"</div>"]
[" "]
[" <div class=\"form-type-select form-item-theme\">"]
[" <select class=\"filter\" name=\"param27\" sb=\"63605300\" style=\"display: none;\">"]
[" <option selected=\"selected\" value=\"all\">Все товары</option>"]
[" <option value=\"1\">Только в наличии</option>"]
[" <option value=\"2\">Только новые поступления</option>"]
["</select><div id=\"sbHolder_63605300\" class=\"sbHolder\"><a id=\"sbToggle_63605300\" href=\"#\" class=\"sbToggle\"></a><a id=\"sbSelector_63605300\" href=\"#\" class=\"sbSelector\">Все товары</a><ul id=\"sbOptions_63605300\" class=\"sbOptions\" style=\"top: 22px; display: none;\"><li><a href=\"#all\" rel=\"all\" class=\"sbFocus\">Все товары</a></li><li><a href=\"#1\" rel=\"1\">Только в наличии</a></li><li><a href=\"#2\" rel=\"2\">Только новые поступления</a></li></ul></div></div><div class=\"form-item form-type-combo toggle-wrapper arshobbycheck\">"]
["<div class=\"sbHolder\"><div class=\"sbSelector\"><div class=\"switch tiny\">"]
["<input type=\"checkbox\" id=\"nalich\" name=\"param28\" class=\"filter\"><label for=\"nalich\"></label>"]
["</div><span style=\"padding-top:3px;display:block;\">АрсХобби распродажа</span>"]
["</div></div></div>             "]
["             <!-- <div class=\"form-item form-type-combo toggle-wrapper\">"]
[null,null,null,null,"<div class=\"sbHolder\">"]
[null,null,null,null,null,"<div class=\"sbSelector\">"]
[null,null,null,null,null,null,"<div class=\"switch tiny\">"]
[null,null,null,null,null,null,"<input type=\"checkbox\" id=\"param11\" name=\"param11\" class=\"filter\">"]
[null,null,null,null,null,null,"<label for=\"param11\"></label>"]
[null,null,null,null,null,null,"</div><span style=\"padding-top:3px;display:block;\">Новинки</span>"]
[null,null,null,null,null,"</div>"]
[null,null,null,null,"</div>"]
[null,null,null,"</div>     -->   "]
[null,null,"<div class=\"form-item form-type-select form-item-theme\">"]
[" <select class=\"filter\" name=\"param11\" sb=\"19087297\" style=\"display: none;\">"]
[" <option selected=\"selected\" value=\"all\">Новинки</option>"]
[null,null,"<option value=\"1\">1 месяц</option>"]
[null,null,"<option value=\"2\">2 месяца</option>"]
[null,null,"<option value=\"3\">3 месяца</option>"]
["</select><div id=\"sbHolder_19087297\" class=\"sbHolder\"><a id=\"sbToggle_19087297\" href=\"#\" class=\"sbToggle\"></a><a id=\"sbSelector_19087297\" href=\"#\" class=\"sbSelector\">Новинки</a><ul id=\"sbOptions_19087297\" class=\"sbOptions\" style=\"display: none;\"><li><a href=\"#all\" rel=\"all\" class=\"sbFocus\">Новинки</a></li><li><a href=\"#1\" rel=\"1\">1 месяц</a></li><li><a href=\"#2\" rel=\"2\">2 месяца</a></li><li><a href=\"#3\" rel=\"3\">3 месяца</a></li></ul></div></div>",null,"            "]
["   "]
[]
[" <!--             <div class=\"form-item form-type-combo toggle-wrapper\">"]
[null,null,null,null,"<div class=\"sbHolder\">"]
[null,null,null,null,null,"<div class=\"sbSelector\">"]
[null,null,null,null,null,null,"<div class=\"switch tiny\">"]
[null,null,null,null,null,null,"<input type=\"checkbox\" id=\"nalich\" name=\"nalich\" class=\"filter\">"]
[null,null,null,null,null,null,"<label for=\"nalich\"></label>"]
[null,null,null,null,null,null,"</div><span style=\"padding-top:3px;display:block;\">В наличии</span>"]
[null,null,null,null,null,"</div>"]
[null,null,null,null,"</div>"]
[null,null,null,"</div>   --> "]
[]
["               <div class=\"toggle-wrapper\">"]
[null,null,null,null,"<label for=\"name\">Фильтр по наименованию</label>"]
[null,null,null,null,"<div class=\"form-text\">"]
[null,null,null,null,null,"<!-- style=\"width:300px;\" -->"]
[null,null,null,null,null,"<div id=\"filter-name-clear\" class=\"point\" style=\"background: url(/i/close.png) no-repeat 100% 50%; width: 15px; height: 15px; float: right;\"></div>"]
[null,null,null,null,null,"<div id=\"filter-name-accept\" class=\"point \" style=\"background: url(/i/accept.png) no-repeat 100% 50%; width: 15px; height: 15px; float: right;\"></div>"]
[null,null,null,null,null,"<input id=\"name\" class=\"filter\" type=\"text\" maxlength=\"60\" size=\"60\" value=\"\" name=\"name\">"]
[null,null,null,null,null,"<!-- style=\"width:265px;border:0;margin:0;padding:0;height:16px;\" -->"]
[null,null,null,null,"</div>"]
[null,null,null,"</div>             "]
[]
["              "]
["                     "]
["              "]
["</form></div></div>",null,null,"<div id=\"filter-three\">"]
[null,null,null,null,"<div class=\"section clearfix\">"]
[null,null,null,null,null,null,{"$f":"ggG(B238)","v":{"$error":"#VALUE!"}}]
[null,null,null,null,null,null,{"$error":"#VALUE!"}]
[null,null,null,null,null,null,{"$error":"#VALUE!"},"<div class=\"interfaceoption\">"]
[null,null,null,null,null,null,{"$error":"#VALUE!"},null,"<div class=\"interfacelabel\">"]
[null,null,null,null,null,null,{"$error":"#VALUE!"},null,null,"МРРЦ "]
[null,null,null,null,null,null,{"$error":"#VALUE!"},null,null,"<img src=\"/i/tip.jpg\" class=\"tip\" title=\"Показать минимальную рекомендуемую розничную цену "]
["(МРРЦ) и процент наценки до МРРЦ от закупочной цены с учетом Вашей",null,null,null,null,null,{"$error":"#VALUE!"}]
["скидки. Мелкооптовая цена за розничную единицу продажи (удельная м. опт.",null,null,null,null,null,{"$error":"#VALUE!"}]
["цена) указана без учета Вашей скидки.\" alt=\"\">",null,null,null,null,null,{"$error":"#VALUE!"}]
[null,null,null,null,null,null,{"$error":"#VALUE!"},null,"</div>"]
[null,null,null,null,null,null,{"$error":"#VALUE!"},null,"<div class=\"switch tiny\"><input id=\"mrrc-chk\" type=\"checkbox\" checked=\"checked\"><label for=\"mrrc-chk\"></label></div><div class=\"clear\"></div></div>"]
[null,null,null,null,"<div class=\"interfaceoption\"><div class=\"interfacelabel\">Id ",null,{"$error":"#VALUE!"}]
[null,null,"<img src=\"/i/tip.jpg\" class=\"tip\" title=\"Показать ID товаров\" alt=\"\"></div>",null,null,null,{"$error":"#VALUE!"}]
[null,null,"<div class=\"switch tiny\"><input id=\"id-chk\" type=\"checkbox\"><label for=\"id-chk\"></label></div><div class=\"clear\"></div></div>",null,null,null,{"$error":"#VALUE!"}]
[null,null,"<div class=\"interfaceoption\"><div class=\"interfacelabel\">Картинки ",null,null,null,{"$error":"#VALUE!"}]
[null,null,"<img src=\"/i/tip.jpg\" class=\"tip\" title=\"Показать картинки\" alt=\"\"></div>",null,null,null,{"$error":"#VALUE!"}]
[null,null,"<div class=\"switch tiny\"><input id=\"img-chk\" type=\"checkbox\" checked=\"checked\">",null,null,null,{"$error":"#VALUE!"}]
[null,null,"<label for=\"img-chk\"></label></div><div class=\"clear\"></div></div>",null,null,null,{"$error":"#VALUE!"}]
[null,null,"<div class=\"interfaceoption\"><div class=\"interfacelabel\">",null,null,null,{"$error":"#VALUE!"}]
[null,null,"Описание<img src=\"/i/tip.jpg\" class=\"tip\" title=\"Показать краткие характеристики товара\" alt=\"Показать краткие характеристики товара\"></div>",null,null,null,{"$error":"#VALUE!"}]
[null,null,"<div class=\"switch tiny\"><input id=\"descr-chk\" type=\"checkbox\" checked=\"checked\"><label for=\"descr-chk\"></label></div><div class=\"clear\"></div></div>",null,null,null,{"$error":"#VALUE!"}]
[null,null,"<div class=\"clear\"></div></div></div>",null,null,null,{"$f":"ggG(B259)","v":{"$error":"#VALUE!"}}]
[null,null,"</div>    <div class=\"product-wrapper\"><h2 class=\"product-title\">   Пазлы</h2><div class=\"product-inner collapsed\" id=\"good23840183702\">",null,null,null,{"$error":"#VALUE!"}]
[null,"<div class=\"product-legend\">",null,null,null,null,{"$error":"#VALUE!"}]
[null,null,"<div class=\"product-price\"><span><a href=\"/action/35/\"><img src=\"\" class=\"tip\" title=\"День моделиста\" alt=\"\"></a></span>525.28 руб. </div>",null,null,null,{"$error":"#VALUE!"}]
[null,null,"<a href=\"/opengood/23840183702/#goodopen23840183702\">\"REZARK\"   RAZ-004   \"Замок Нойшванштайн\"   41.5x18x33.5см см  98 элемент.  </a>",null,null,null,{"$error":"#VALUE!"}]
[null,"</div>",null,null,null,null,{"$error":"#VALUE!"}]
[null,"<div class=\"image-preview\"><a onclick=\"detailwindow(23840183702,0,'http://images.firma-gamma.ru/100x100/6/8/g23840183702.jpg');\" style=\"cursor:pointer;\"><img class=\"img imgflowpic\" src=\"http://images.firma-gamma.ru/100x100/6/8/g23840183702.jpg\" style=\"margin:3px\" alt=\"\" rezark\"=\"\" raz-004=\"\" \"Замок=\"\" Нойшванштайн\"=\"\" 41.5x18x33.5см=\"\" см=\"\" 98=\"\" элемент.\"=\"\" imgflow=\"http://images.firma-gamma.ru/208x208/6/8/g23840183702.jpg\"></a><a onclick=\"detailwindow(23840183702,0,'http://images.firma-gamma.ru/100x100/c/3/g23840183702p.jpg');\" style=\"cursor:pointer;\"><img class=\"img imgflowpic\" src=\"http://images.firma-gamma.ru/100x100/c/3/g23840183702p.jpg\" style=\"margin:3px\" alt=\"\" rezark\"=\"\" raz-004=\"\" \"Замок=\"\" Нойшванштайн\"=\"\" 41.5x18x33.5см=\"\" см=\"\" 98=\"\" элемент.\"=\"\" imgflow=\"http://images.firma-gamma.ru/208x208/c/3/g23840183702p.jpg\"></a><a onclick=\"detailwindow(23840183702,0,'http://images.firma-gamma.ru/100x100/6/c/g23840183702u.jpg');\" style=\"cursor:pointer;\"><img class=\"img imgflowpic\" src=\"http://images.firma-gamma.ru/100x100/6/c/g23840183702u.jpg\" style=\"margin:3px\" alt=\"\" rezark\"=\"\" raz-004=\"\" \"Замок=\"\" Нойшванштайн\"=\"\" 41.5x18x33.5см=\"\" см=\"\" 98=\"\" элемент.\"=\"\" imgflow=\"http://images.firma-gamma.ru/208x208/6/c/g23840183702u.jpg\"></a></div>",null,null,null,null,"http://images.firma-gamma.ru/100x100/6/c/g23840183702u.jpg",null,null,null,null,"http://images.firma-gamma.ru/100x100/6/c/g23840183702u.jpg"]
[null,"<div class=\"product-body\"><div class=\"descr\"><p>Замок Нойшванштайн  -романтический замок баварского короля Людвига II около городка Фюссен и замка Хоэншвангау в юго-западной Баварии, недалеко от австрийской границы. <br>Лебединым мотивом пронизана вся архитектура и художественные украшения замка, так как лебедь - геральдическая птица старинного рода графов Швангау. Главную роль в интерьере играют иллюстрации к операм Вагнера и старинные германские легенды.<br>В комплект входит подробная инструкция. Все детали легко отсоединяются и скрепляются между собой без клея. <br>Количество деталей - 98. </p><div class=\"idcodes collapse\">ID товара:23840183702<br></div>Артикул: RAZ-004<br>Аудитория: для всей семьи&nbsp;<br>Вид: 3D<br>Количество частей: 98<br>Марка: \"REZARK\"<br>Материал: пенополистирол<br>Объем единицы продажи, л: 2.708<br>Особенности доставки: Хрупкий груз<br>Размер: 41.5x18x33.5см<br>Рекомендуемый возраст: от 3 лет<br>Тематика: архитектура<br>Тип товара: Пазл<br>Уровень сложности: 5<br><br><span><a href=\"/action/35/\"><img src=\"\" class=\"tip\" title=\"День моделиста\" alt=\"\"></a></span><br><br></div><br><span class=\"de_14 mrrc\">МРРЦ:<strong class=\"de_16\">799</strong> руб/упак. Удельная м. опт. цена без скидки:<strong class=\"de_16\">525.28</strong> руб/упак. Наценка:<strong>52%</strong><img src=\"/i/tip.jpg\" class=\"tip\" title=\"Минимальная рекомендуемая розничная цена (МРРЦ) и процент наценки до МРРЦ от закупочной цены с учетом Вашей скидки. Мелкооптовая цена за розничную единицу продажи (удельная м. опт. цена) указана без учета Вашей скидки.\" alt=\"\"><br><a href=\"javascript:jaloby_mrrc('23840183702', 23435272062);\" title=\"\">Оставить отзыв о минимальной рекомендуемой розничной цене</a><p></p><br></span><span class=\"de_14\">Цена (мелкооптовая):<strong class=\"de_16\">525.28</strong> руб.  / упак. (от 1 упак.  одного цвета/наименования)</span><br><br><div class=\"descr inv\"><a href=\"javascript:detailwindow(23840183702,0,'');\">Подробно</a></div><p><a href=\"javascript:jaloby1('23840183702', 23435272062);\" title=\"\">Отправить запрос о применении\\цене\\качестве товара<img src=\"/i/add-review.png\" style=\"margin-bottom:-8px;\" alt=\"Отправить запрос\"></a></p><table><thead><tr><td class=\"first\">&nbsp;</td><td class=\"idcodes collapse\">&nbsp;</td><td class=\"first\"><label for=\"add-all-2\">Добавить все наименования по</label><input class=\"form-text multiname\" type=\"number\" maxlength=\"60\" size=\"60\" value=\"\" name=\"add_all\"></td><td><a class=\"point\" onclick=\"detail_multiname_set(this);\"><img alt=\"Добавить все наименования в корзину\" src=\"/i/add-to-cart-all.gif\"></a></td></tr></thead><tbody><tr class=\"details\" id=\"det23840183972\"><td class=\"first\">.</td><td class=\"idcodes collapse\">23840183972</td><td class=\"second\"><label class=\"empty\" for=\"detail23840183972\"><span class=\"green\">(Москва) в наличии</span><input id=\"detail23840183972\" type=\"number\" name=\"detail23840183972\" value=\"\" class=\"form-text detailinput\"></label></td><td class=\"last\"><a class=\"point\" title=\"Добавить в корзину\" onclick=\"add2cart(this);\"><img src=\"/i/add-to-cart.png\" alt=\"Добавить в корзину\"></a><a href=\"javascript:jaloby3('23840183702', 23435272062 , '23840183972');\" title=\"Отправить запрос о наличии\"><img src=\"/i/add-review.png\" alt=\"Оставить отзыв о наличии\"></a><img src=\"/i/new.png\"></td></tr></tbody></table></div>",null,null,null,null,{"$error":"#VALUE!"}]
["</div>",null,null,null,null,null,{"$error":"#VALUE!"}]
["<script type=\"text/javascript\" language=\"Javascript\">$(document).ready(function(){open_good('23840183702');});</script><div class=\"product-inner collapsed\" id=\"good23840480332\">",null,null,null,null,null,{"$error":"#VALUE!"}]
[null,"<div class=\"product-legend\">",null,null,null,null,{"$error":"#VALUE!"}]
[null,null,"<div class=\"product-price\"><span><a href=\"/action/35/\"><img src=\"\" class=\"tip\" title=\"День моделиста\" alt=\"\"></a></span>525.28 руб. </div>",null,null,null,{"$error":"#VALUE!"}]
[null,null,"<a href=\"/opengood/23840480332/#goodopen23840480332\">\"REZARK\"   RAZ-005   \"Исаакиевский собор\"   30x27x26см см  105 элемент.  </a>",null,null,null,{"$error":"#VALUE!"}]
[null,"</div>",null,null,null,null,{"$error":"#VALUE!"}]
[null,"<div class=\"image-preview\"><a onclick=\"detailwindow(23840480332,0,'http://images.firma-gamma.ru/100x100/b/a/g23840480332.jpg');\" style=\"cursor:pointer;\"><img class=\"img imgflowpic\" src=\"http://images.firma-gamma.ru/100x100/b/a/g23840480332.jpg\" style=\"margin:3px\" alt=\"\" rezark\"=\"\" raz-005=\"\" \"Исаакиевский=\"\" собор\"=\"\" 30x27x26см=\"\" см=\"\" 105=\"\" элемент.\"=\"\" imgflow=\"http://images.firma-gamma.ru/208x208/b/a/g23840480332.jpg\"></a><a onclick=\"detailwindow(23840480332,0,'http://images.firma-gamma.ru/100x100/2/1/g23840480332p.jpg');\" style=\"cursor:pointer;\"><img class=\"img imgflowpic\" src=\"http://images.firma-gamma.ru/100x100/2/1/g23840480332p.jpg\" style=\"margin:3px\" alt=\"\" rezark\"=\"\" raz-005=\"\" \"Исаакиевский=\"\" собор\"=\"\" 30x27x26см=\"\" см=\"\" 105=\"\" элемент.\"=\"\" imgflow=\"http://images.firma-gamma.ru/208x208/2/1/g23840480332p.jpg\"></a><a onclick=\"detailwindow(23840480332,0,'http://images.firma-gamma.ru/100x100/8/d/g23840480332u.jpg');\" style=\"cursor:pointer;\"><img class=\"img imgflowpic\" src=\"http://images.firma-gamma.ru/100x100/8/d/g23840480332u.jpg\" style=\"margin:3px\" alt=\"\" rezark\"=\"\" raz-005=\"\" \"Исаакиевский=\"\" собор\"=\"\" 30x27x26см=\"\" см=\"\" 105=\"\" элемент.\"=\"\" imgflow=\"http://images.firma-gamma.ru/208x208/8/d/g23840480332u.jpg\"></a></div>",null,null,null,null,"http://images.firma-gamma.ru/100x100/8/d/g23840480332u.jpg"]
[null,"<div class=\"product-body\"><div class=\"descr\"><p>Исаакиевский собор - крупнейший православный храм Санкт-Петербурга, имеющий статус музея. Он возводился несколько раз и своим появлением обязан Петру I.<br>В первой, тогда ещё деревянной церкви, в 1712 году Пётр I венчался со своей женой Екатериной. Вторая церковь, в камне, была заложена в 1717 году. В 1768 году Екатерина II повелела начать строительство Исаакиевского собора. А в 1809 году несоответствие собора парадному облику центральной части Петербурга вызвало необходимость возведения нового храма. <br>Собор является выдающимся образцом позднего классицизма, уникальным архитектурным сооружением и высотной доминантой центральной части города. <br>В комплект входит подробная инструкция. Все детали легко отсоединяются и скрепляются между собой без клея. <br>Количество деталей - 105.</p><div class=\"idcodes collapse\">ID товара:23840480332<br></div>Артикул: RAZ-005<br>Аудитория: для всей семьи&nbsp;<br>Вид: 3D<br>Количество частей: 105<br>Марка: \"REZARK\"<br>Материал: пенополистирол<br>Объем единицы продажи, л: 2.708<br>Особенности доставки: Хрупкий груз<br>Размер: 30x27x26см<br>Рекомендуемый возраст: от 3 лет<br>Тематика: архитектура<br>Тип товара: Пазл<br>Уровень сложности: 5<br><br><span><a href=\"/action/35/\"><img src=\"\" class=\"tip\" title=\"День моделиста\" alt=\"\"></a></span><br><br></div><br><span class=\"de_14 mrrc\">МРРЦ:<strong class=\"de_16\">799</strong> руб/упак. Удельная м. опт. цена без скидки:<strong class=\"de_16\">525.28</strong> руб/упак. Наценка:<strong>52%</strong><img src=\"/i/tip.jpg\" class=\"tip\" title=\"Минимальная рекомендуемая розничная цена (МРРЦ) и процент наценки до МРРЦ от закупочной цены с учетом Вашей скидки. Мелкооптовая цена за розничную единицу продажи (удельная м. опт. цена) указана без учета Вашей скидки.\" alt=\"\"><br><a href=\"javascript:jaloby_mrrc('23840480332', 23435272062);\" title=\"\">Оставить отзыв о минимальной рекомендуемой розничной цене</a><p></p><br></span><span class=\"de_14\">Цена (мелкооптовая):<strong class=\"de_16\">525.28</strong> руб.  / упак. (от 1 упак.  одного цвета/наименования)</span><br><br><div class=\"descr inv\"><a href=\"javascript:detailwindow(23840480332,0,'');\">Подробно</a></div><p><a href=\"javascript:jaloby1('23840480332', 23435272062);\" title=\"\">Отправить запрос о применении\\цене\\качестве товара<img src=\"/i/add-review.png\" style=\"margin-bottom:-8px;\" alt=\"Отправить запрос\"></a></p><table><thead><tr><td class=\"first\">&nbsp;</td><td class=\"idcodes collapse\">&nbsp;</td><td class=\"first\"><label for=\"add-all-2\">Добавить все наименования по</label><input class=\"form-text multiname\" type=\"number\" maxlength=\"60\" size=\"60\" value=\"\" name=\"add_all\"></td><td><a class=\"point\" onclick=\"detail_multiname_set(this);\"><img alt=\"Добавить все наименования в корзину\" src=\"/i/add-to-cart-all.gif\"></a></td></tr></thead><tbody><tr class=\"details\" id=\"det23840480872\"><td class=\"first\">.</td><td class=\"idcodes collapse\">23840480872</td><td class=\"second\"><label class=\"empty\" for=\"detail23840480872\"><span class=\"green\">(Москва) в наличии</span><input id=\"detail23840480872\" type=\"number\" name=\"detail23840480872\" value=\"\" class=\"form-text detailinput\"></label></td><td class=\"last\"><a class=\"point\" title=\"Добавить в корзину\" onclick=\"add2cart(this);\"><img src=\"/i/add-to-cart.png\" alt=\"Добавить в корзину\"></a><a href=\"javascript:jaloby3('23840480332', 23435272062 , '23840480872');\" title=\"Отправить запрос о наличии\"><img src=\"/i/add-review.png\" alt=\"Оставить отзыв о наличии\"></a><img src=\"/i/new.png\"></td></tr></tbody></table></div>",null,null,null,null,{"$error":"#VALUE!"}]
["</div>",null,null,null,null,null,{"$error":"#VALUE!"}]
["<div class=\"product-inner collapsed\" id=\"good23840727132\">",null,null,null,null,null,{"$error":"#VALUE!"}]
[null,"<div class=\"product-legend\">",null,null,null,null,{"$error":"#VALUE!"}]
[null,null,"<div class=\"product-price\"><span><a href=\"/action/35/\"><img src=\"\" class=\"tip\" title=\"День моделиста\" alt=\"\"></a></span>525.28 руб. </div>",null,null,null,{"$error":"#VALUE!"}]
[null,null,"<a href=\"/opengood/23840727132/#goodopen23840727132\">\"REZARK\"   RAZ-007   \"Саграда Фамилия\"   25x20x33см см  194 элемент.  </a>",null,null,null,{"$error":"#VALUE!"}]
[null,"</div>",null,null,null,null,{"$error":"#VALUE!"}]
[null,"<div class=\"image-preview\"><a onclick=\"detailwindow(23840727132,0,'http://images.firma-gamma.ru/100x100/7/4/g23840727132.jpg');\" style=\"cursor:pointer;\"><img class=\"img imgflowpic\" src=\"http://images.firma-gamma.ru/100x100/7/4/g23840727132.jpg\" style=\"margin:3px\" alt=\"\" rezark\"=\"\" raz-007=\"\" \"Саграда=\"\" Фамилия\"=\"\" 25x20x33см=\"\" см=\"\" 194=\"\" элемент.\"=\"\" imgflow=\"http://images.firma-gamma.ru/208x208/7/4/g23840727132.jpg\"></a><a onclick=\"detailwindow(23840727132,0,'http://images.firma-gamma.ru/100x100/e/5/g23840727132p.jpg');\" style=\"cursor:pointer;\"><img class=\"img imgflowpic\" src=\"http://images.firma-gamma.ru/100x100/e/5/g23840727132p.jpg\" style=\"margin:3px\" alt=\"\" rezark\"=\"\" raz-007=\"\" \"Саграда=\"\" Фамилия\"=\"\" 25x20x33см=\"\" см=\"\" 194=\"\" элемент.\"=\"\" imgflow=\"http://images.firma-gamma.ru/208x208/e/5/g23840727132p.jpg\"></a><a onclick=\"detailwindow(23840727132,0,'http://images.firma-gamma.ru/100x100/8/8/g23840727132u.jpg');\" style=\"cursor:pointer;\"><img class=\"img imgflowpic\" src=\"http://images.firma-gamma.ru/100x100/8/8/g23840727132u.jpg\" style=\"margin:3px\" alt=\"\" rezark\"=\"\" raz-007=\"\" \"Саграда=\"\" Фамилия\"=\"\" 25x20x33см=\"\" см=\"\" 194=\"\" элемент.\"=\"\" imgflow=\"http://images.firma-gamma.ru/208x208/8/8/g23840727132u.jpg\"></a></div>",null,null,null,null,"http://images.firma-gamma.ru/100x100/8/8/g23840727132u.jpg"]
[null,"<div class=\"product-body\"><div class=\"descr\"><p>Храм Святого Семейства /Sagrada Fami'lia/ - церковь в Барселоне, строящаяся на частные пожертвования, начиная с 1882 года и знаменитый проект Антонио Гауди. Один из самых известных долгостроев мира.<br>Собор задумывался как архитектурное воплощение Нового Завета: спланирован в виде латинского креста, лепные рельефы фасадов представляют собой центральные сюжеты земной жизни Христа . <br>В комплект входит подробная инструкция. Все детали легко отсоединяются и скрепляются между собой без клея. <br>Количество деталей - 194.</p><div class=\"idcodes collapse\">ID товара:23840727132<br></div>Артикул: RAZ-007<br>Аудитория: для всей семьи&nbsp;<br>Вид: 3D<br>Количество частей: 194<br>Марка: \"REZARK\"<br>Материал: пенополистирол<br>Объем единицы продажи, л: 2.708<br>Особенности доставки: Хрупкий груз<br>Размер: 25x20x33см<br>Рекомендуемый возраст: от 3 лет<br>Тематика: архитектура<br>Тип товара: Пазл<br>Уровень сложности: 5<br><br><span><a href=\"/action/35/\"><img src=\"\" class=\"tip\" title=\"День моделиста\" alt=\"\"></a></span><br><br></div><br><span class=\"de_14 mrrc\">МРРЦ:<strong class=\"de_16\">799</strong> руб/упак. Удельная м. опт. цена без скидки:<strong class=\"de_16\">525.28</strong> руб/упак. Наценка:<strong>52%</strong><img src=\"/i/tip.jpg\" class=\"tip\" title=\"Минимальная рекомендуемая розничная цена (МРРЦ) и процент наценки до МРРЦ от закупочной цены с учетом Вашей скидки. Мелкооптовая цена за розничную единицу продажи (удельная м. опт. цена) указана без учета Вашей скидки.\" alt=\"\"><br><a href=\"javascript:jaloby_mrrc('23840727132', 23435272062);\" title=\"\">Оставить отзыв о минимальной рекомендуемой розничной цене</a><p></p><br></span><span class=\"de_14\">Цена (мелкооптовая):<strong class=\"de_16\">525.28</strong> руб.  / упак. (от 1 упак.  одного цвета/наименования)</span><br><br><div class=\"descr inv\"><a href=\"javascript:detailwindow(23840727132,0,'');\">Подробно</a></div><p><a href=\"javascript:jaloby1('23840727132', 23435272062);\" title=\"\">Отправить запрос о применении\\цене\\качестве товара<img src=\"/i/add-review.png\" style=\"margin-bottom:-8px;\" alt=\"Отправить запрос\"></a></p><table><thead><tr><td class=\"first\">&nbsp;</td><td class=\"idcodes collapse\">&nbsp;</td><td class=\"first\"><label for=\"add-all-2\">Добавить все наименования по</label><input class=\"form-text multiname\" type=\"number\" maxlength=\"60\" size=\"60\" value=\"\" name=\"add_all\"></td><td><a class=\"point\" onclick=\"detail_multiname_set(this);\"><img alt=\"Добавить все наименования в корзину\" src=\"/i/add-to-cart-all.gif\"></a></td></tr></thead><tbody><tr class=\"details\" id=\"det23840727332\"><td class=\"first\">.</td><td class=\"idcodes collapse\">23840727332</td><td class=\"second\"><label class=\"empty\" for=\"detail23840727332\"><span class=\"green\">(Москва) в наличии</span><input id=\"detail23840727332\" type=\"number\" name=\"detail23840727332\" value=\"\" class=\"form-text detailinput\"></label></td><td class=\"last\"><a class=\"point\" title=\"Добавить в корзину\" onclick=\"add2cart(this);\"><img src=\"/i/add-to-cart.png\" alt=\"Добавить в корзину\"></a><a href=\"javascript:jaloby3('23840727132', 23435272062 , '23840727332');\" title=\"Отправить запрос о наличии\"><img src=\"/i/add-review.png\" alt=\"Оставить отзыв о наличии\"></a><img src=\"/i/new.png\"></td></tr></tbody></table></div>",null,null,null,null,{"$error":"#VALUE!"}]
["</div>",null,null,null,null,null,{"$error":"#VALUE!"}]
["<div class=\"product-inner collapsed\" id=\"good23829563252\">",null,null,null,null,null,{"$error":"#VALUE!"}]
[null,"<div class=\"product-legend\">",null,null,null,null,{"$error":"#VALUE!"}]
[null,null,"<div class=\"product-price\"><span><a href=\"/action/35/\"><img src=\"\" class=\"tip\" title=\"День моделиста\" alt=\"\"></a></span>382.57 руб. </div>",null,null,null,{"$error":"#VALUE!"}]
[null,null,"<a href=\"/opengood/23829563252/#goodopen23829563252\">\"REZARK\"   RAZ-N-001   \"Биг-Бен\"   12х12x51.5см см  47 элемент.  </a>",null,null,null,{"$error":"#VALUE!"}]
[null,"</div>"]
[null,"<div class=\"image-preview\"><a onclick=\"detailwindow(23829563252,0,'http://images.firma-gamma.ru/100x100/6/f/g23829563252.jpg');\" style=\"cursor:pointer;\"><img class=\"img imgflowpic\" src=\"http://images.firma-gamma.ru/100x100/6/f/g23829563252.jpg\" style=\"margin:3px\" alt=\"\" rezark\"=\"\" raz-n-001=\"\" \"Биг-Бен\"=\"\" 12х12x51.5см=\"\" см=\"\" 47=\"\" элемент.\"=\"\" imgflow=\"http://images.firma-gamma.ru/208x208/6/f/g23829563252.jpg\"></a><a onclick=\"detailwindow(23829563252,0,'http://images.firma-gamma.ru/100x100/2/7/g23829563252p.jpg');\" style=\"cursor:pointer;\"><img class=\"img imgflowpic\" src=\"http://images.firma-gamma.ru/100x100/2/7/g23829563252p.jpg\" style=\"margin:3px\" alt=\"\" rezark\"=\"\" raz-n-001=\"\" \"Биг-Бен\"=\"\" 12х12x51.5см=\"\" см=\"\" 47=\"\" элемент.\"=\"\" imgflow=\"http://images.firma-gamma.ru/208x208/2/7/g23829563252p.jpg\"></a><a onclick=\"detailwindow(23829563252,0,'http://images.firma-gamma.ru/100x100/5/6/g23829563252u.jpg');\" style=\"cursor:pointer;\"><img class=\"img imgflowpic\" src=\"http://images.firma-gamma.ru/100x100/5/6/g23829563252u.jpg\" style=\"margin:3px\" alt=\"\" rezark\"=\"\" raz-n-001=\"\" \"Биг-Бен\"=\"\" 12х12x51.5см=\"\" см=\"\" 47=\"\" элемент.\"=\"\" imgflow=\"http://images.firma-gamma.ru/208x208/5/6/g23829563252u.jpg\"></a></div>"]
[null,"<div class=\"product-body\"><div class=\"descr\"><p>Биг-Бен - это Часовая башня Вестминстерского дворца в Лондоне и один из самых узнаваемых символов Великобритании. Часы являются самыми большими в мире четырёхсторонними часами с боем.  <br>Модель разработана в интересном цветовом решении. За основу взят один из государственных символов Соединенного Королевства - флаг Великобритании. Таким образом подчёркивается символичность Биг-Бена. <br>В комплект входит подробная инструкция. Все детали легко отсоединяются и скрепляются между собой без клея.<br>Количество деталей - 47. </p><div class=\"idcodes collapse\">ID товара:23829563252<br></div>Артикул: RAZ-N-001  <br>Аудитория: для всей семьи&nbsp;<br>Вид: 3D<br>Количество частей: 47<br>Марка: \"REZARK\"<br>Материал: пенополистирол<br>Объем единицы продажи, л: 1.700<br>Особенности доставки: Хрупкий груз<br>Размер: 12х12x51.5см<br>Рекомендуемый возраст: от 3 лет<br>Тематика: архитектура<br>Тип товара: Пазл<br>Уровень сложности: 4<br><br><span><a href=\"/action/35/\"><img src=\"\" class=\"tip\" title=\"День моделиста\" alt=\"\"></a></span><br><br></div><br><span class=\"de_14 mrrc\">МРРЦ:<strong class=\"de_16\">579</strong> руб/упак. Удельная м. опт. цена без скидки:<strong class=\"de_16\">382.57</strong> руб/упак. Наценка:<strong>51%</strong><img src=\"/i/tip.jpg\" class=\"tip\" title=\"Минимальная рекомендуемая розничная цена (МРРЦ) и процент наценки до МРРЦ от закупочной цены с учетом Вашей скидки. Мелкооптовая цена за розничную единицу продажи (удельная м. опт. цена) указана без учета Вашей скидки.\" alt=\"\"><br><a href=\"javascript:jaloby_mrrc('23829563252', 23435272062);\" title=\"\">Оставить отзыв о минимальной рекомендуемой розничной цене</a><p></p><br></span><span class=\"de_14\">Цена (мелкооптовая):<strong class=\"de_16\">382.57</strong> руб.  / упак. (от 1 упак.  одного цвета/наименования)</span><br><br><div class=\"descr inv\"><a href=\"javascript:detailwindow(23829563252,0,'');\">Подробно</a></div><p><a href=\"javascript:jaloby1('23829563252', 23435272062);\" title=\"\">Отправить запрос о применении\\цене\\качестве товара<img src=\"/i/add-review.png\" style=\"margin-bottom:-8px;\" alt=\"Отправить запрос\"></a></p><table><thead><tr><td class=\"first\">&nbsp;</td><td class=\"idcodes collapse\">&nbsp;</td><td class=\"first\"><label for=\"add-all-2\">Добавить все наименования по</label><input class=\"form-text multiname\" type=\"number\" maxlength=\"60\" size=\"60\" value=\"\" name=\"add_all\"></td><td><a class=\"point\" onclick=\"detail_multiname_set(this);\"><img alt=\"Добавить все наименования в корзину\" src=\"/i/add-to-cart-all.gif\"></a></td></tr></thead><tbody><tr class=\"details\" id=\"det23829563742\"><td class=\"first\">.</td><td class=\"idcodes collapse\">23829563742</td><td class=\"second\"><label class=\"empty\" for=\"detail23829563742\"><span class=\"green\">(Москва) в наличии</span><input id=\"detail23829563742\" type=\"number\" name=\"detail23829563742\" value=\"\" class=\"form-text detailinput\"></label></td><td class=\"last\"><a class=\"point\" title=\"Добавить в корзину\" onclick=\"add2cart(this);\"><img src=\"/i/add-to-cart.png\" alt=\"Добавить в корзину\"></a><a href=\"javascript:jaloby3('23829563252', 23435272062 , '23829563742');\" title=\"Отправить запрос о наличии\"><img src=\"/i/add-review.png\" alt=\"Оставить отзыв о наличии\"></a><img src=\"/i/new.png\"></td></tr></tbody></table></div>"]
["</div>"]
["<div class=\"product-inner collapsed\" id=\"good23839863682\">"]
[null,"<div class=\"product-legend\">"]
[null,null,"<div class=\"product-price\"><span><a href=\"/action/35/\"><img src=\"\" class=\"tip\" title=\"День моделиста\" alt=\"\"></a></span>282.07 руб. </div>"]
[null,null,"<a href=\"/opengood/23839863682/#goodopen23839863682\">\"REZARK\"   RAZ-N-002   \"Пизанская башня\"   10x10x26см см  13 элемент.  </a>"]
[null,"</div>"]
[null,"<div class=\"image-preview\"><a onclick=\"detailwindow(23839863682,0,'http://images.firma-gamma.ru/100x100/b/3/g23839863682.jpg');\" style=\"cursor:pointer;\"><img class=\"img imgflowpic\" src=\"http://images.firma-gamma.ru/100x100/b/3/g23839863682.jpg\" style=\"margin:3px\" alt=\"\" rezark\"=\"\" raz-n-002=\"\" \"Пизанская=\"\" башня\"=\"\" 10x10x26см=\"\" см=\"\" 13=\"\" элемент.\"=\"\" imgflow=\"http://images.firma-gamma.ru/208x208/b/3/g23839863682.jpg\"></a><a onclick=\"detailwindow(23839863682,0,'http://images.firma-gamma.ru/100x100/f/5/g23839863682p.jpg');\" style=\"cursor:pointer;\"><img class=\"img imgflowpic\" src=\"http://images.firma-gamma.ru/100x100/f/5/g23839863682p.jpg\" style=\"margin:3px\" alt=\"\" rezark\"=\"\" raz-n-002=\"\" \"Пизанская=\"\" башня\"=\"\" 10x10x26см=\"\" см=\"\" 13=\"\" элемент.\"=\"\" imgflow=\"http://images.firma-gamma.ru/208x208/f/5/g23839863682p.jpg\"></a><a onclick=\"detailwindow(23839863682,0,'http://images.firma-gamma.ru/100x100/f/4/g23839863682u.jpg');\" style=\"cursor:pointer;\"><img class=\"img imgflowpic\" src=\"http://images.firma-gamma.ru/100x100/f/4/g23839863682u.jpg\" style=\"margin:3px\" alt=\"\" rezark\"=\"\" raz-n-002=\"\" \"Пизанская=\"\" башня\"=\"\" 10x10x26см=\"\" см=\"\" 13=\"\" элемент.\"=\"\" imgflow=\"http://images.firma-gamma.ru/208x208/f/4/g23839863682u.jpg\"></a></div>"]
[null,"<div class=\"product-body\"><div class=\"descr\"><p>Пизанская башня получила всемирную известность благодаря непреднамеренному наклону, вызванному  мягкостью почвы. Её \"падение\" продолжалось 800 лет, начиная с момента строительства . <br>Пизанская башня является колокольней и частью ансамбля католического собора Санта-Мария Ассунта в г. Пиза.<br>Модель разработана в символичном цветовом решении. Башня как бы обёрнута в гигантский флаг Италии. Прославившись сама и прославив свою страну, башня стала символом Италии! <br>В комплект входит подробная инструкция. Все детали легко отсоединяются и скрепляются между собой без клея. <br>Количество деталей - 13.</p><div class=\"idcodes collapse\">ID товара:23839863682<br></div>Артикул: RAZ-N-002<br>Аудитория: для всей семьи&nbsp;<br>Вид: 3D<br>Количество частей: 13<br>Марка: \"REZARK\"<br>Материал: пенополистирол<br>Объем единицы продажи, л: 1.700<br>Особенности доставки: Хрупкий груз<br>Размер: 10x10x26см<br>Рекомендуемый возраст: от 3 лет<br>Тематика: архитектура<br>Тип товара: Пазл<br>Уровень сложности: 4<br><br><span><a href=\"/action/35/\"><img src=\"\" class=\"tip\" title=\"День моделиста\" alt=\"\"></a></span><br><br></div><br><span class=\"de_14 mrrc\">МРРЦ:<strong class=\"de_16\">429</strong> руб/упак. Удельная м. опт. цена без скидки:<strong class=\"de_16\">282.07</strong> руб/упак. Наценка:<strong>52%</strong><img src=\"/i/tip.jpg\" class=\"tip\" title=\"Минимальная рекомендуемая розничная цена (МРРЦ) и процент наценки до МРРЦ от закупочной цены с учетом Вашей скидки. Мелкооптовая цена за розничную единицу продажи (удельная м. опт. цена) указана без учета Вашей скидки.\" alt=\"\"><br><a href=\"javascript:jaloby_mrrc('23839863682', 23435272062);\" title=\"\">Оставить отзыв о минимальной рекомендуемой розничной цене</a><p></p><br></span><span class=\"de_14\">Цена (мелкооптовая):<strong class=\"de_16\">282.07</strong> руб.  / упак. (от 1 упак.  одного цвета/наименования)</span><br><br><div class=\"descr inv\"><a href=\"javascript:detailwindow(23839863682,0,'');\">Подробно</a></div><p><a href=\"javascript:jaloby1('23839863682', 23435272062);\" title=\"\">Отправить запрос о применении\\цене\\качестве товара<img src=\"/i/add-review.png\" style=\"margin-bottom:-8px;\" alt=\"Отправить запрос\"></a></p><table><thead><tr><td class=\"first\">&nbsp;</td><td class=\"idcodes collapse\">&nbsp;</td><td class=\"first\"><label for=\"add-all-2\">Добавить все наименования по</label><input class=\"form-text multiname\" type=\"number\" maxlength=\"60\" size=\"60\" value=\"\" name=\"add_all\"></td><td><a class=\"point\" onclick=\"detail_multiname_set(this);\"><img alt=\"Добавить все наименования в корзину\" src=\"/i/add-to-cart-all.gif\"></a></td></tr></thead><tbody><tr class=\"details\" id=\"det23839863942\"><td class=\"first\">.</td><td class=\"idcodes collapse\">23839863942</td><td class=\"second\"><label class=\"empty\" for=\"detail23839863942\"><span class=\"green\">(Москва) в наличии</span><input id=\"detail23839863942\" type=\"number\" name=\"detail23839863942\" value=\"\" class=\"form-text detailinput\"></label></td><td class=\"last\"><a class=\"point\" title=\"Добавить в корзину\" onclick=\"add2cart(this);\"><img src=\"/i/add-to-cart.png\" alt=\"Добавить в корзину\"></a><a href=\"javascript:jaloby3('23839863682', 23435272062 , '23839863942');\" title=\"Отправить запрос о наличии\"><img src=\"/i/add-review.png\" alt=\"Оставить отзыв о наличии\"></a><img src=\"/i/new.png\"></td></tr></tbody></table></div>"]
["</div>"]
["<div class=\"product-inner collapsed\" id=\"good23840014422\">"]
[null,"<div class=\"product-legend\">"]
[null,null,"<div class=\"product-price\"><span><a href=\"/action/35/\"><img src=\"\" class=\"tip\" title=\"День моделиста\" alt=\"\"></a></span>382.57 руб. </div>"]
[null,null,"<a href=\"/opengood/23840014422/#goodopen23840014422\">\"REZARK\"   RAZ-N-003   \"Эйфелева башня\"   23x20.5x47см см  35 элемент.  </a>"]
[null,"</div>"]
[null,"<div class=\"image-preview\"><a onclick=\"detailwindow(23840014422,0,'http://images.firma-gamma.ru/100x100/4/6/g23840014422.jpg');\" style=\"cursor:pointer;\"><img class=\"img imgflowpic\" src=\"http://images.firma-gamma.ru/100x100/4/6/g23840014422.jpg\" style=\"margin:3px\" alt=\"\" rezark\"=\"\" raz-n-003=\"\" \"Эйфелева=\"\" башня\"=\"\" 23x20.5x47см=\"\" см=\"\" 35=\"\" элемент.\"=\"\" imgflow=\"http://images.firma-gamma.ru/208x208/4/6/g23840014422.jpg\"></a><a onclick=\"detailwindow(23840014422,0,'http://images.firma-gamma.ru/100x100/2/d/g23840014422p.jpg');\" style=\"cursor:pointer;\"><img class=\"img imgflowpic\" src=\"http://images.firma-gamma.ru/100x100/2/d/g23840014422p.jpg\" style=\"margin:3px\" alt=\"\" rezark\"=\"\" raz-n-003=\"\" \"Эйфелева=\"\" башня\"=\"\" 23x20.5x47см=\"\" см=\"\" 35=\"\" элемент.\"=\"\" imgflow=\"http://images.firma-gamma.ru/208x208/2/d/g23840014422p.jpg\"></a><a onclick=\"detailwindow(23840014422,0,'http://images.firma-gamma.ru/100x100/5/d/g23840014422u.jpg');\" style=\"cursor:pointer;\"><img class=\"img imgflowpic\" src=\"http://images.firma-gamma.ru/100x100/5/d/g23840014422u.jpg\" style=\"margin:3px\" alt=\"\" rezark\"=\"\" raz-n-003=\"\" \"Эйфелева=\"\" башня\"=\"\" 23x20.5x47см=\"\" см=\"\" 35=\"\" элемент.\"=\"\" imgflow=\"http://images.firma-gamma.ru/208x208/5/d/g23840014422u.jpg\"></a></div>"]
[null,"<div class=\"product-body\"><div class=\"descr\"><p>Эйфелева башня, самая узнаваемая архитектурная достопримечательность Парижа и всемирно известный символ Франции, была построена в 1889 году и названа в честь своего конструктора Гюстава Эйфеля.<br>Более 40 лет башня считалась самым высоким сооружением в мире. И до сих пор сохранила за собой звание самой посещаемой и самой фотографируемой достопримечательности в мире!  <br>Модель разработана в интересном цветовом решении. В её основе национальная эмблема Франции - сине-бело-красный флаг.  Два символа Франции сведены здесь в одно целое. <br>В комплект входит подробная инструкция. Все детали легко отсоединяются и скрепляются между собой без клея. <br>Количество деталей - 35.</p><div class=\"idcodes collapse\">ID товара:23840014422<br></div>Артикул: RAZ-N-003<br>Аудитория: для всей семьи&nbsp;<br>Вид: 3D<br>Количество частей: 35<br>Марка: \"REZARK\"<br>Материал: пенополистирол<br>Объем единицы продажи, л: 1.700<br>Особенности доставки: Хрупкий груз<br>Размер: 23x20.5x47см<br>Рекомендуемый возраст: от 3 лет<br>Тематика: архитектура<br>Тип товара: Пазл<br>Уровень сложности: 4<br><br><span><a href=\"/action/35/\"><img src=\"\" class=\"tip\" title=\"День моделиста\" alt=\"\"></a></span><br><br></div><br><span class=\"de_14 mrrc\">МРРЦ:<strong class=\"de_16\">579</strong> руб/упак. Удельная м. опт. цена без скидки:<strong class=\"de_16\">382.57</strong> руб/упак. Наценка:<strong>51%</strong><img src=\"/i/tip.jpg\" class=\"tip\" title=\"Минимальная рекомендуемая розничная цена (МРРЦ) и процент наценки до МРРЦ от закупочной цены с учетом Вашей скидки. Мелкооптовая цена за розничную единицу продажи (удельная м. опт. цена) указана без учета Вашей скидки.\" alt=\"\"><br><a href=\"javascript:jaloby_mrrc('23840014422', 23435272062);\" title=\"\">Оставить отзыв о минимальной рекомендуемой розничной цене</a><p></p><br></span><span class=\"de_14\">Цена (мелкооптовая):<strong class=\"de_16\">382.57</strong> руб.  / упак. (от 1 упак.  одного цвета/наименования)</span><br><br><div class=\"descr inv\"><a href=\"javascript:detailwindow(23840014422,0,'');\">Подробно</a></div><p><a href=\"javascript:jaloby1('23840014422', 23435272062);\" title=\"\">Отправить запрос о применении\\цене\\качестве товара<img src=\"/i/add-review.png\" style=\"margin-bottom:-8px;\" alt=\"Отправить запрос\"></a></p><table><thead><tr><td class=\"first\">&nbsp;</td><td class=\"idcodes collapse\">&nbsp;</td><td class=\"first\"><label for=\"add-all-2\">Добавить все наименования по</label><input class=\"form-text multiname\" type=\"number\" maxlength=\"60\" size=\"60\" value=\"\" name=\"add_all\"></td><td><a class=\"point\" onclick=\"detail_multiname_set(this);\"><img alt=\"Добавить все наименования в корзину\" src=\"/i/add-to-cart-all.gif\"></a></td></tr></thead><tbody><tr class=\"details\" id=\"det23840015652\"><td class=\"first\">.</td><td class=\"idcodes collapse\">23840015652</td><td class=\"second\"><label class=\"empty\" for=\"detail23840015652\"><span class=\"green\">(Москва) в наличии</span><input id=\"detail23840015652\" type=\"number\" name=\"detail23840015652\" value=\"\" class=\"form-text detailinput\"></label></td><td class=\"last\"><a class=\"point\" title=\"Добавить в корзину\" onclick=\"add2cart(this);\"><img src=\"/i/add-to-cart.png\" alt=\"Добавить в корзину\"></a><a href=\"javascript:jaloby3('23840014422', 23435272062 , '23840015652');\" title=\"Отправить запрос о наличии\"><img src=\"/i/add-review.png\" alt=\"Оставить отзыв о наличии\"></a><img src=\"/i/new.png\"></td></tr></tbody></table></div>"]
["</div>"]
["<div class=\"product-inner collapsed\" id=\"good23840560992\">"]
[null,"<div class=\"product-legend\">"]
[null,null,"<div class=\"product-price\"><span><a href=\"/action/35/\"><img src=\"\" class=\"tip\" title=\"День моделиста\" alt=\"\"></a></span>382.57 руб. </div>"]
[null,null,"<a href=\"/opengood/23840560992/#goodopen23840560992\">\"REZARK\"   RAZ-N-006   \"Спасская башня\"   26x15.5x37.5см см  33 элемент.  </a>"]
[null,"</div>"]
[null,"<div class=\"image-preview\"><a onclick=\"detailwindow(23840560992,0,'http://images.firma-gamma.ru/100x100/6/9/g23840560992.jpg');\" style=\"cursor:pointer;\"><img class=\"img imgflowpic\" src=\"http://images.firma-gamma.ru/100x100/6/9/g23840560992.jpg\" style=\"margin:3px\" alt=\"\" rezark\"=\"\" raz-n-006=\"\" \"Спасская=\"\" башня\"=\"\" 26x15.5x37.5см=\"\" см=\"\" 33=\"\" элемент.\"=\"\" imgflow=\"http://images.firma-gamma.ru/208x208/6/9/g23840560992.jpg\"></a><a onclick=\"detailwindow(23840560992,0,'http://images.firma-gamma.ru/100x100/7/b/g23840560992u.jpg');\" style=\"cursor:pointer;\"><img class=\"img imgflowpic\" src=\"http://images.firma-gamma.ru/100x100/7/b/g23840560992u.jpg\" style=\"margin:3px\" alt=\"\" rezark\"=\"\" raz-n-006=\"\" \"Спасская=\"\" башня\"=\"\" 26x15.5x37.5см=\"\" см=\"\" 33=\"\" элемент.\"=\"\" imgflow=\"http://images.firma-gamma.ru/208x208/7/b/g23840560992u.jpg\"></a></div>"]
[null,"<div class=\"product-body\"><div class=\"descr\"><p>Спасская башня /одна из 20-ти башен Московского Кремля, выходящая на Красную площадь/ - символ столицы и всей России. В ней расположены главные ворота Кремля - Спасские, и установлены знаменитые часы - куранты. <br>Башня сооружена в 1491 году. От Спасских ворот уходили на битву полки, здесь встречали иностранных послов, через ворота шли все крестные ходы из Кремля и торжественно проходили все правители России перед коронацией. <br>Модель разработана в необычном цветовом решении. Русские мотивы, покрывающие словно росписью стены башни, заменяют привычную кладку красного кирпича и делают башню ещё более нарядной и торжественной.<br>В комплект входит подробная инструкция. Все детали легко отсоединяются и скрепляются между собой без клея. <br>Количество деталей - 33.</p><div class=\"idcodes collapse\">ID товара:23840560992<br></div>Артикул: RAZ-N-006<br>Аудитория: для всей семьи&nbsp;<br>Вид: 3D<br>Количество частей: 33<br>Марка: \"REZARK\"<br>Материал: пенополистирол<br>Объем единицы продажи, л: 1.700<br>Особенности доставки: Хрупкий груз<br>Размер: 26x15.5x37.5см<br>Рекомендуемый возраст: от 3 лет<br>Тематика: архитектура<br>Тип товара: Пазл<br>Уровень сложности: 4<br><br><span><a href=\"/action/35/\"><img src=\"\" class=\"tip\" title=\"День моделиста\" alt=\"\"></a></span><br><br></div><br><span class=\"de_14 mrrc\">МРРЦ:<strong class=\"de_16\">579</strong> руб/упак. Удельная м. опт. цена без скидки:<strong class=\"de_16\">382.57</strong> руб/упак. Наценка:<strong>51%</strong><img src=\"/i/tip.jpg\" class=\"tip\" title=\"Минимальная рекомендуемая розничная цена (МРРЦ) и процент наценки до МРРЦ от закупочной цены с учетом Вашей скидки. Мелкооптовая цена за розничную единицу продажи (удельная м. опт. цена) указана без учета Вашей скидки.\" alt=\"\"><br><a href=\"javascript:jaloby_mrrc('23840560992', 23435272062);\" title=\"\">Оставить отзыв о минимальной рекомендуемой розничной цене</a><p></p><br></span><span class=\"de_14\">Цена (мелкооптовая):<strong class=\"de_16\">382.57</strong> руб.  / упак. (от 1 упак.  одного цвета/наименования)</span><br><br><div class=\"descr inv\"><a href=\"javascript:detailwindow(23840560992,0,'');\">Подробно</a></div><p><a href=\"javascript:jaloby1('23840560992', 23435272062);\" title=\"\">Отправить запрос о применении\\цене\\качестве товара<img src=\"/i/add-review.png\" style=\"margin-bottom:-8px;\" alt=\"Отправить запрос\"></a></p><table><thead><tr><td class=\"first\">&nbsp;</td><td class=\"idcodes collapse\">&nbsp;</td><td class=\"first\"><label for=\"add-all-2\">Добавить все наименования по</label><input class=\"form-text multiname\" type=\"number\" maxlength=\"60\" size=\"60\" value=\"\" name=\"add_all\"></td><td><a class=\"point\" onclick=\"detail_multiname_set(this);\"><img alt=\"Добавить все наименования в корзину\" src=\"/i/add-to-cart-all.gif\"></a></td></tr></thead><tbody><tr class=\"details\" id=\"det23840561722\"><td class=\"first\">.</td><td class=\"idcodes collapse\">23840561722</td><td class=\"second\"><label class=\"empty\" for=\"detail23840561722\"><span class=\"green\">(Москва) в наличии</span><input id=\"detail23840561722\" type=\"number\" name=\"detail23840561722\" value=\"\" class=\"form-text detailinput\"></label></td><td class=\"last\"><a class=\"point\" title=\"Добавить в корзину\" onclick=\"add2cart(this);\"><img src=\"/i/add-to-cart.png\" alt=\"Добавить в корзину\"></a><a href=\"javascript:jaloby3('23840560992', 23435272062 , '23840561722');\" title=\"Отправить запрос о наличии\"><img src=\"/i/add-review.png\" alt=\"Оставить отзыв о наличии\"></a><img src=\"/i/new.png\"></td></tr></tbody></table></div>"]
["</div>"]
["<div class=\"product-inner collapsed\" id=\"good24364907992\">"]
[null,"<div class=\"product-legend\">"]
[null,null,"<div class=\"product-price\"><span><a href=\"/action/35/\"><img src=\"\" class=\"tip\" title=\"День моделиста\" alt=\"\"></a></span>64.32 руб. </div>"]
[null,null,"<a href=\"/opengood/24364907992/#goodopen24364907992\">\"REZARK\"   ROT-001   Пазл 3D   12.5x8x5 см  29 элемент.  </a>"]
[null,"</div>"]
[null,"<div class=\"image-preview\"><a onclick=\"detailwindow(24364907992,0,'http://images.firma-gamma.ru/100x100/6/7/g24364907992.jpg');\" style=\"cursor:pointer;\"><img class=\"img imgflowpic\" src=\"http://images.firma-gamma.ru/100x100/6/7/g24364907992.jpg\" style=\"margin:3px\" alt=\"\" rezark\"=\"\" rot-001=\"\" Пазл=\"\" 3d=\"\" 12.5x8x5=\"\" см=\"\" 29=\"\" элемент.\"=\"\" imgflow=\"http://images.firma-gamma.ru/208x208/6/7/g24364907992.jpg\"></a><a onclick=\"detailwindow(24364907992,0,'http://images.firma-gamma.ru/100x100/8/c/g24364907992p.jpg');\" style=\"cursor:pointer;\"><img class=\"img imgflowpic\" src=\"http://images.firma-gamma.ru/100x100/8/c/g24364907992p.jpg\" style=\"margin:3px\" alt=\"\" rezark\"=\"\" rot-001=\"\" Пазл=\"\" 3d=\"\" 12.5x8x5=\"\" см=\"\" 29=\"\" элемент.\"=\"\" imgflow=\"http://images.firma-gamma.ru/208x208/8/c/g24364907992p.jpg\"></a><a onclick=\"detailwindow(24364907992,0,'http://images.firma-gamma.ru/100x100/f/c/g24364907992u.jpg');\" style=\"cursor:pointer;\"><img class=\"img imgflowpic\" src=\"http://images.firma-gamma.ru/100x100/f/c/g24364907992u.jpg\" style=\"margin:3px\" alt=\"\" rezark\"=\"\" rot-001=\"\" Пазл=\"\" 3d=\"\" 12.5x8x5=\"\" см=\"\" 29=\"\" элемент.\"=\"\" imgflow=\"http://images.firma-gamma.ru/208x208/f/c/g24364907992u.jpg\"></a></div>"]
[null,"<div class=\"product-body\"><div class=\"descr\"><p>Торговая марка «REZARK» представляет недорогие детские развивающие наборы для сборки 3D-пазлов. <br>В каждый набор входит пошаговая инструкция на русском языке.                                     <br>Пазлы представляют собой небольшие сборные 3D модели из плоских фанерных деталей. <br>Толщина фанеры 3 мм.<br>Для сборки моделей не требуется клей или клеевые материалы. <br>Детали пазлов фиксируются между собой с помощью пазов.<br>Рекомендуемы возраст: от трех лет.</p><div class=\"idcodes collapse\">ID товара:24364907992<br></div>Артикул: ROT-001<br>Аудитория: для мальчиков<br>Вид: 3D<br>Количество частей: 29<br>Марка: \"REZARK\"<br>Объем единицы продажи, л: 0.190<br>Размер: 12.5x8x5<br>Рекомендуемый возраст: от 3 лет<br>Тематика: транспорт<br>Тип товара: Пазл<br><br><span><a href=\"/action/35/\"><img src=\"\" class=\"tip\" title=\"День моделиста\" alt=\"\"></a></span><br><br></div><br><span class=\"de_14 mrrc\">МРРЦ:<strong class=\"de_16\">146</strong> руб/упак. Удельная м. опт. цена без скидки:<strong class=\"de_16\">64.32</strong> руб/упак. Наценка:<strong>127%</strong><img src=\"/i/tip.jpg\" class=\"tip\" title=\"Минимальная рекомендуемая розничная цена (МРРЦ) и процент наценки до МРРЦ от закупочной цены с учетом Вашей скидки. Мелкооптовая цена за розничную единицу продажи (удельная м. опт. цена) указана без учета Вашей скидки.\" alt=\"\"><br><a href=\"javascript:jaloby_mrrc('24364907992', 23435272062);\" title=\"\">Оставить отзыв о минимальной рекомендуемой розничной цене</a><p></p><br></span><span class=\"de_14\">Цена (мелкооптовая):<strong class=\"de_16\">64.32</strong> руб.  / упак. (от 1 упак.  одного цвета/наименования)</span><br><br><div class=\"descr inv\"><a href=\"javascript:detailwindow(24364907992,0,'');\">Подробно</a></div><p><a href=\"javascript:jaloby1('24364907992', 23435272062);\" title=\"\">Отправить запрос о применении\\цене\\качестве товара<img src=\"/i/add-review.png\" style=\"margin-bottom:-8px;\" alt=\"Отправить запрос\"></a></p><table><thead><tr><td class=\"first\">&nbsp;</td><td class=\"idcodes collapse\">&nbsp;</td><td class=\"first\"><label for=\"add-all-2\">Добавить все наименования по</label><input class=\"form-text multiname\" type=\"number\" maxlength=\"60\" size=\"60\" value=\"\" name=\"add_all\"></td><td><a class=\"point\" onclick=\"detail_multiname_set(this);\"><img alt=\"Добавить все наименования в корзину\" src=\"/i/add-to-cart-all.gif\"></a></td></tr></thead><tbody><tr class=\"details\" id=\"det24364908722\"><td class=\"first\">кабриолет</td><td class=\"idcodes collapse\">24364908722</td><td class=\"second\"><label class=\"empty\" for=\"detail24364908722\"><span class=\"green\">(Москва) в наличии</span><input id=\"detail24364908722\" type=\"number\" name=\"detail24364908722\" value=\"\" class=\"form-text detailinput\"></label></td><td class=\"last\"><a class=\"point\" title=\"Добавить в корзину\" onclick=\"add2cart(this);\"><img src=\"/i/add-to-cart.png\" alt=\"Добавить в корзину\"></a><a href=\"javascript:jaloby3('24364907992', 23435272062 , '24364908722');\" title=\"Отправить запрос о наличии\"><img src=\"/i/add-review.png\" alt=\"Оставить отзыв о наличии\"></a></td></tr></tbody></table></div>"]
["</div>"]
["<div class=\"product-inner collapsed\" id=\"good24367637452\">"]
[null,"<div class=\"product-legend\">"]
[null,null,"<div class=\"product-price\"><span><a href=\"/action/35/\"><img src=\"\" class=\"tip\" title=\"День моделиста\" alt=\"\"></a></span>103.18 руб. </div>"]
[null,null,"<a href=\"/opengood/24367637452/#goodopen24367637452\">\"REZARK\"   ROT-002   Пазл 3D   16x8.5x11.5 см  26 элемент.  </a>"]
[null,"</div>"]
[null,"<div class=\"image-preview\"><a onclick=\"detailwindow(24367637452,0,'http://images.firma-gamma.ru/100x100/2/3/g24367637452.jpg');\" style=\"cursor:pointer;\"><img class=\"img imgflowpic\" src=\"http://images.firma-gamma.ru/100x100/2/3/g24367637452.jpg\" style=\"margin:3px\" alt=\"\" rezark\"=\"\" rot-002=\"\" Пазл=\"\" 3d=\"\" 16x8.5x11.5=\"\" см=\"\" 26=\"\" элемент.\"=\"\" imgflow=\"http://images.firma-gamma.ru/208x208/2/3/g24367637452.jpg\"></a><a onclick=\"detailwindow(24367637452,0,'http://images.firma-gamma.ru/100x100/0/a/g24367637452p.jpg');\" style=\"cursor:pointer;\"><img class=\"img imgflowpic\" src=\"http://images.firma-gamma.ru/100x100/0/a/g24367637452p.jpg\" style=\"margin:3px\" alt=\"\" rezark\"=\"\" rot-002=\"\" Пазл=\"\" 3d=\"\" 16x8.5x11.5=\"\" см=\"\" 26=\"\" элемент.\"=\"\" imgflow=\"http://images.firma-gamma.ru/208x208/0/a/g24367637452p.jpg\"></a></div>"]
[null,"<div class=\"product-body\"><div class=\"descr\"><p>Торговая марка «REZARK» представляет недорогие детские развивающие наборы для сборки 3D-пазлов. <br>В каждый набор входит пошаговая инструкция на русском языке.                                     <br>Пазлы представляют собой небольшие сборные 3D модели из плоских фанерных деталей. <br>Толщина фанеры 3 мм.<br>Для сборки моделей не требуется клей или клеевые материалы. <br>Детали пазлов фиксируются между собой с помощью пазов.<br>Рекомендуемы возраст: от трех лет.</p><div class=\"idcodes collapse\">ID товара:24367637452<br></div>Артикул: ROT-002<br>Аудитория: для детей<br>Вид: 3D<br>Количество частей: 26<br>Марка: \"REZARK\"<br>Объем единицы продажи, л: 0.379<br>Размер: 16x8.5x11.5<br>Рекомендуемый возраст: от 3 лет<br>Тематика: природа<br>Тип товара: Пазл<br><br><span><a href=\"/action/35/\"><img src=\"\" class=\"tip\" title=\"День моделиста\" alt=\"\"></a></span><br><br></div><br><span class=\"de_14 mrrc\">МРРЦ:<strong class=\"de_16\">223</strong> руб/упак. Удельная м. опт. цена без скидки:<strong class=\"de_16\">103.18</strong> руб/упак. Наценка:<strong>116%</strong><img src=\"/i/tip.jpg\" class=\"tip\" title=\"Минимальная рекомендуемая розничная цена (МРРЦ) и процент наценки до МРРЦ от закупочной цены с учетом Вашей скидки. Мелкооптовая цена за розничную единицу продажи (удельная м. опт. цена) указана без учета Вашей скидки.\" alt=\"\"><br><a href=\"javascript:jaloby_mrrc('24367637452', 23435272062);\" title=\"\">Оставить отзыв о минимальной рекомендуемой розничной цене</a><p></p><br></span><span class=\"de_14\">Цена (мелкооптовая):<strong class=\"de_16\">103.18</strong> руб.  / упак. (от 1 упак.  одного цвета/наименования)</span><br><br><div class=\"descr inv\"><a href=\"javascript:detailwindow(24367637452,0,'');\">Подробно</a></div><p><a href=\"javascript:jaloby1('24367637452', 23435272062);\" title=\"\">Отправить запрос о применении\\цене\\качестве товара<img src=\"/i/add-review.png\" style=\"margin-bottom:-8px;\" alt=\"Отправить запрос\"></a></p><table><thead><tr><td class=\"first\">&nbsp;</td><td class=\"idcodes collapse\">&nbsp;</td><td class=\"first\"><label for=\"add-all-2\">Добавить все наименования по</label><input class=\"form-text multiname\" type=\"number\" maxlength=\"60\" size=\"60\" value=\"\" name=\"add_all\"></td><td><a class=\"point\" onclick=\"detail_multiname_set(this);\"><img alt=\"Добавить все наименования в корзину\" src=\"/i/add-to-cart-all.gif\"></a></td></tr></thead><tbody><tr class=\"details\" id=\"det24367637622\"><td class=\"first\">лебедь</td><td class=\"idcodes collapse\">24367637622</td><td class=\"second\"><label class=\"empty\" for=\"detail24367637622\"><span class=\"green\">(Москва) в наличии</span><input id=\"detail24367637622\" type=\"number\" name=\"detail24367637622\" value=\"\" class=\"form-text detailinput\"></label></td><td class=\"last\"><a class=\"point\" title=\"Добавить в корзину\" onclick=\"add2cart(this);\"><img src=\"/i/add-to-cart.png\" alt=\"Добавить в корзину\"></a><a href=\"javascript:jaloby3('24367637452', 23435272062 , '24367637622');\" title=\"Отправить запрос о наличии\"><img src=\"/i/add-review.png\" alt=\"Оставить отзыв о наличии\"></a></td></tr></tbody></table></div>"]
["</div>"]
["<div class=\"product-inner collapsed\" id=\"good24367633802\">"]
[null,"<div class=\"product-legend\">"]
[null,null,"<div class=\"product-price\"><span><a href=\"/action/35/\"><img src=\"\" class=\"tip\" title=\"День моделиста\" alt=\"\"></a></span>103.18 руб. </div>"]
[null,null,"<a href=\"/opengood/24367633802/#goodopen24367633802\">\"REZARK\"   ROT-003   Пазл 3D   10x20.5x17.5 см  40 элемент.  </a>"]
[null,"</div>"]
[null,"<div class=\"image-preview\"><a onclick=\"detailwindow(24367633802,0,'http://images.firma-gamma.ru/100x100/8/3/g24367633802.jpg');\" style=\"cursor:pointer;\"><img class=\"img imgflowpic\" src=\"http://images.firma-gamma.ru/100x100/8/3/g24367633802.jpg\" style=\"margin:3px\" alt=\"\" rezark\"=\"\" rot-003=\"\" Пазл=\"\" 3d=\"\" 10x20.5x17.5=\"\" см=\"\" 40=\"\" элемент.\"=\"\" imgflow=\"http://images.firma-gamma.ru/208x208/8/3/g24367633802.jpg\"></a><a onclick=\"detailwindow(24367633802,0,'http://images.firma-gamma.ru/100x100/e/6/g24367633802p.jpg');\" style=\"cursor:pointer;\"><img class=\"img imgflowpic\" src=\"http://images.firma-gamma.ru/100x100/e/6/g24367633802p.jpg\" style=\"margin:3px\" alt=\"\" rezark\"=\"\" rot-003=\"\" Пазл=\"\" 3d=\"\" 10x20.5x17.5=\"\" см=\"\" 40=\"\" элемент.\"=\"\" imgflow=\"http://images.firma-gamma.ru/208x208/e/6/g24367633802p.jpg\"></a></div>"]
[null,"<div class=\"product-body\"><div class=\"descr\"><p>Торговая марка «REZARK» представляет недорогие детские развивающие наборы для сборки 3D-пазлов. <br>В каждый набор входит пошаговая инструкция на русском языке.                                     <br>Пазлы представляют собой небольшие сборные 3D модели из плоских фанерных деталей. <br>Толщина фанеры 3 мм.<br>Для сборки моделей не требуется клей или клеевые материалы. <br>Детали пазлов фиксируются между собой с помощью пазов.<br>Рекомендуемы возраст: от трех лет.</p><div class=\"idcodes collapse\">ID товара:24367633802<br></div>Артикул: ROT-003<br>Аудитория: для детей<br>Вид: 3D<br>Количество частей: 40<br>Марка: \"REZARK\"<br>Объем единицы продажи, л: 0.379<br>Размер: 10x20.5x17.5<br>Рекомендуемый возраст: от 3 лет<br>Тематика: природа<br>Тип товара: Пазл<br><br><span><a href=\"/action/35/\"><img src=\"\" class=\"tip\" title=\"День моделиста\" alt=\"\"></a></span><br><br></div><br><span class=\"de_14 mrrc\">МРРЦ:<strong class=\"de_16\">240</strong> руб/упак. Удельная м. опт. цена без скидки:<strong class=\"de_16\">103.18</strong> руб/упак. Наценка:<strong>133%</strong><img src=\"/i/tip.jpg\" class=\"tip\" title=\"Минимальная рекомендуемая розничная цена (МРРЦ) и процент наценки до МРРЦ от закупочной цены с учетом Вашей скидки. Мелкооптовая цена за розничную единицу продажи (удельная м. опт. цена) указана без учета Вашей скидки.\" alt=\"\"><br><a href=\"javascript:jaloby_mrrc('24367633802', 23435272062);\" title=\"\">Оставить отзыв о минимальной рекомендуемой розничной цене</a><p></p><br></span><span class=\"de_14\">Цена (мелкооптовая):<strong class=\"de_16\">103.18</strong> руб.  / упак. (от 1 упак.  одного цвета/наименования)</span><br><br><div class=\"descr inv\"><a href=\"javascript:detailwindow(24367633802,0,'');\">Подробно</a></div><p><a href=\"javascript:jaloby1('24367633802', 23435272062);\" title=\"\">Отправить запрос о применении\\цене\\качестве товара<img src=\"/i/add-review.png\" style=\"margin-bottom:-8px;\" alt=\"Отправить запрос\"></a></p><table><thead><tr><td class=\"first\">&nbsp;</td><td class=\"idcodes collapse\">&nbsp;</td><td class=\"first\"><label for=\"add-all-2\">Добавить все наименования по</label><input class=\"form-text multiname\" type=\"number\" maxlength=\"60\" size=\"60\" value=\"\" name=\"add_all\"></td><td><a class=\"point\" onclick=\"detail_multiname_set(this);\"><img alt=\"Добавить все наименования в корзину\" src=\"/i/add-to-cart-all.gif\"></a></td></tr></thead><tbody><tr class=\"details\" id=\"det24367634652\"><td class=\"first\">павлин</td><td class=\"idcodes collapse\">24367634652</td><td class=\"second\"><label class=\"empty\" for=\"detail24367634652\"><span class=\"green\">(Москва) в наличии</span><input id=\"detail24367634652\" type=\"number\" name=\"detail24367634652\" value=\"\" class=\"form-text detailinput\"></label></td><td class=\"last\"><a class=\"point\" title=\"Добавить в корзину\" onclick=\"add2cart(this);\"><img src=\"/i/add-to-cart.png\" alt=\"Добавить в корзину\"></a><a href=\"javascript:jaloby3('24367633802', 23435272062 , '24367634652');\" title=\"Отправить запрос о наличии\"><img src=\"/i/add-review.png\" alt=\"Оставить отзыв о наличии\"></a></td></tr></tbody></table></div>"]
["</div>"]
["<div class=\"product-inner collapsed\" id=\"good24360758692\">"]
[null,"<div class=\"product-legend\">"]
[null,null,"<div class=\"product-price\"><span><a href=\"/action/35/\"><img src=\"\" class=\"tip\" title=\"День моделиста\" alt=\"\"></a></span>103.18 руб. </div>"]
[null,null,"<a href=\"/opengood/24360758692/#goodopen24360758692\">\"REZARK\"   ROT-004   Пазл 3D   13.5x7.5x7 см  38 элемент.  </a>"]
[null,"</div>"]
[null,"<div class=\"image-preview\"><a onclick=\"detailwindow(24360758692,0,'http://images.firma-gamma.ru/100x100/7/2/g24360758692.jpg');\" style=\"cursor:pointer;\"><img class=\"img imgflowpic\" src=\"http://images.firma-gamma.ru/100x100/7/2/g24360758692.jpg\" style=\"margin:3px\" alt=\"\" rezark\"=\"\" rot-004=\"\" Пазл=\"\" 3d=\"\" 13.5x7.5x7=\"\" см=\"\" 38=\"\" элемент.\"=\"\" imgflow=\"http://images.firma-gamma.ru/208x208/7/2/g24360758692.jpg\"></a><a onclick=\"detailwindow(24360758692,0,'http://images.firma-gamma.ru/100x100/6/c/g24360758692l.jpg');\" style=\"cursor:pointer;\"><img class=\"img imgflowpic\" src=\"http://images.firma-gamma.ru/100x100/6/c/g24360758692l.jpg\" style=\"margin:3px\" alt=\"\" rezark\"=\"\" rot-004=\"\" Пазл=\"\" 3d=\"\" 13.5x7.5x7=\"\" см=\"\" 38=\"\" элемент.\"=\"\" imgflow=\"http://images.firma-gamma.ru/208x208/6/c/g24360758692l.jpg\"></a><a onclick=\"detailwindow(24360758692,0,'http://images.firma-gamma.ru/100x100/1/c/g24360758692p.jpg');\" style=\"cursor:pointer;\"><img class=\"img imgflowpic\" src=\"http://images.firma-gamma.ru/100x100/1/c/g24360758692p.jpg\" style=\"margin:3px\" alt=\"\" rezark\"=\"\" rot-004=\"\" Пазл=\"\" 3d=\"\" 13.5x7.5x7=\"\" см=\"\" 38=\"\" элемент.\"=\"\" imgflow=\"http://images.firma-gamma.ru/208x208/1/c/g24360758692p.jpg\"></a><a onclick=\"detailwindow(24360758692,0,'http://images.firma-gamma.ru/100x100/2/3/g24360758692u.jpg');\" style=\"cursor:pointer;\"><img class=\"img imgflowpic\" src=\"http://images.firma-gamma.ru/100x100/2/3/g24360758692u.jpg\" style=\"margin:3px\" alt=\"\" rezark\"=\"\" rot-004=\"\" Пазл=\"\" 3d=\"\" 13.5x7.5x7=\"\" см=\"\" 38=\"\" элемент.\"=\"\" imgflow=\"http://images.firma-gamma.ru/208x208/2/3/g24360758692u.jpg\"></a></div>"]
[null,"<div class=\"product-body\"><div class=\"descr\"><p>Торговая марка «REZARK» представляет недорогие детские развивающие наборы для сборки 3D-пазлов. <br>В каждый набор входит пошаговая инструкция на русском языке.                                     <br>Пазлы представляют собой небольшие сборные 3D модели из плоских фанерных деталей. <br>Толщина фанеры 3 мм.<br>Для сборки моделей не требуется клей или клеевые материалы. <br>Детали пазлов фиксируются между собой с помощью пазов.<br>Рекомендуемы возраст: от трех лет.</p><div class=\"idcodes collapse\">ID товара:24360758692<br></div>Артикул: ROT-004<br>Аудитория: для мальчиков<br>Вид: 3D<br>Количество частей: 38<br>Марка: \"REZARK\"<br>Объем единицы продажи, л: 0.379<br>Размер: 13.5x7.5x7<br>Рекомендуемый возраст: от 3 лет<br>Тематика: транспорт<br>Тип товара: Пазл<br><br><span><a href=\"/action/35/\"><img src=\"\" class=\"tip\" title=\"День моделиста\" alt=\"\"></a></span><br><br></div><br><span class=\"de_14 mrrc\">МРРЦ:<strong class=\"de_16\">235</strong> руб/упак. Удельная м. опт. цена без скидки:<strong class=\"de_16\">103.18</strong> руб/упак. Наценка:<strong>128%</strong><img src=\"/i/tip.jpg\" class=\"tip\" title=\"Минимальная рекомендуемая розничная цена (МРРЦ) и процент наценки до МРРЦ от закупочной цены с учетом Вашей скидки. Мелкооптовая цена за розничную единицу продажи (удельная м. опт. цена) указана без учета Вашей скидки.\" alt=\"\"><br><a href=\"javascript:jaloby_mrrc('24360758692', 23435272062);\" title=\"\">Оставить отзыв о минимальной рекомендуемой розничной цене</a><p></p><br></span><span class=\"de_14\">Цена (мелкооптовая):<strong class=\"de_16\">103.18</strong> руб.  / упак. (от 1 упак.  одного цвета/наименования)</span><br><br><div class=\"descr inv\"><a href=\"javascript:detailwindow(24360758692,0,'');\">Подробно</a></div><p><a href=\"javascript:jaloby1('24360758692', 23435272062);\" title=\"\">Отправить запрос о применении\\цене\\качестве товара<img src=\"/i/add-review.png\" style=\"margin-bottom:-8px;\" alt=\"Отправить запрос\"></a></p><table><thead><tr><td class=\"first\">&nbsp;</td><td class=\"idcodes collapse\">&nbsp;</td><td class=\"first\"><label for=\"add-all-2\">Добавить все наименования по</label><input class=\"form-text multiname\" type=\"number\" maxlength=\"60\" size=\"60\" value=\"\" name=\"add_all\"></td><td><a class=\"point\" onclick=\"detail_multiname_set(this);\"><img alt=\"Добавить все наименования в корзину\" src=\"/i/add-to-cart-all.gif\"></a></td></tr></thead><tbody><tr class=\"details\" id=\"det24360761382\"><td class=\"first\">джип</td><td class=\"idcodes collapse\">24360761382</td><td class=\"second\"><label class=\"empty\" for=\"detail24360761382\"><span class=\"green\">(Москва) в наличии</span><input id=\"detail24360761382\" type=\"number\" name=\"detail24360761382\" value=\"\" class=\"form-text detailinput\"></label></td><td class=\"last\"><a class=\"point\" title=\"Добавить в корзину\" onclick=\"add2cart(this);\"><img src=\"/i/add-to-cart.png\" alt=\"Добавить в корзину\"></a><a href=\"javascript:jaloby3('24360758692', 23435272062 , '24360761382');\" title=\"Отправить запрос о наличии\"><img src=\"/i/add-review.png\" alt=\"Оставить отзыв о наличии\"></a></td></tr></tbody></table></div>"]
["</div>"]
["<div class=\"product-inner collapsed\" id=\"good24367655852\">"]
[null,"<div class=\"product-legend\">"]
[null,null,"<div class=\"product-price\"><span><a href=\"/action/35/\"><img src=\"\" class=\"tip\" title=\"День моделиста\" alt=\"\"></a></span>103.18 руб. </div>"]
[null,null,"<a href=\"/opengood/24367655852/#goodopen24367655852\">\"REZARK\"   ROT-005   Пазл 3D   26x26.5x14 см  32 элемент.  </a>"]
[null,"</div>"]
[null,"<div class=\"image-preview\"><a onclick=\"detailwindow(24367655852,0,'http://images.firma-gamma.ru/100x100/8/8/g24367655852.jpg');\" style=\"cursor:pointer;\"><img class=\"img imgflowpic\" src=\"http://images.firma-gamma.ru/100x100/8/8/g24367655852.jpg\" style=\"margin:3px\" alt=\"\" rezark\"=\"\" rot-005=\"\" Пазл=\"\" 3d=\"\" 26x26.5x14=\"\" см=\"\" 32=\"\" элемент.\"=\"\" imgflow=\"http://images.firma-gamma.ru/208x208/8/8/g24367655852.jpg\"></a><a onclick=\"detailwindow(24367655852,0,'http://images.firma-gamma.ru/100x100/8/c/g24367655852p.jpg');\" style=\"cursor:pointer;\"><img class=\"img imgflowpic\" src=\"http://images.firma-gamma.ru/100x100/8/c/g24367655852p.jpg\" style=\"margin:3px\" alt=\"\" rezark\"=\"\" rot-005=\"\" Пазл=\"\" 3d=\"\" 26x26.5x14=\"\" см=\"\" 32=\"\" элемент.\"=\"\" imgflow=\"http://images.firma-gamma.ru/208x208/8/c/g24367655852p.jpg\"></a></div>"]
[null,"<div class=\"product-body\"><div class=\"descr\"><p>Торговая марка «REZARK» представляет недорогие детские развивающие наборы для сборки 3D-пазлов. <br>В каждый набор входит пошаговая инструкция на русском языке.                                     <br>Пазлы представляют собой небольшие сборные 3D модели из плоских фанерных деталей. <br>Толщина фанеры 3 мм.<br>Для сборки моделей не требуется клей или клеевые материалы. <br>Детали пазлов фиксируются между собой с помощью пазов.<br>Рекомендуемы возраст: от трех лет.</p><div class=\"idcodes collapse\">ID товара:24367655852<br></div>Артикул: ROT-005<br>Аудитория: для мальчиков<br>Вид: 3D<br>Количество частей: 32<br>Марка: \"REZARK\"<br>Объем единицы продажи, л: 0.379<br>Размер: 26x26.5x14<br>Рекомендуемый возраст: от 3 лет<br>Тематика: транспорт<br>Тип товара: Пазл<br><br><span><a href=\"/action/35/\"><img src=\"\" class=\"tip\" title=\"День моделиста\" alt=\"\"></a></span><br><br></div><br><span class=\"de_14 mrrc\">МРРЦ:<strong class=\"de_16\">240</strong> руб/упак. Удельная м. опт. цена без скидки:<strong class=\"de_16\">103.18</strong> руб/упак. Наценка:<strong>133%</strong><img src=\"/i/tip.jpg\" class=\"tip\" title=\"Минимальная рекомендуемая розничная цена (МРРЦ) и процент наценки до МРРЦ от закупочной цены с учетом Вашей скидки. Мелкооптовая цена за розничную единицу продажи (удельная м. опт. цена) указана без учета Вашей скидки.\" alt=\"\"><br><a href=\"javascript:jaloby_mrrc('24367655852', 23435272062);\" title=\"\">Оставить отзыв о минимальной рекомендуемой розничной цене</a><p></p><br></span><span class=\"de_14\">Цена (мелкооптовая):<strong class=\"de_16\">103.18</strong> руб.  / упак. (от 1 упак.  одного цвета/наименования)</span><br><br><div class=\"descr inv\"><a href=\"javascript:detailwindow(24367655852,0,'');\">Подробно</a></div><p><a href=\"javascript:jaloby1('24367655852', 23435272062);\" title=\"\">Отправить запрос о применении\\цене\\качестве товара<img src=\"/i/add-review.png\" style=\"margin-bottom:-8px;\" alt=\"Отправить запрос\"></a></p><table><thead><tr><td class=\"first\">&nbsp;</td><td class=\"idcodes collapse\">&nbsp;</td><td class=\"first\"><label for=\"add-all-2\">Добавить все наименования по</label><input class=\"form-text multiname\" type=\"number\" maxlength=\"60\" size=\"60\" value=\"\" name=\"add_all\"></td><td><a class=\"point\" onclick=\"detail_multiname_set(this);\"><img alt=\"Добавить все наименования в корзину\" src=\"/i/add-to-cart-all.gif\"></a></td></tr></thead><tbody><tr class=\"details\" id=\"det24367656432\"><td class=\"first\">вертолет</td><td class=\"idcodes collapse\">24367656432</td><td class=\"second\"><label class=\"empty\" for=\"detail24367656432\"><span class=\"green\">(Москва) в наличии</span><input id=\"detail24367656432\" type=\"number\" name=\"detail24367656432\" value=\"\" class=\"form-text detailinput\"></label></td><td class=\"last\"><a class=\"point\" title=\"Добавить в корзину\" onclick=\"add2cart(this);\"><img src=\"/i/add-to-cart.png\" alt=\"Добавить в корзину\"></a><a href=\"javascript:jaloby3('24367655852', 23435272062 , '24367656432');\" title=\"Отправить запрос о наличии\"><img src=\"/i/add-review.png\" alt=\"Оставить отзыв о наличии\"></a></td></tr></tbody></table></div>"]
["</div>"]
["<div class=\"product-inner collapsed\" id=\"good24367655222\">"]
[null,"<div class=\"product-legend\">"]
[null,null,"<div class=\"product-price\"><span><a href=\"/action/35/\"><img src=\"\" class=\"tip\" title=\"День моделиста\" alt=\"\"></a></span>103.18 руб. </div>"]
[null,null,"<a href=\"/opengood/24367655222/#goodopen24367655222\">\"REZARK\"   ROT-006   Пазл 3D   15x8.5x6 см  47 элемент.  </a>"]
[null,"</div>"]
[null,"<div class=\"image-preview\"><a onclick=\"detailwindow(24367655222,0,'http://images.firma-gamma.ru/100x100/4/2/g24367655222.jpg');\" style=\"cursor:pointer;\"><img class=\"img imgflowpic\" src=\"http://images.firma-gamma.ru/100x100/4/2/g24367655222.jpg\" style=\"margin:3px\" alt=\"\" rezark\"=\"\" rot-006=\"\" Пазл=\"\" 3d=\"\" 15x8.5x6=\"\" см=\"\" 47=\"\" элемент.\"=\"\" imgflow=\"http://images.firma-gamma.ru/208x208/4/2/g24367655222.jpg\"></a><a onclick=\"detailwindow(24367655222,0,'http://images.firma-gamma.ru/100x100/3/b/g24367655222p.jpg');\" style=\"cursor:pointer;\"><img class=\"img imgflowpic\" src=\"http://images.firma-gamma.ru/100x100/3/b/g24367655222p.jpg\" style=\"margin:3px\" alt=\"\" rezark\"=\"\" rot-006=\"\" Пазл=\"\" 3d=\"\" 15x8.5x6=\"\" см=\"\" 47=\"\" элемент.\"=\"\" imgflow=\"http://images.firma-gamma.ru/208x208/3/b/g24367655222p.jpg\"></a></div>"]
[null,"<div class=\"product-body\"><div class=\"descr\"><p>Торговая марка «REZARK» представляет недорогие детские развивающие наборы для сборки 3D-пазлов. <br>В каждый набор входит пошаговая инструкция на русском языке.                                     <br>Пазлы представляют собой небольшие сборные 3D модели из плоских фанерных деталей. <br>Толщина фанеры 3 мм.<br>Для сборки моделей не требуется клей или клеевые материалы. <br>Детали пазлов фиксируются между собой с помощью пазов.<br>Рекомендуемы возраст: от трех лет.</p><div class=\"idcodes collapse\">ID товара:24367655222<br></div>Артикул: ROT-006<br>Аудитория: для мальчиков<br>Вид: 3D<br>Количество частей: 47<br>Марка: \"REZARK\"<br>Объем единицы продажи, л: 0.379<br>Размер: 15x8.5x6<br>Рекомендуемый возраст: от 3 лет<br>Тематика: военная<br>Тип товара: Пазл<br><br><span><a href=\"/action/35/\"><img src=\"\" class=\"tip\" title=\"День моделиста\" alt=\"\"></a></span><br><br></div><br><span class=\"de_14 mrrc\">МРРЦ:<strong class=\"de_16\">240</strong> руб/упак. Удельная м. опт. цена без скидки:<strong class=\"de_16\">103.18</strong> руб/упак. Наценка:<strong>133%</strong><img src=\"/i/tip.jpg\" class=\"tip\" title=\"Минимальная рекомендуемая розничная цена (МРРЦ) и процент наценки до МРРЦ от закупочной цены с учетом Вашей скидки. Мелкооптовая цена за розничную единицу продажи (удельная м. опт. цена) указана без учета Вашей скидки.\" alt=\"\"><br><a href=\"javascript:jaloby_mrrc('24367655222', 23435272062);\" title=\"\">Оставить отзыв о минимальной рекомендуемой розничной цене</a><p></p><br></span><span class=\"de_14\">Цена (мелкооптовая):<strong class=\"de_16\">103.18</strong> руб.  / упак. (от 1 упак.  одного цвета/наименования)</span><br><br><div class=\"descr inv\"><a href=\"javascript:detailwindow(24367655222,0,'');\">Подробно</a></div><p><a href=\"javascript:jaloby1('24367655222', 23435272062);\" title=\"\">Отправить запрос о применении\\цене\\качестве товара<img src=\"/i/add-review.png\" style=\"margin-bottom:-8px;\" alt=\"Отправить запрос\"></a></p><table><thead><tr><td class=\"first\">&nbsp;</td><td class=\"idcodes collapse\">&nbsp;</td><td class=\"first\"><label for=\"add-all-2\">Добавить все наименования по</label><input class=\"form-text multiname\" type=\"number\" maxlength=\"60\" size=\"60\" value=\"\" name=\"add_all\"></td><td><a class=\"point\" onclick=\"detail_multiname_set(this);\"><img alt=\"Добавить все наименования в корзину\" src=\"/i/add-to-cart-all.gif\"></a></td></tr></thead><tbody><tr class=\"details\" id=\"det24367655412\"><td class=\"first\">танк</td><td class=\"idcodes collapse\">24367655412</td><td class=\"second\"><label class=\"empty\" for=\"detail24367655412\"><span class=\"green\">(Москва) в наличии</span><input id=\"detail24367655412\" type=\"number\" name=\"detail24367655412\" value=\"\" class=\"form-text detailinput\"></label></td><td class=\"last\"><a class=\"point\" title=\"Добавить в корзину\" onclick=\"add2cart(this);\"><img src=\"/i/add-to-cart.png\" alt=\"Добавить в корзину\"></a><a href=\"javascript:jaloby3('24367655222', 23435272062 , '24367655412');\" title=\"Отправить запрос о наличии\"><img src=\"/i/add-review.png\" alt=\"Оставить отзыв о наличии\"></a></td></tr></tbody></table></div>"]
["</div>"]
["<div class=\"product-inner collapsed\" id=\"good24367649032\">"]
[null,"<div class=\"product-legend\">"]
[null,null,"<div class=\"product-price\"><span><a href=\"/action/35/\"><img src=\"\" class=\"tip\" title=\"День моделиста\" alt=\"\"></a></span>103.18 руб. </div>"]
[null,null,"<a href=\"/opengood/24367649032/#goodopen24367649032\">\"REZARK\"   ROT-007   Пазл 3D   13x9x6 см  33 элемент.  </a>"]
[null,"</div>"]
[null,"<div class=\"image-preview\"><a onclick=\"detailwindow(24367649032,0,'http://images.firma-gamma.ru/100x100/9/5/g24367649032.jpg');\" style=\"cursor:pointer;\"><img class=\"img imgflowpic\" src=\"http://images.firma-gamma.ru/100x100/9/5/g24367649032.jpg\" style=\"margin:3px\" alt=\"\" rezark\"=\"\" rot-007=\"\" Пазл=\"\" 3d=\"\" 13x9x6=\"\" см=\"\" 33=\"\" элемент.\"=\"\" imgflow=\"http://images.firma-gamma.ru/208x208/9/5/g24367649032.jpg\"></a><a onclick=\"detailwindow(24367649032,0,'http://images.firma-gamma.ru/100x100/7/f/g24367649032p.jpg');\" style=\"cursor:pointer;\"><img class=\"img imgflowpic\" src=\"http://images.firma-gamma.ru/100x100/7/f/g24367649032p.jpg\" style=\"margin:3px\" alt=\"\" rezark\"=\"\" rot-007=\"\" Пазл=\"\" 3d=\"\" 13x9x6=\"\" см=\"\" 33=\"\" элемент.\"=\"\" imgflow=\"http://images.firma-gamma.ru/208x208/7/f/g24367649032p.jpg\"></a><a onclick=\"detailwindow(24367649032,0,'http://images.firma-gamma.ru/100x100/3/2/g24367649032u.jpg');\" style=\"cursor:pointer;\"><img class=\"img imgflowpic\" src=\"http://images.firma-gamma.ru/100x100/3/2/g24367649032u.jpg\" style=\"margin:3px\" alt=\"\" rezark\"=\"\" rot-007=\"\" Пазл=\"\" 3d=\"\" 13x9x6=\"\" см=\"\" 33=\"\" элемент.\"=\"\" imgflow=\"http://images.firma-gamma.ru/208x208/3/2/g24367649032u.jpg\"></a></div>"]
[null,"<div class=\"product-body\"><div class=\"descr\"><p>Торговая марка «REZARK» представляет недорогие детские развивающие наборы для сборки 3D-пазлов. <br>В каждый набор входит пошаговая инструкция на русском языке.                                     <br>Пазлы представляют собой небольшие сборные 3D модели из плоских фанерных деталей. <br>Толщина фанеры 3 мм.<br>Для сборки моделей не требуется клей или клеевые материалы. <br>Детали пазлов фиксируются между собой с помощью пазов.<br>Рекомендуемы возраст: от трех лет.</p><div class=\"idcodes collapse\">ID товара:24367649032<br></div>Артикул: ROT-007<br>Аудитория: для мальчиков<br>Вид: 3D<br>Количество частей: 33<br>Марка: \"REZARK\"<br>Объем единицы продажи, л: 0.379<br>Размер: 13x9x6<br>Рекомендуемый возраст: от 3 лет<br>Тематика: транспорт<br>Тип товара: Пазл<br><br><span><a href=\"/action/35/\"><img src=\"\" class=\"tip\" title=\"День моделиста\" alt=\"\"></a></span><br><br></div><br><span class=\"de_14 mrrc\">МРРЦ:<strong class=\"de_16\">240</strong> руб/упак. Удельная м. опт. цена без скидки:<strong class=\"de_16\">103.18</strong> руб/упак. Наценка:<strong>133%</strong><img src=\"/i/tip.jpg\" class=\"tip\" title=\"Минимальная рекомендуемая розничная цена (МРРЦ) и процент наценки до МРРЦ от закупочной цены с учетом Вашей скидки. Мелкооптовая цена за розничную единицу продажи (удельная м. опт. цена) указана без учета Вашей скидки.\" alt=\"\"><br><a href=\"javascript:jaloby_mrrc('24367649032', 23435272062);\" title=\"\">Оставить отзыв о минимальной рекомендуемой розничной цене</a><p></p><br></span><span class=\"de_14\">Цена (мелкооптовая):<strong class=\"de_16\">103.18</strong> руб.  / упак. (от 1 упак.  одного цвета/наименования)</span><br><br><div class=\"descr inv\"><a href=\"javascript:detailwindow(24367649032,0,'');\">Подробно</a></div><p><a href=\"javascript:jaloby1('24367649032', 23435272062);\" title=\"\">Отправить запрос о применении\\цене\\качестве товара<img src=\"/i/add-review.png\" style=\"margin-bottom:-8px;\" alt=\"Отправить запрос\"></a></p><table><thead><tr><td class=\"first\">&nbsp;</td><td class=\"idcodes collapse\">&nbsp;</td><td class=\"first\"><label for=\"add-all-2\">Добавить все наименования по</label><input class=\"form-text multiname\" type=\"number\" maxlength=\"60\" size=\"60\" value=\"\" name=\"add_all\"></td><td><a class=\"point\" onclick=\"detail_multiname_set(this);\"><img alt=\"Добавить все наименования в корзину\" src=\"/i/add-to-cart-all.gif\"></a></td></tr></thead><tbody><tr class=\"details\" id=\"det24367649372\"><td class=\"first\">гоночная машина</td><td class=\"idcodes collapse\">24367649372</td><td class=\"second\"><label class=\"empty\" for=\"detail24367649372\"><span class=\"green\">(Москва) в наличии</span><input id=\"detail24367649372\" type=\"number\" name=\"detail24367649372\" value=\"\" class=\"form-text detailinput\"></label></td><td class=\"last\"><a class=\"point\" title=\"Добавить в корзину\" onclick=\"add2cart(this);\"><img src=\"/i/add-to-cart.png\" alt=\"Добавить в корзину\"></a><a href=\"javascript:jaloby3('24367649032', 23435272062 , '24367649372');\" title=\"Отправить запрос о наличии\"><img src=\"/i/add-review.png\" alt=\"Оставить отзыв о наличии\"></a></td></tr></tbody></table></div>"]
["</div>"]
["<div class=\"product-inner collapsed\" id=\"good24367652792\">"]
[null,"<div class=\"product-legend\">"]
[null,null,"<div class=\"product-price\"><span><a href=\"/action/35/\"><img src=\"\" class=\"tip\" title=\"День моделиста\" alt=\"\"></a></span>103.18 руб. </div>"]
[null,null,"<a href=\"/opengood/24367652792/#goodopen24367652792\">\"REZARK\"   ROT-008   Пазл 3D   13x7.5x7.5 см  59 элемент.  </a>"]
[null,"</div>"]
[null,"<div class=\"image-preview\"><a onclick=\"detailwindow(24367652792,0,'http://images.firma-gamma.ru/100x100/4/0/g24367652792.jpg');\" style=\"cursor:pointer;\"><img class=\"img imgflowpic\" src=\"http://images.firma-gamma.ru/100x100/4/0/g24367652792.jpg\" style=\"margin:3px\" alt=\"\" rezark\"=\"\" rot-008=\"\" Пазл=\"\" 3d=\"\" 13x7.5x7.5=\"\" см=\"\" 59=\"\" элемент.\"=\"\" imgflow=\"http://images.firma-gamma.ru/208x208/4/0/g24367652792.jpg\"></a><a onclick=\"detailwindow(24367652792,0,'http://images.firma-gamma.ru/100x100/c/3/g24367652792p.jpg');\" style=\"cursor:pointer;\"><img class=\"img imgflowpic\" src=\"http://images.firma-gamma.ru/100x100/c/3/g24367652792p.jpg\" style=\"margin:3px\" alt=\"\" rezark\"=\"\" rot-008=\"\" Пазл=\"\" 3d=\"\" 13x7.5x7.5=\"\" см=\"\" 59=\"\" элемент.\"=\"\" imgflow=\"http://images.firma-gamma.ru/208x208/c/3/g24367652792p.jpg\"></a></div>"]
[null,"<div class=\"product-body\"><div class=\"descr\"><p>Торговая марка «REZARK» представляет недорогие детские развивающие наборы для сборки 3D-пазлов. <br>В каждый набор входит пошаговая инструкция на русском языке.                                     <br>Пазлы представляют собой небольшие сборные 3D модели из плоских фанерных деталей. <br>Толщина фанеры 3 мм.<br>Для сборки моделей не требуется клей или клеевые материалы. <br>Детали пазлов фиксируются между собой с помощью пазов.<br>Рекомендуемы возраст: от трех лет.</p><div class=\"idcodes collapse\">ID товара:24367652792<br></div>Артикул: ROT-008<br>Аудитория: для мальчиков<br>Вид: 3D<br>Количество частей: 59<br>Марка: \"REZARK\"<br>Объем единицы продажи, л: 0.379<br>Размер: 13x7.5x7.5<br>Рекомендуемый возраст: от 3 лет<br>Тематика: военная<br>Тип товара: Пазл<br><br><span><a href=\"/action/35/\"><img src=\"\" class=\"tip\" title=\"День моделиста\" alt=\"\"></a></span><br><br></div><br><span class=\"de_14 mrrc\">МРРЦ:<strong class=\"de_16\">226</strong> руб/упак. Удельная м. опт. цена без скидки:<strong class=\"de_16\">103.18</strong> руб/упак. Наценка:<strong>119%</strong><img src=\"/i/tip.jpg\" class=\"tip\" title=\"Минимальная рекомендуемая розничная цена (МРРЦ) и процент наценки до МРРЦ от закупочной цены с учетом Вашей скидки. Мелкооптовая цена за розничную единицу продажи (удельная м. опт. цена) указана без учета Вашей скидки.\" alt=\"\"><br><a href=\"javascript:jaloby_mrrc('24367652792', 23435272062);\" title=\"\">Оставить отзыв о минимальной рекомендуемой розничной цене</a><p></p><br></span><span class=\"de_14\">Цена (мелкооптовая):<strong class=\"de_16\">103.18</strong> руб.  / упак. (от 1 упак.  одного цвета/наименования)</span><br><br><div class=\"descr inv\"><a href=\"javascript:detailwindow(24367652792,0,'');\">Подробно</a></div><p><a href=\"javascript:jaloby1('24367652792', 23435272062);\" title=\"\">Отправить запрос о применении\\цене\\качестве товара<img src=\"/i/add-review.png\" style=\"margin-bottom:-8px;\" alt=\"Отправить запрос\"></a></p><table><thead><tr><td class=\"first\">&nbsp;</td><td class=\"idcodes collapse\">&nbsp;</td><td class=\"first\"><label for=\"add-all-2\">Добавить все наименования по</label><input class=\"form-text multiname\" type=\"number\" maxlength=\"60\" size=\"60\" value=\"\" name=\"add_all\"></td><td><a class=\"point\" onclick=\"detail_multiname_set(this);\"><img alt=\"Добавить все наименования в корзину\" src=\"/i/add-to-cart-all.gif\"></a></td></tr></thead><tbody><tr class=\"details\" id=\"det24367653212\"><td class=\"first\">бронированная машина</td><td class=\"idcodes collapse\">24367653212</td><td class=\"second\"><label class=\"empty\" for=\"detail24367653212\"><span class=\"green\">(Москва) в наличии</span><input id=\"detail24367653212\" type=\"number\" name=\"detail24367653212\" value=\"\" class=\"form-text detailinput\"></label></td><td class=\"last\"><a class=\"point\" title=\"Добавить в корзину\" onclick=\"add2cart(this);\"><img src=\"/i/add-to-cart.png\" alt=\"Добавить в корзину\"></a><a href=\"javascript:jaloby3('24367652792', 23435272062 , '24367653212');\" title=\"Отправить запрос о наличии\"><img src=\"/i/add-review.png\" alt=\"Оставить отзыв о наличии\"></a></td></tr></tbody></table></div>"]
["</div>"]
["<div class=\"product-inner collapsed\" id=\"good24367638492\">"]
[null,"<div class=\"product-legend\">"]
[null,null,"<div class=\"product-price\"><span><a href=\"/action/35/\"><img src=\"\" class=\"tip\" title=\"День моделиста\" alt=\"\"></a></span>103.18 руб. </div>"]
[null,null,"<a href=\"/opengood/24367638492/#goodopen24367638492\">\"REZARK\"   ROT-009   Пазл 3D   12.5x6.5x9.5 см  50 элемент.  </a>"]
[null,"</div>"]
[null,"<div class=\"image-preview\"><a onclick=\"detailwindow(24367638492,0,'http://images.firma-gamma.ru/100x100/f/3/g24367638492.jpg');\" style=\"cursor:pointer;\"><img class=\"img imgflowpic\" src=\"http://images.firma-gamma.ru/100x100/f/3/g24367638492.jpg\" style=\"margin:3px\" alt=\"\" rezark\"=\"\" rot-009=\"\" Пазл=\"\" 3d=\"\" 12.5x6.5x9.5=\"\" см=\"\" 50=\"\" элемент.\"=\"\" imgflow=\"http://images.firma-gamma.ru/208x208/f/3/g24367638492.jpg\"></a><a onclick=\"detailwindow(24367638492,0,'http://images.firma-gamma.ru/100x100/5/c/g24367638492p.jpg');\" style=\"cursor:pointer;\"><img class=\"img imgflowpic\" src=\"http://images.firma-gamma.ru/100x100/5/c/g24367638492p.jpg\" style=\"margin:3px\" alt=\"\" rezark\"=\"\" rot-009=\"\" Пазл=\"\" 3d=\"\" 12.5x6.5x9.5=\"\" см=\"\" 50=\"\" элемент.\"=\"\" imgflow=\"http://images.firma-gamma.ru/208x208/5/c/g24367638492p.jpg\"></a></div>"]
[null,"<div class=\"product-body\"><div class=\"descr\"><p>Торговая марка «REZARK» представляет недорогие детские развивающие наборы для сборки 3D-пазлов. <br>В каждый набор входит пошаговая инструкция на русском языке.                                     <br>Пазлы представляют собой небольшие сборные 3D модели из плоских фанерных деталей. <br>Толщина фанеры 3 мм.<br>Для сборки моделей не требуется клей или клеевые материалы. <br>Детали пазлов фиксируются между собой с помощью пазов.<br>Рекомендуемы возраст: от трех лет.</p><div class=\"idcodes collapse\">ID товара:24367638492<br></div>Артикул: ROT-009<br>Аудитория: для мальчиков<br>Вид: 3D<br>Количество частей: 50<br>Марка: \"REZARK\"<br>Объем единицы продажи, л: 0.379<br>Размер: 12.5x6.5x9.5<br>Рекомендуемый возраст: от 3 лет<br>Тематика: военная<br>Тип товара: Пазл<br><br><span><a href=\"/action/35/\"><img src=\"\" class=\"tip\" title=\"День моделиста\" alt=\"\"></a></span><br><br></div><br><span class=\"de_14 mrrc\">МРРЦ:<strong class=\"de_16\">235</strong> руб/упак. Удельная м. опт. цена без скидки:<strong class=\"de_16\">103.18</strong> руб/упак. Наценка:<strong>128%</strong><img src=\"/i/tip.jpg\" class=\"tip\" title=\"Минимальная рекомендуемая розничная цена (МРРЦ) и процент наценки до МРРЦ от закупочной цены с учетом Вашей скидки. Мелкооптовая цена за розничную единицу продажи (удельная м. опт. цена) указана без учета Вашей скидки.\" alt=\"\"><br><a href=\"javascript:jaloby_mrrc('24367638492', 23435272062);\" title=\"\">Оставить отзыв о минимальной рекомендуемой розничной цене</a><p></p><br></span><span class=\"de_14\">Цена (мелкооптовая):<strong class=\"de_16\">103.18</strong> руб.  / упак. (от 1 упак.  одного цвета/наименования)</span><br><br><div class=\"descr inv\"><a href=\"javascript:detailwindow(24367638492,0,'');\">Подробно</a></div><p><a href=\"javascript:jaloby1('24367638492', 23435272062);\" title=\"\">Отправить запрос о применении\\цене\\качестве товара<img src=\"/i/add-review.png\" style=\"margin-bottom:-8px;\" alt=\"Отправить запрос\"></a></p><table><thead><tr><td class=\"first\">&nbsp;</td><td class=\"idcodes collapse\">&nbsp;</td><td class=\"first\"><label for=\"add-all-2\">Добавить все наименования по</label><input class=\"form-text multiname\" type=\"number\" maxlength=\"60\" size=\"60\" value=\"\" name=\"add_all\"></td><td><a class=\"point\" onclick=\"detail_multiname_set(this);\"><img alt=\"Добавить все наименования в корзину\" src=\"/i/add-to-cart-all.gif\"></a></td></tr></thead><tbody><tr class=\"details\" id=\"det24367638642\"><td class=\"first\">зенитная установка</td><td class=\"idcodes collapse\">24367638642</td><td class=\"second\"><label class=\"empty\" for=\"detail24367638642\"><span class=\"green\">(Москва) в наличии</span><input id=\"detail24367638642\" type=\"number\" name=\"detail24367638642\" value=\"\" class=\"form-text detailinput\"></label></td><td class=\"last\"><a class=\"point\" title=\"Добавить в корзину\" onclick=\"add2cart(this);\"><img src=\"/i/add-to-cart.png\" alt=\"Добавить в корзину\"></a><a href=\"javascript:jaloby3('24367638492', 23435272062 , '24367638642');\" title=\"Отправить запрос о наличии\"><img src=\"/i/add-review.png\" alt=\"Оставить отзыв о наличии\"></a></td></tr></tbody></table></div>"]
["</div>"]
["<div class=\"product-inner collapsed\" id=\"good24367637952\">"]
[null,"<div class=\"product-legend\">"]
[null,null,"<div class=\"product-price\"><span><a href=\"/action/35/\"><img src=\"\" class=\"tip\" title=\"День моделиста\" alt=\"\"></a></span>103.18 руб. </div>"]
[null,null,"<a href=\"/opengood/24367637952/#goodopen24367637952\">\"REZARK\"   ROT-010   Пазл 3D   13.5x11x7 см  26 элемент.  </a>"]
[null,"</div>"]
[null,"<div class=\"image-preview\"><a onclick=\"detailwindow(24367637952,0,'http://images.firma-gamma.ru/100x100/f/5/g24367637952.jpg');\" style=\"cursor:pointer;\"><img class=\"img imgflowpic\" src=\"http://images.firma-gamma.ru/100x100/f/5/g24367637952.jpg\" style=\"margin:3px\" alt=\"\" rezark\"=\"\" rot-010=\"\" Пазл=\"\" 3d=\"\" 13.5x11x7=\"\" см=\"\" 26=\"\" элемент.\"=\"\" imgflow=\"http://images.firma-gamma.ru/208x208/f/5/g24367637952.jpg\"></a><a onclick=\"detailwindow(24367637952,0,'http://images.firma-gamma.ru/100x100/3/5/g24367637952p.jpg');\" style=\"cursor:pointer;\"><img class=\"img imgflowpic\" src=\"http://images.firma-gamma.ru/100x100/3/5/g24367637952p.jpg\" style=\"margin:3px\" alt=\"\" rezark\"=\"\" rot-010=\"\" Пазл=\"\" 3d=\"\" 13.5x11x7=\"\" см=\"\" 26=\"\" элемент.\"=\"\" imgflow=\"http://images.firma-gamma.ru/208x208/3/5/g24367637952p.jpg\"></a></div>"]
[null,"<div class=\"product-body\"><div class=\"descr\"><p>Торговая марка «REZARK» представляет недорогие детские развивающие наборы для сборки 3D-пазлов. <br>В каждый набор входит пошаговая инструкция на русском языке.                                     <br>Пазлы представляют собой небольшие сборные 3D модели из плоских фанерных деталей. <br>Толщина фанеры 3 мм.<br>Для сборки моделей не требуется клей или клеевые материалы. <br>Детали пазлов фиксируются между собой с помощью пазов.<br>Рекомендуемы возраст: от трех лет.</p><div class=\"idcodes collapse\">ID товара:24367637952<br></div>Артикул: ROT-010<br>Аудитория: для детей<br>Вид: 3D<br>Количество частей: 26<br>Марка: \"REZARK\"<br>Объем единицы продажи, л: 0.379<br>Размер: 13.5x11x7<br>Рекомендуемый возраст: от 3 лет<br>Тематика: транспорт<br>Тип товара: Пазл<br><br><span><a href=\"/action/35/\"><img src=\"\" class=\"tip\" title=\"День моделиста\" alt=\"\"></a></span><br><br></div><br><span class=\"de_14 mrrc\">МРРЦ:<strong class=\"de_16\">229</strong> руб/упак. Удельная м. опт. цена без скидки:<strong class=\"de_16\">103.18</strong> руб/упак. Наценка:<strong>122%</strong><img src=\"/i/tip.jpg\" class=\"tip\" title=\"Минимальная рекомендуемая розничная цена (МРРЦ) и процент наценки до МРРЦ от закупочной цены с учетом Вашей скидки. Мелкооптовая цена за розничную единицу продажи (удельная м. опт. цена) указана без учета Вашей скидки.\" alt=\"\"><br><a href=\"javascript:jaloby_mrrc('24367637952', 23435272062);\" title=\"\">Оставить отзыв о минимальной рекомендуемой розничной цене</a><p></p><br></span><span class=\"de_14\">Цена (мелкооптовая):<strong class=\"de_16\">103.18</strong> руб.  / упак. (от 1 упак.  одного цвета/наименования)</span><br><br><div class=\"descr inv\"><a href=\"javascript:detailwindow(24367637952,0,'');\">Подробно</a></div><p><a href=\"javascript:jaloby1('24367637952', 23435272062);\" title=\"\">Отправить запрос о применении\\цене\\качестве товара<img src=\"/i/add-review.png\" style=\"margin-bottom:-8px;\" alt=\"Отправить запрос\"></a></p><table><thead><tr><td class=\"first\">&nbsp;</td><td class=\"idcodes collapse\">&nbsp;</td><td class=\"first\"><label for=\"add-all-2\">Добавить все наименования по</label><input class=\"form-text multiname\" type=\"number\" maxlength=\"60\" size=\"60\" value=\"\" name=\"add_all\"></td><td><a class=\"point\" onclick=\"detail_multiname_set(this);\"><img alt=\"Добавить все наименования в корзину\" src=\"/i/add-to-cart-all.gif\"></a></td></tr></thead><tbody><tr class=\"details\" id=\"det24367638172\"><td class=\"first\">автобус</td><td class=\"idcodes collapse\">24367638172</td><td class=\"second\"><label class=\"empty\" for=\"detail24367638172\"><span class=\"green\">(Москва) в наличии</span><input id=\"detail24367638172\" type=\"number\" name=\"detail24367638172\" value=\"\" class=\"form-text detailinput\"></label></td><td class=\"last\"><a class=\"point\" title=\"Добавить в корзину\" onclick=\"add2cart(this);\"><img src=\"/i/add-to-cart.png\" alt=\"Добавить в корзину\"></a><a href=\"javascript:jaloby3('24367637952', 23435272062 , '24367638172');\" title=\"Отправить запрос о наличии\"><img src=\"/i/add-review.png\" alt=\"Оставить отзыв о наличии\"></a></td></tr></tbody></table></div>"]
["</div>"]
["<div class=\"product-inner collapsed\" id=\"good24367656862\">"]
[null,"<div class=\"product-legend\">"]
[null,null,"<div class=\"product-price\"><span><a href=\"/action/35/\"><img src=\"\" class=\"tip\" title=\"День моделиста\" alt=\"\"></a></span>103.18 руб. </div>"]
[null,null,"<a href=\"/opengood/24367656862/#goodopen24367656862\">\"REZARK\"   ROT-011   Пазл 3D   11x8x7.5 см  49 элемент.  </a>"]
[null,"</div>"]
[null,"<div class=\"image-preview\"><a onclick=\"detailwindow(24367656862,0,'http://images.firma-gamma.ru/100x100/9/3/g24367656862.jpg');\" style=\"cursor:pointer;\"><img class=\"img imgflowpic\" src=\"http://images.firma-gamma.ru/100x100/9/3/g24367656862.jpg\" style=\"margin:3px\" alt=\"\" rezark\"=\"\" rot-011=\"\" Пазл=\"\" 3d=\"\" 11x8x7.5=\"\" см=\"\" 49=\"\" элемент.\"=\"\" imgflow=\"http://images.firma-gamma.ru/208x208/9/3/g24367656862.jpg\"></a><a onclick=\"detailwindow(24367656862,0,'http://images.firma-gamma.ru/100x100/8/3/g24367656862p.jpg');\" style=\"cursor:pointer;\"><img class=\"img imgflowpic\" src=\"http://images.firma-gamma.ru/100x100/8/3/g24367656862p.jpg\" style=\"margin:3px\" alt=\"\" rezark\"=\"\" rot-011=\"\" Пазл=\"\" 3d=\"\" 11x8x7.5=\"\" см=\"\" 49=\"\" элемент.\"=\"\" imgflow=\"http://images.firma-gamma.ru/208x208/8/3/g24367656862p.jpg\"></a></div>"]
[null,"<div class=\"product-body\"><div class=\"descr\"><p>Торговая марка «REZARK» представляет недорогие детские развивающие наборы для сборки 3D-пазлов. <br>В каждый набор входит пошаговая инструкция на русском языке.                                     <br>Пазлы представляют собой небольшие сборные 3D модели из плоских фанерных деталей. <br>Толщина фанеры 3 мм.<br>Для сборки моделей не требуется клей или клеевые материалы. <br>Детали пазлов фиксируются между собой с помощью пазов.<br>Рекомендуемы возраст: от трех лет.</p><div class=\"idcodes collapse\">ID товара:24367656862<br></div>Артикул: ROT-011<br>Аудитория: для мальчиков<br>Вид: 3D<br>Количество частей: 49<br>Марка: \"REZARK\"<br>Объем единицы продажи, л: 0.379<br>Размер: 11x8x7.5<br>Рекомендуемый возраст: от 3 лет<br>Тематика: военная<br>Тип товара: Пазл<br><br><span><a href=\"/action/35/\"><img src=\"\" class=\"tip\" title=\"День моделиста\" alt=\"\"></a></span><br><br></div><br><span class=\"de_14 mrrc\">МРРЦ:<strong class=\"de_16\">235</strong> руб/упак. Удельная м. опт. цена без скидки:<strong class=\"de_16\">103.18</strong> руб/упак. Наценка:<strong>128%</strong><img src=\"/i/tip.jpg\" class=\"tip\" title=\"Минимальная рекомендуемая розничная цена (МРРЦ) и процент наценки до МРРЦ от закупочной цены с учетом Вашей скидки. Мелкооптовая цена за розничную единицу продажи (удельная м. опт. цена) указана без учета Вашей скидки.\" alt=\"\"><br><a href=\"javascript:jaloby_mrrc('24367656862', 23435272062);\" title=\"\">Оставить отзыв о минимальной рекомендуемой розничной цене</a><p></p><br></span><span class=\"de_14\">Цена (мелкооптовая):<strong class=\"de_16\">103.18</strong> руб.  / упак. (от 1 упак.  одного цвета/наименования)</span><br><br><div class=\"descr inv\"><a href=\"javascript:detailwindow(24367656862,0,'');\">Подробно</a></div><p><a href=\"javascript:jaloby1('24367656862', 23435272062);\" title=\"\">Отправить запрос о применении\\цене\\качестве товара<img src=\"/i/add-review.png\" style=\"margin-bottom:-8px;\" alt=\"Отправить запрос\"></a></p><table><thead><tr><td class=\"first\">&nbsp;</td><td class=\"idcodes collapse\">&nbsp;</td><td class=\"first\"><label for=\"add-all-2\">Добавить все наименования по</label><input class=\"form-text multiname\" type=\"number\" maxlength=\"60\" size=\"60\" value=\"\" name=\"add_all\"></td><td><a class=\"point\" onclick=\"detail_multiname_set(this);\"><img alt=\"Добавить все наименования в корзину\" src=\"/i/add-to-cart-all.gif\"></a></td></tr></thead><tbody><tr class=\"details\" id=\"det24367656972\"><td class=\"first\">огнеметная система</td><td class=\"idcodes collapse\">24367656972</td><td class=\"second\"><label class=\"empty\" for=\"detail24367656972\"><span class=\"green\">(Москва) в наличии</span><input id=\"detail24367656972\" type=\"number\" name=\"detail24367656972\" value=\"\" class=\"form-text detailinput\"></label></td><td class=\"last\"><a class=\"point\" title=\"Добавить в корзину\" onclick=\"add2cart(this);\"><img src=\"/i/add-to-cart.png\" alt=\"Добавить в корзину\"></a><a href=\"javascript:jaloby3('24367656862', 23435272062 , '24367656972');\" title=\"Отправить запрос о наличии\"><img src=\"/i/add-review.png\" alt=\"Оставить отзыв о наличии\"></a></td></tr></tbody></table></div>"]
["</div>"]
["<div class=\"product-inner collapsed\" id=\"good24367636262\">"]
[null,"<div class=\"product-legend\">"]
[null,null,"<div class=\"product-price\"><span><a href=\"/action/35/\"><img src=\"\" class=\"tip\" title=\"День моделиста\" alt=\"\"></a></span>103.18 руб. </div>"]
[null,null,"<a href=\"/opengood/24367636262/#goodopen24367636262\">\"REZARK\"   ROT-012   Пазл 3D   13.5x11x7 см  42 элемент.  </a>"]
[null,"</div>"]
[null,"<div class=\"image-preview\"><a onclick=\"detailwindow(24367636262,0,'http://images.firma-gamma.ru/100x100/7/7/g24367636262.jpg');\" style=\"cursor:pointer;\"><img class=\"img imgflowpic\" src=\"http://images.firma-gamma.ru/100x100/7/7/g24367636262.jpg\" style=\"margin:3px\" alt=\"\" rezark\"=\"\" rot-012=\"\" Пазл=\"\" 3d=\"\" 13.5x11x7=\"\" см=\"\" 42=\"\" элемент.\"=\"\" imgflow=\"http://images.firma-gamma.ru/208x208/7/7/g24367636262.jpg\"></a><a onclick=\"detailwindow(24367636262,0,'http://images.firma-gamma.ru/100x100/d/b/g24367636262p.jpg');\" style=\"cursor:pointer;\"><img class=\"img imgflowpic\" src=\"http://images.firma-gamma.ru/100x100/d/b/g24367636262p.jpg\" style=\"margin:3px\" alt=\"\" rezark\"=\"\" rot-012=\"\" Пазл=\"\" 3d=\"\" 13.5x11x7=\"\" см=\"\" 42=\"\" элемент.\"=\"\" imgflow=\"http://images.firma-gamma.ru/208x208/d/b/g24367636262p.jpg\"></a></div>"]
[null,"<div class=\"product-body\"><div class=\"descr\"><p>Торговая марка «REZARK» представляет недорогие детские развивающие наборы для сборки 3D-пазлов. <br>В каждый набор входит пошаговая инструкция на русском языке.                                     <br>Пазлы представляют собой небольшие сборные 3D модели из плоских фанерных деталей. <br>Толщина фанеры 3 мм.<br>Для сборки моделей не требуется клей или клеевые материалы. <br>Детали пазлов фиксируются между собой с помощью пазов.<br>Рекомендуемы возраст: от трех лет.</p><div class=\"idcodes collapse\">ID товара:24367636262<br></div>Артикул: ROT-012<br>Аудитория: для мальчиков<br>Вид: 3D<br>Количество частей: 42<br>Марка: \"REZARK\"<br>Объем единицы продажи, л: 0.139<br>Размер: 13.5x11x7<br>Рекомендуемый возраст: от 3 лет<br>Тематика: транспорт<br>Тип товара: Пазл<br><br><span><a href=\"/action/35/\"><img src=\"\" class=\"tip\" title=\"День моделиста\" alt=\"\"></a></span><br><br></div><br><span class=\"de_14 mrrc\">МРРЦ:<strong class=\"de_16\">235</strong> руб/упак. Удельная м. опт. цена без скидки:<strong class=\"de_16\">103.18</strong> руб/упак. Наценка:<strong>128%</strong><img src=\"/i/tip.jpg\" class=\"tip\" title=\"Минимальная рекомендуемая розничная цена (МРРЦ) и процент наценки до МРРЦ от закупочной цены с учетом Вашей скидки. Мелкооптовая цена за розничную единицу продажи (удельная м. опт. цена) указана без учета Вашей скидки.\" alt=\"\"><br><a href=\"javascript:jaloby_mrrc('24367636262', 23435272062);\" title=\"\">Оставить отзыв о минимальной рекомендуемой розничной цене</a><p></p><br></span><span class=\"de_14\">Цена (мелкооптовая):<strong class=\"de_16\">103.18</strong> руб.  / упак. (от 1 упак.  одного цвета/наименования)</span><br><br><div class=\"descr inv\"><a href=\"javascript:detailwindow(24367636262,0,'');\">Подробно</a></div><p><a href=\"javascript:jaloby1('24367636262', 23435272062);\" title=\"\">Отправить запрос о применении\\цене\\качестве товара<img src=\"/i/add-review.png\" style=\"margin-bottom:-8px;\" alt=\"Отправить запрос\"></a></p><table><thead><tr><td class=\"first\">&nbsp;</td><td class=\"idcodes collapse\">&nbsp;</td><td class=\"first\"><label for=\"add-all-2\">Добавить все наименования по</label><input class=\"form-text multiname\" type=\"number\" maxlength=\"60\" size=\"60\" value=\"\" name=\"add_all\"></td><td><a class=\"point\" onclick=\"detail_multiname_set(this);\"><img alt=\"Добавить все наименования в корзину\" src=\"/i/add-to-cart-all.gif\"></a></td></tr></thead><tbody><tr class=\"details\" id=\"det24367636522\"><td class=\"first\">мотоцикл</td><td class=\"idcodes collapse\">24367636522</td><td class=\"second\"><label class=\"empty\" for=\"detail24367636522\"><span class=\"green\">(Москва) в наличии</span><input id=\"detail24367636522\" type=\"number\" name=\"detail24367636522\" value=\"\" class=\"form-text detailinput\"></label></td><td class=\"last\"><a class=\"point\" title=\"Добавить в корзину\" onclick=\"add2cart(this);\"><img src=\"/i/add-to-cart.png\" alt=\"Добавить в корзину\"></a><a href=\"javascript:jaloby3('24367636262', 23435272062 , '24367636522');\" title=\"Отправить запрос о наличии\"><img src=\"/i/add-review.png\" alt=\"Оставить отзыв о наличии\"></a></td></tr></tbody></table></div>"]
["</div>"]
["<div class=\"product-inner collapsed\" id=\"good24367631812\">"]
[null,"<div class=\"product-legend\">"]
[null,null,"<div class=\"product-price\"><span><a href=\"/action/35/\"><img src=\"\" class=\"tip\" title=\"День моделиста\" alt=\"\"></a></span>103.18 руб. </div>"]
[null,null,"<a href=\"/opengood/24367631812/#goodopen24367631812\">\"REZARK\"   ROT-013   Пазл 3D   13x6x7 см  52 элемент.  </a>"]
[null,"</div>"]
[null,"<div class=\"image-preview\"><a onclick=\"detailwindow(24367631812,0,'http://images.firma-gamma.ru/100x100/2/d/g24367631812.jpg');\" style=\"cursor:pointer;\"><img class=\"img imgflowpic\" src=\"http://images.firma-gamma.ru/100x100/2/d/g24367631812.jpg\" style=\"margin:3px\" alt=\"\" rezark\"=\"\" rot-013=\"\" Пазл=\"\" 3d=\"\" 13x6x7=\"\" см=\"\" 52=\"\" элемент.\"=\"\" imgflow=\"http://images.firma-gamma.ru/208x208/2/d/g24367631812.jpg\"></a><a onclick=\"detailwindow(24367631812,0,'http://images.firma-gamma.ru/100x100/c/3/g24367631812p.jpg');\" style=\"cursor:pointer;\"><img class=\"img imgflowpic\" src=\"http://images.firma-gamma.ru/100x100/c/3/g24367631812p.jpg\" style=\"margin:3px\" alt=\"\" rezark\"=\"\" rot-013=\"\" Пазл=\"\" 3d=\"\" 13x6x7=\"\" см=\"\" 52=\"\" элемент.\"=\"\" imgflow=\"http://images.firma-gamma.ru/208x208/c/3/g24367631812p.jpg\"></a></div>"]
[null,"<div class=\"product-body\"><div class=\"descr\"><p>Торговая марка «REZARK» представляет недорогие детские развивающие наборы для сборки 3D-пазлов. <br>В каждый набор входит пошаговая инструкция на русском языке.                                     <br>Пазлы представляют собой небольшие сборные 3D модели из плоских фанерных деталей. <br>Толщина фанеры 3 мм.<br>Для сборки моделей не требуется клей или клеевые материалы. <br>Детали пазлов фиксируются между собой с помощью пазов.<br>Рекомендуемы возраст: от трех лет.</p><div class=\"idcodes collapse\">ID товара:24367631812<br></div>Артикул: ROT-013<br>Аудитория: для мальчиков<br>Вид: 3D<br>Количество частей: 52<br>Марка: \"REZARK\"<br>Объем единицы продажи, л: 0.379<br>Размер: 13x6x7<br>Рекомендуемый возраст: от 3 лет<br>Тематика: военная<br>Тип товара: Пазл<br><br><span><a href=\"/action/35/\"><img src=\"\" class=\"tip\" title=\"День моделиста\" alt=\"\"></a></span><br><br></div><br><span class=\"de_14 mrrc\">МРРЦ:<strong class=\"de_16\">235</strong> руб/упак. Удельная м. опт. цена без скидки:<strong class=\"de_16\">103.18</strong> руб/упак. Наценка:<strong>128%</strong><img src=\"/i/tip.jpg\" class=\"tip\" title=\"Минимальная рекомендуемая розничная цена (МРРЦ) и процент наценки до МРРЦ от закупочной цены с учетом Вашей скидки. Мелкооптовая цена за розничную единицу продажи (удельная м. опт. цена) указана без учета Вашей скидки.\" alt=\"\"><br><a href=\"javascript:jaloby_mrrc('24367631812', 23435272062);\" title=\"\">Оставить отзыв о минимальной рекомендуемой розничной цене</a><p></p><br></span><span class=\"de_14\">Цена (мелкооптовая):<strong class=\"de_16\">103.18</strong> руб.  / упак. (от 1 упак.  одного цвета/наименования)</span><br><br><div class=\"descr inv\"><a href=\"javascript:detailwindow(24367631812,0,'');\">Подробно</a></div><p><a href=\"javascript:jaloby1('24367631812', 23435272062);\" title=\"\">Отправить запрос о применении\\цене\\качестве товара<img src=\"/i/add-review.png\" style=\"margin-bottom:-8px;\" alt=\"Отправить запрос\"></a></p><table><thead><tr><td class=\"first\">&nbsp;</td><td class=\"idcodes collapse\">&nbsp;</td><td class=\"first\"><label for=\"add-all-2\">Добавить все наименования по</label><input class=\"form-text multiname\" type=\"number\" maxlength=\"60\" size=\"60\" value=\"\" name=\"add_all\"></td><td><a class=\"point\" onclick=\"detail_multiname_set(this);\"><img alt=\"Добавить все наименования в корзину\" src=\"/i/add-to-cart-all.gif\"></a></td></tr></thead><tbody><tr class=\"details\" id=\"det24367631972\"><td class=\"first\">ракетная установка</td><td class=\"idcodes collapse\">24367631972</td><td class=\"second\"><label class=\"empty\" for=\"detail24367631972\"><span class=\"green\">(Москва) в наличии</span><input id=\"detail24367631972\" type=\"number\" name=\"detail24367631972\" value=\"\" class=\"form-text detailinput\"></label></td><td class=\"last\"><a class=\"point\" title=\"Добавить в корзину\" onclick=\"add2cart(this);\"><img src=\"/i/add-to-cart.png\" alt=\"Добавить в корзину\"></a><a href=\"javascript:jaloby3('24367631812', 23435272062 , '24367631972');\" title=\"Отправить запрос о наличии\"><img src=\"/i/add-review.png\" alt=\"Оставить отзыв о наличии\"></a></td></tr></tbody></table></div>"]
["</div>"]
["<div class=\"product-inner collapsed\" id=\"good24367635552\">"]
[null,"<div class=\"product-legend\">"]
[null,null,"<div class=\"product-price\"><span><a href=\"/action/35/\"><img src=\"\" class=\"tip\" title=\"День моделиста\" alt=\"\"></a></span>426.79 руб. </div>"]
[null,null,"<a href=\"/opengood/24367635552/#goodopen24367635552\">\"REZARK\"   ROT-014   Пазл 3D   15x6.8x20 см  82 элемент.  </a>"]
[null,"</div>"]
[null,"<div class=\"image-preview\"><a onclick=\"detailwindow(24367635552,0,'http://images.firma-gamma.ru/100x100/a/6/g24367635552.jpg');\" style=\"cursor:pointer;\"><img class=\"img imgflowpic\" src=\"http://images.firma-gamma.ru/100x100/a/6/g24367635552.jpg\" style=\"margin:3px\" alt=\"\" rezark\"=\"\" rot-014=\"\" Пазл=\"\" 3d=\"\" 15x6.8x20=\"\" см=\"\" 82=\"\" элемент.\"=\"\" imgflow=\"http://images.firma-gamma.ru/208x208/a/6/g24367635552.jpg\"></a><a onclick=\"detailwindow(24367635552,0,'http://images.firma-gamma.ru/100x100/0/0/g24367635552p.jpg');\" style=\"cursor:pointer;\"><img class=\"img imgflowpic\" src=\"http://images.firma-gamma.ru/100x100/0/0/g24367635552p.jpg\" style=\"margin:3px\" alt=\"\" rezark\"=\"\" rot-014=\"\" Пазл=\"\" 3d=\"\" 15x6.8x20=\"\" см=\"\" 82=\"\" элемент.\"=\"\" imgflow=\"http://images.firma-gamma.ru/208x208/0/0/g24367635552p.jpg\"></a></div>"]
[null,"<div class=\"product-body\"><div class=\"descr\"><p>Торговая марка «REZARK» представляет недорогие детские развивающие наборы для сборки 3D-пазлов. <br>В каждый набор входит пошаговая инструкция на русском языке.                                     <br>Пазлы представляют собой небольшие сборные 3D модели из плоских фанерных деталей. <br>Толщина фанеры 3 мм.<br>Для сборки моделей не требуется клей или клеевые материалы. <br>Детали пазлов фиксируются между собой с помощью пазов.<br>Рекомендуемы возраст: от трех лет.</p><div class=\"idcodes collapse\">ID товара:24367635552<br></div>Артикул: ROT-014<br>Аудитория: для детей<br>Вид: 3D<br>Количество частей: 82<br>Марка: \"REZARK\"<br>Объем единицы продажи, л: 2.880<br>Размер: 15x6.8x20<br>Рекомендуемый возраст: от 6 лет<br>Тематика: предметы интерьера<br>Тип товара: Пазл<br><br><span><a href=\"/action/35/\"><img src=\"\" class=\"tip\" title=\"День моделиста\" alt=\"\"></a></span><br><br></div><br><span class=\"de_14 mrrc\">МРРЦ:<strong class=\"de_16\">969</strong> руб/упак. Удельная м. опт. цена без скидки:<strong class=\"de_16\">426.79</strong> руб/упак. Наценка:<strong>127%</strong><img src=\"/i/tip.jpg\" class=\"tip\" title=\"Минимальная рекомендуемая розничная цена (МРРЦ) и процент наценки до МРРЦ от закупочной цены с учетом Вашей скидки. Мелкооптовая цена за розничную единицу продажи (удельная м. опт. цена) указана без учета Вашей скидки.\" alt=\"\"><br><a href=\"javascript:jaloby_mrrc('24367635552', 23435272062);\" title=\"\">Оставить отзыв о минимальной рекомендуемой розничной цене</a><p></p><br></span><span class=\"de_14\">Цена (мелкооптовая):<strong class=\"de_16\">426.79</strong> руб.  / упак. (от 1 упак.  одного цвета/наименования)</span><br><br><div class=\"descr inv\"><a href=\"javascript:detailwindow(24367635552,0,'');\">Подробно</a></div><p><a href=\"javascript:jaloby1('24367635552', 23435272062);\" title=\"\">Отправить запрос о применении\\цене\\качестве товара<img src=\"/i/add-review.png\" style=\"margin-bottom:-8px;\" alt=\"Отправить запрос\"></a></p><table><thead><tr><td class=\"first\">&nbsp;</td><td class=\"idcodes collapse\">&nbsp;</td><td class=\"first\"><label for=\"add-all-2\">Добавить все наименования по</label><input class=\"form-text multiname\" type=\"number\" maxlength=\"60\" size=\"60\" value=\"\" name=\"add_all\"></td><td><a class=\"point\" onclick=\"detail_multiname_set(this);\"><img alt=\"Добавить все наименования в корзину\" src=\"/i/add-to-cart-all.gif\"></a></td></tr></thead><tbody><tr class=\"details\" id=\"det24367635712\"><td class=\"first\">будильник</td><td class=\"idcodes collapse\">24367635712</td><td class=\"second\"><label class=\"empty\" for=\"detail24367635712\"><span class=\"green\">(Москва) в наличии</span><input id=\"detail24367635712\" type=\"number\" name=\"detail24367635712\" value=\"\" class=\"form-text detailinput\"></label></td><td class=\"last\"><a class=\"point\" title=\"Добавить в корзину\" onclick=\"add2cart(this);\"><img src=\"/i/add-to-cart.png\" alt=\"Добавить в корзину\"></a><a href=\"javascript:jaloby3('24367635552', 23435272062 , '24367635712');\" title=\"Отправить запрос о наличии\"><img src=\"/i/add-review.png\" alt=\"Оставить отзыв о наличии\"></a></td></tr></tbody></table></div>"]
["</div>"]
["<div class=\"product-inner collapsed\" id=\"good26397075272\">"]
[null,"<div class=\"product-legend\">"]
[null,null,"<div class=\"product-price\"><span><a href=\"/action/35/\"><img src=\"\" class=\"tip\" title=\"День моделиста\" alt=\"\"></a></span>600.99 руб. </div>"]
[null,null,"<a href=\"/opengood/26397075272/#goodopen26397075272\">\"REZARK\"   ROTC-001   Пазл 3D   22x16x16.5 см  81 элемент.  </a>"]
[null,"</div>"]
[null,"<div class=\"image-preview\"><a onclick=\"detailwindow(26397075272,0,'http://images.firma-gamma.ru/100x100/0/0/g26397075272.jpg');\" style=\"cursor:pointer;\"><img class=\"img imgflowpic\" src=\"http://images.firma-gamma.ru/100x100/0/0/g26397075272.jpg\" style=\"margin:3px\" alt=\"\" rezark\"=\"\" rotc-001=\"\" Пазл=\"\" 3d=\"\" 22x16x16.5=\"\" см=\"\" 81=\"\" элемент.\"=\"\" imgflow=\"http://images.firma-gamma.ru/208x208/0/0/g26397075272.jpg\"></a><a onclick=\"detailwindow(26397075272,0,'http://images.firma-gamma.ru/100x100/e/e/g26397075272u.jpg');\" style=\"cursor:pointer;\"><img class=\"img imgflowpic\" src=\"http://images.firma-gamma.ru/100x100/e/e/g26397075272u.jpg\" style=\"margin:3px\" alt=\"\" rezark\"=\"\" rotc-001=\"\" Пазл=\"\" 3d=\"\" 22x16x16.5=\"\" см=\"\" 81=\"\" элемент.\"=\"\" imgflow=\"http://images.firma-gamma.ru/208x208/e/e/g26397075272u.jpg\"></a><a onclick=\"detailwindow(26397075272,0,'http://images.firma-gamma.ru/100x100/2/4/g26397075272u_1.jpg');\" style=\"cursor:pointer;\"><img class=\"img imgflowpic\" src=\"http://images.firma-gamma.ru/100x100/2/4/g26397075272u_1.jpg\" style=\"margin:3px\" alt=\"\" rezark\"=\"\" rotc-001=\"\" Пазл=\"\" 3d=\"\" 22x16x16.5=\"\" см=\"\" 81=\"\" элемент.\"=\"\" imgflow=\"http://images.firma-gamma.ru/208x208/2/4/g26397075272u_1.jpg\"></a></div>"]
[null,"<div class=\"product-body\"><div class=\"descr\"><p>Серия детских домиков ТМ \"Rezark\" под арт.ROTC - это объемные 3D пазлы из фанеры 3 мм с нанесенным на нее принтом. Чтобы придать красочный вид модели, производитель использует специальное оборудование, которое склеивает цветную картинку с листом фанеры. Цветная печать в наших наборах высокого качества, хорошо проработана детализация рисунка даже в мелких частях модели. Серия состоит из 5-ти наборов: кухня, ванная комната, гостиная , спальня, кабинет. Все они скрепляются между собой и образуют большой загородный дом. Мебель входит в набор! Для сборки не требуется клей, все детали скрепляются соединением в пазы. Подходит для детей дошкольного возраста. В комплекте имеется подробная инструкция по сборке на русском языке, которая будет понятна и взрослому и ребенку.</p><div class=\"idcodes collapse\">ID товара:26397075272<br></div>Артикул: ROTC-001<br>Аудитория: для девочек<br>Вид: 3D<br>Количество частей: 81<br>Марка: \"REZARK\"<br>Объем единицы продажи, л: 1.243<br>Размер: 22x16x16.5<br>Рекомендуемый возраст: от 3 лет<br>Тематика: архитектура<br>Тип товара: Пазл<br><br><span><a href=\"/action/35/\"><img src=\"\" class=\"tip\" title=\"День моделиста\" alt=\"\"></a></span><br><br></div><br><span class=\"de_14 mrrc\">МРРЦ:<strong class=\"de_16\">1199</strong> руб/упак. Удельная м. опт. цена без скидки:<strong class=\"de_16\">600.99</strong> руб/упак. Наценка:<strong>100%</strong><img src=\"/i/tip.jpg\" class=\"tip\" title=\"Минимальная рекомендуемая розничная цена (МРРЦ) и процент наценки до МРРЦ от закупочной цены с учетом Вашей скидки. Мелкооптовая цена за розничную единицу продажи (удельная м. опт. цена) указана без учета Вашей скидки.\" alt=\"\"><br><a href=\"javascript:jaloby_mrrc('26397075272', 23435272062);\" title=\"\">Оставить отзыв о минимальной рекомендуемой розничной цене</a><p></p><br></span><span class=\"de_14\">Цена (мелкооптовая):<strong class=\"de_16\">600.99</strong> руб.  / штуку (от 1 шт  одного цвета/наименования)</span><br><br><div class=\"descr inv\"><a href=\"javascript:detailwindow(26397075272,0,'');\">Подробно</a></div><p><a href=\"javascript:jaloby1('26397075272', 23435272062);\" title=\"\">Отправить запрос о применении\\цене\\качестве товара<img src=\"/i/add-review.png\" style=\"margin-bottom:-8px;\" alt=\"Отправить запрос\"></a></p><table><thead><tr><td class=\"first\">&nbsp;</td><td class=\"idcodes collapse\">&nbsp;</td><td class=\"first\"><label for=\"add-all-2\">Добавить все наименования по</label><input class=\"form-text multiname\" type=\"number\" maxlength=\"60\" size=\"60\" value=\"\" name=\"add_all\"></td><td><a class=\"point\" onclick=\"detail_multiname_set(this);\"><img alt=\"Добавить все наименования в корзину\" src=\"/i/add-to-cart-all.gif\"></a></td></tr></thead><tbody><tr class=\"details\" id=\"det26397080342\"><td class=\"first\">кухня</td><td class=\"idcodes collapse\">26397080342</td><td class=\"second\"><label class=\"empty\" for=\"detail26397080342\"><span class=\"green\">(Москва) в наличии</span><input id=\"detail26397080342\" type=\"number\" name=\"detail26397080342\" value=\"\" class=\"form-text detailinput\"></label></td><td class=\"last\"><a class=\"point\" title=\"Добавить в корзину\" onclick=\"add2cart(this);\"><img src=\"/i/add-to-cart.png\" alt=\"Добавить в корзину\"></a><a href=\"javascript:jaloby3('26397075272', 23435272062 , '26397080342');\" title=\"Отправить запрос о наличии\"><img src=\"/i/add-review.png\" alt=\"Оставить отзыв о наличии\"></a></td></tr></tbody></table></div>"]
["</div>"]
["<div class=\"product-inner collapsed\" id=\"good26397204042\">"]
[null,"<div class=\"product-legend\">"]
[null,null,"<div class=\"product-price\"><span><a href=\"/action/35/\"><img src=\"\" class=\"tip\" title=\"День моделиста\" alt=\"\"></a></span>600.99 руб. </div>"]
[null,null,"<a href=\"/opengood/26397204042/#goodopen26397204042\">\"REZARK\"   ROTC-002   Пазл 3D   22.5x17x14.5 см  81 элемент.  </a>"]
[null,"</div>"]
[null,"<div class=\"image-preview\"><a onclick=\"detailwindow(26397204042,0,'http://images.firma-gamma.ru/100x100/5/4/g26397204042.jpg');\" style=\"cursor:pointer;\"><img class=\"img imgflowpic\" src=\"http://images.firma-gamma.ru/100x100/5/4/g26397204042.jpg\" style=\"margin:3px\" alt=\"\" rezark\"=\"\" rotc-002=\"\" Пазл=\"\" 3d=\"\" 22.5x17x14.5=\"\" см=\"\" 81=\"\" элемент.\"=\"\" imgflow=\"http://images.firma-gamma.ru/208x208/5/4/g26397204042.jpg\"></a><a onclick=\"detailwindow(26397204042,0,'http://images.firma-gamma.ru/100x100/8/2/g26397204042u.jpg');\" style=\"cursor:pointer;\"><img class=\"img imgflowpic\" src=\"http://images.firma-gamma.ru/100x100/8/2/g26397204042u.jpg\" style=\"margin:3px\" alt=\"\" rezark\"=\"\" rotc-002=\"\" Пазл=\"\" 3d=\"\" 22.5x17x14.5=\"\" см=\"\" 81=\"\" элемент.\"=\"\" imgflow=\"http://images.firma-gamma.ru/208x208/8/2/g26397204042u.jpg\"></a><a onclick=\"detailwindow(26397204042,0,'http://images.firma-gamma.ru/100x100/4/7/g26397204042u_1.jpg');\" style=\"cursor:pointer;\"><img class=\"img imgflowpic\" src=\"http://images.firma-gamma.ru/100x100/4/7/g26397204042u_1.jpg\" style=\"margin:3px\" alt=\"\" rezark\"=\"\" rotc-002=\"\" Пазл=\"\" 3d=\"\" 22.5x17x14.5=\"\" см=\"\" 81=\"\" элемент.\"=\"\" imgflow=\"http://images.firma-gamma.ru/208x208/4/7/g26397204042u_1.jpg\"></a></div>"]
[null,"<div class=\"product-body\"><div class=\"descr\"><p>Серия детских домиков ТМ \"Rezark\" под арт.ROTC - это объемные 3D пазлы из фанеры 3 мм с нанесенным на нее принтом. Чтобы придать красочный вид модели, производитель использует специальное оборудование, которое склеивает цветную картинку с листом фанеры. Цветная печать в наших наборах высокого качества, хорошо проработана детализация рисунка даже в мелких частях модели. Серия состоит из 5-ти наборов: кухня, ванная комната, гостиная , спальня, кабинет. Все они скрепляются между собой и образуют большой загородный дом. Мебель входит в набор! Для сборки не требуется клей, все детали скрепляются соединением в пазы. Подходит для детей дошкольного возраста. В комплекте имеется подробная инструкция по сборке на русском языке, которая будет понятна и взрослому и ребенку.</p><div class=\"idcodes collapse\">ID товара:26397204042<br></div>Артикул: ROTC-002<br>Аудитория: для девочек<br>Вид: 3D<br>Количество частей: 81<br>Марка: \"REZARK\"<br>Объем единицы продажи, л: 1.243<br>Размер: 22.5x17x14.5<br>Рекомендуемый возраст: от 3 лет<br>Тематика: архитектура<br>Тип товара: Пазл<br><br><span><a href=\"/action/35/\"><img src=\"\" class=\"tip\" title=\"День моделиста\" alt=\"\"></a></span><br><br></div><br><span class=\"de_14 mrrc\">МРРЦ:<strong class=\"de_16\">1199</strong> руб/упак. Удельная м. опт. цена без скидки:<strong class=\"de_16\">600.99</strong> руб/упак. Наценка:<strong>100%</strong><img src=\"/i/tip.jpg\" class=\"tip\" title=\"Минимальная рекомендуемая розничная цена (МРРЦ) и процент наценки до МРРЦ от закупочной цены с учетом Вашей скидки. Мелкооптовая цена за розничную единицу продажи (удельная м. опт. цена) указана без учета Вашей скидки.\" alt=\"\"><br><a href=\"javascript:jaloby_mrrc('26397204042', 23435272062);\" title=\"\">Оставить отзыв о минимальной рекомендуемой розничной цене</a><p></p><br></span><span class=\"de_14\">Цена (мелкооптовая):<strong class=\"de_16\">600.99</strong> руб.  / штуку (от 1 шт  одного цвета/наименования)</span><br><br><div class=\"descr inv\"><a href=\"javascript:detailwindow(26397204042,0,'');\">Подробно</a></div><p><a href=\"javascript:jaloby1('26397204042', 23435272062);\" title=\"\">Отправить запрос о применении\\цене\\качестве товара<img src=\"/i/add-review.png\" style=\"margin-bottom:-8px;\" alt=\"Отправить запрос\"></a></p><table><thead><tr><td class=\"first\">&nbsp;</td><td class=\"idcodes collapse\">&nbsp;</td><td class=\"first\"><label for=\"add-all-2\">Добавить все наименования по</label><input class=\"form-text multiname\" type=\"number\" maxlength=\"60\" size=\"60\" value=\"\" name=\"add_all\"></td><td><a class=\"point\" onclick=\"detail_multiname_set(this);\"><img alt=\"Добавить все наименования в корзину\" src=\"/i/add-to-cart-all.gif\"></a></td></tr></thead><tbody><tr class=\"details\" id=\"det26397209422\"><td class=\"first\">ванная комната</td><td class=\"idcodes collapse\">26397209422</td><td class=\"second\"><label class=\"empty\" for=\"detail26397209422\"><span class=\"green\">(Москва) в наличии</span><input id=\"detail26397209422\" type=\"number\" name=\"detail26397209422\" value=\"\" class=\"form-text detailinput\"></label></td><td class=\"last\"><a class=\"point\" title=\"Добавить в корзину\" onclick=\"add2cart(this);\"><img src=\"/i/add-to-cart.png\" alt=\"Добавить в корзину\"></a><a href=\"javascript:jaloby3('26397204042', 23435272062 , '26397209422');\" title=\"Отправить запрос о наличии\"><img src=\"/i/add-review.png\" alt=\"Оставить отзыв о наличии\"></a></td></tr></tbody></table></div>"]
["</div>"]
["<div class=\"product-inner collapsed\" id=\"good26397168952\">"]
[null,"<div class=\"product-legend\">"]
[null,null,"<div class=\"product-price\"><span><a href=\"/action/35/\"><img src=\"\" class=\"tip\" title=\"День моделиста\" alt=\"\"></a></span>600.99 руб. </div>"]
[null,null,"<a href=\"/opengood/26397168952/#goodopen26397168952\">\"REZARK\"   ROTC-003   Пазл 3D   19x19x15 см  82 элемент.  </a>"]
[null,"</div>"]
[null,"<div class=\"image-preview\"><a onclick=\"detailwindow(26397168952,0,'http://images.firma-gamma.ru/100x100/d/e/g26397168952.jpg');\" style=\"cursor:pointer;\"><img class=\"img imgflowpic\" src=\"http://images.firma-gamma.ru/100x100/d/e/g26397168952.jpg\" style=\"margin:3px\" alt=\"\" rezark\"=\"\" rotc-003=\"\" Пазл=\"\" 3d=\"\" 19x19x15=\"\" см=\"\" 82=\"\" элемент.\"=\"\" imgflow=\"http://images.firma-gamma.ru/208x208/d/e/g26397168952.jpg\"></a><a onclick=\"detailwindow(26397168952,0,'http://images.firma-gamma.ru/100x100/e/0/g26397168952u.jpg');\" style=\"cursor:pointer;\"><img class=\"img imgflowpic\" src=\"http://images.firma-gamma.ru/100x100/e/0/g26397168952u.jpg\" style=\"margin:3px\" alt=\"\" rezark\"=\"\" rotc-003=\"\" Пазл=\"\" 3d=\"\" 19x19x15=\"\" см=\"\" 82=\"\" элемент.\"=\"\" imgflow=\"http://images.firma-gamma.ru/208x208/e/0/g26397168952u.jpg\"></a><a onclick=\"detailwindow(26397168952,0,'http://images.firma-gamma.ru/100x100/9/a/g26397168952u_1.jpg');\" style=\"cursor:pointer;\"><img class=\"img imgflowpic\" src=\"http://images.firma-gamma.ru/100x100/9/a/g26397168952u_1.jpg\" style=\"margin:3px\" alt=\"\" rezark\"=\"\" rotc-003=\"\" Пазл=\"\" 3d=\"\" 19x19x15=\"\" см=\"\" 82=\"\" элемент.\"=\"\" imgflow=\"http://images.firma-gamma.ru/208x208/9/a/g26397168952u_1.jpg\"></a></div>"]
[null,"<div class=\"product-body\"><div class=\"descr\"><p>Серия детских домиков ТМ \"Rezark\" под арт.ROTC - это объемные 3D пазлы из фанеры 3 мм с нанесенным на нее принтом. Чтобы придать красочный вид модели, производитель использует специальное оборудование, которое склеивает цветную картинку с листом фанеры. Цветная печать в наших наборах высокого качества, хорошо проработана детализация рисунка даже в мелких частях модели. Серия состоит из 5-ти наборов: кухня, ванная комната, гостиная , спальня, кабинет. Все они скрепляются между собой и образуют большой загородный дом. Мебель входит в набор! Для сборки не требуется клей, все детали скрепляются соединением в пазы. Подходит для детей дошкольного возраста. В комплекте имеется подробная инструкция по сборке на русском языке, которая будет понятна и взрослому и ребенку.</p><div class=\"idcodes collapse\">ID товара:26397168952<br></div>Артикул: ROTC-003<br>Аудитория: для девочек<br>Вид: 3D<br>Количество частей: 82<br>Марка: \"REZARK\"<br>Объем единицы продажи, л: 1.243<br>Размер: 19x19x15<br>Рекомендуемый возраст: от 3 лет<br>Тематика: архитектура<br>Тип товара: Пазл<br><br><span><a href=\"/action/35/\"><img src=\"\" class=\"tip\" title=\"День моделиста\" alt=\"\"></a></span><br><br></div><br><span class=\"de_14 mrrc\">МРРЦ:<strong class=\"de_16\">1199</strong> руб/упак. Удельная м. опт. цена без скидки:<strong class=\"de_16\">600.99</strong> руб/упак. Наценка:<strong>100%</strong><img src=\"/i/tip.jpg\" class=\"tip\" title=\"Минимальная рекомендуемая розничная цена (МРРЦ) и процент наценки до МРРЦ от закупочной цены с учетом Вашей скидки. Мелкооптовая цена за розничную единицу продажи (удельная м. опт. цена) указана без учета Вашей скидки.\" alt=\"\"><br><a href=\"javascript:jaloby_mrrc('26397168952', 23435272062);\" title=\"\">Оставить отзыв о минимальной рекомендуемой розничной цене</a><p></p><br></span><span class=\"de_14\">Цена (мелкооптовая):<strong class=\"de_16\">600.99</strong> руб.  / штуку (от 1 шт  одного цвета/наименования)</span><br><br><div class=\"descr inv\"><a href=\"javascript:detailwindow(26397168952,0,'');\">Подробно</a></div><p><a href=\"javascript:jaloby1('26397168952', 23435272062);\" title=\"\">Отправить запрос о применении\\цене\\качестве товара<img src=\"/i/add-review.png\" style=\"margin-bottom:-8px;\" alt=\"Отправить запрос\"></a></p><table><thead><tr><td class=\"first\">&nbsp;</td><td class=\"idcodes collapse\">&nbsp;</td><td class=\"first\"><label for=\"add-all-2\">Добавить все наименования по</label><input class=\"form-text multiname\" type=\"number\" maxlength=\"60\" size=\"60\" value=\"\" name=\"add_all\"></td><td><a class=\"point\" onclick=\"detail_multiname_set(this);\"><img alt=\"Добавить все наименования в корзину\" src=\"/i/add-to-cart-all.gif\"></a></td></tr></thead><tbody><tr class=\"details\" id=\"det26397170612\"><td class=\"first\">гостиная (жилой дом)</td><td class=\"idcodes collapse\">26397170612</td><td class=\"second\"><label class=\"empty\" for=\"detail26397170612\"><span class=\"green\">(Москва) в наличии</span><input id=\"detail26397170612\" type=\"number\" name=\"detail26397170612\" value=\"\" class=\"form-text detailinput\"></label></td><td class=\"last\"><a class=\"point\" title=\"Добавить в корзину\" onclick=\"add2cart(this);\"><img src=\"/i/add-to-cart.png\" alt=\"Добавить в корзину\"></a><a href=\"javascript:jaloby3('26397168952', 23435272062 , '26397170612');\" title=\"Отправить запрос о наличии\"><img src=\"/i/add-review.png\" alt=\"Оставить отзыв о наличии\"></a></td></tr></tbody></table></div>"]
["</div>"]
["<div class=\"product-inner collapsed\" id=\"good26397231392\">"]
[null,"<div class=\"product-legend\">"]
[null,null,"<div class=\"product-price\"><span><a href=\"/action/35/\"><img src=\"\" class=\"tip\" title=\"День моделиста\" alt=\"\"></a></span>600.99 руб. </div>"]
[null,null,"<a href=\"/opengood/26397231392/#goodopen26397231392\">\"REZARK\"   ROTC-004   Пазл 3D   17x14.5x19 см  104 элемент.  </a>"]
[null,"</div>"]
[null,"<div class=\"image-preview\"><a onclick=\"detailwindow(26397231392,0,'http://images.firma-gamma.ru/100x100/5/f/g26397231392.jpg');\" style=\"cursor:pointer;\"><img class=\"img imgflowpic\" src=\"http://images.firma-gamma.ru/100x100/5/f/g26397231392.jpg\" style=\"margin:3px\" alt=\"\" rezark\"=\"\" rotc-004=\"\" Пазл=\"\" 3d=\"\" 17x14.5x19=\"\" см=\"\" 104=\"\" элемент.\"=\"\" imgflow=\"http://images.firma-gamma.ru/208x208/5/f/g26397231392.jpg\"></a><a onclick=\"detailwindow(26397231392,0,'http://images.firma-gamma.ru/100x100/b/b/g26397231392u.jpg');\" style=\"cursor:pointer;\"><img class=\"img imgflowpic\" src=\"http://images.firma-gamma.ru/100x100/b/b/g26397231392u.jpg\" style=\"margin:3px\" alt=\"\" rezark\"=\"\" rotc-004=\"\" Пазл=\"\" 3d=\"\" 17x14.5x19=\"\" см=\"\" 104=\"\" элемент.\"=\"\" imgflow=\"http://images.firma-gamma.ru/208x208/b/b/g26397231392u.jpg\"></a><a onclick=\"detailwindow(26397231392,0,'http://images.firma-gamma.ru/100x100/9/a/g26397231392u_1.jpg');\" style=\"cursor:pointer;\"><img class=\"img imgflowpic\" src=\"http://images.firma-gamma.ru/100x100/9/a/g26397231392u_1.jpg\" style=\"margin:3px\" alt=\"\" rezark\"=\"\" rotc-004=\"\" Пазл=\"\" 3d=\"\" 17x14.5x19=\"\" см=\"\" 104=\"\" элемент.\"=\"\" imgflow=\"http://images.firma-gamma.ru/208x208/9/a/g26397231392u_1.jpg\"></a></div>"]
[null,"<div class=\"product-body\"><div class=\"descr\"><p>Серия детских домиков ТМ \"Rezark\" под арт.ROTC - это объемные 3D пазлы из фанеры 3 мм с нанесенным на нее принтом. Чтобы придать красочный вид модели, производитель использует специальное оборудование, которое склеивает цветную картинку с листом фанеры. Цветная печать в наших наборах высокого качества, хорошо проработана детализация рисунка даже в мелких частях модели. Серия состоит из 5-ти наборов: кухня, ванная комната, гостиная , спальня, кабинет. Все они скрепляются между собой и образуют большой загородный дом. Мебель входит в набор! Для сборки не требуется клей, все детали скрепляются соединением в пазы. Подходит для детей дошкольного возраста. В комплекте имеется подробная инструкция по сборке на русском языке, которая будет понятна и взрослому и ребенку.</p><div class=\"idcodes collapse\">ID товара:26397231392<br></div>Артикул: ROTC-004<br>Аудитория: для девочек<br>Вид: 3D<br>Количество частей: 104<br>Марка: \"REZARK\"<br>Объем единицы продажи, л: 1.243<br>Размер: 17x14.5x19<br>Рекомендуемый возраст: от 3 лет<br>Тематика: архитектура<br>Тип товара: Пазл<br><br><span><a href=\"/action/35/\"><img src=\"\" class=\"tip\" title=\"День моделиста\" alt=\"\"></a></span><br><br></div><br><span class=\"de_14 mrrc\">МРРЦ:<strong class=\"de_16\">1199</strong> руб/упак. Удельная м. опт. цена без скидки:<strong class=\"de_16\">600.99</strong> руб/упак. Наценка:<strong>100%</strong><img src=\"/i/tip.jpg\" class=\"tip\" title=\"Минимальная рекомендуемая розничная цена (МРРЦ) и процент наценки до МРРЦ от закупочной цены с учетом Вашей скидки. Мелкооптовая цена за розничную единицу продажи (удельная м. опт. цена) указана без учета Вашей скидки.\" alt=\"\"><br><a href=\"javascript:jaloby_mrrc('26397231392', 23435272062);\" title=\"\">Оставить отзыв о минимальной рекомендуемой розничной цене</a><p></p><br></span><span class=\"de_14\">Цена (мелкооптовая):<strong class=\"de_16\">600.99</strong> руб.  / штуку (от 1 шт  одного цвета/наименования)</span><br><br><div class=\"descr inv\"><a href=\"javascript:detailwindow(26397231392,0,'');\">Подробно</a></div><p><a href=\"javascript:jaloby1('26397231392', 23435272062);\" title=\"\">Отправить запрос о применении\\цене\\качестве товара<img src=\"/i/add-review.png\" style=\"margin-bottom:-8px;\" alt=\"Отправить запрос\"></a></p><table><thead><tr><td class=\"first\">&nbsp;</td><td class=\"idcodes collapse\">&nbsp;</td><td class=\"first\"><label for=\"add-all-2\">Добавить все наименования по</label><input class=\"form-text multiname\" type=\"number\" maxlength=\"60\" size=\"60\" value=\"\" name=\"add_all\"></td><td><a class=\"point\" onclick=\"detail_multiname_set(this);\"><img alt=\"Добавить все наименования в корзину\" src=\"/i/add-to-cart-all.gif\"></a></td></tr></thead><tbody><tr class=\"details\" id=\"det26397235342\"><td class=\"first\">спальня</td><td class=\"idcodes collapse\">26397235342</td><td class=\"second\"><label class=\"empty\" for=\"detail26397235342\"><span class=\"green\">(Москва) в наличии</span><input id=\"detail26397235342\" type=\"number\" name=\"detail26397235342\" value=\"\" class=\"form-text detailinput\"></label></td><td class=\"last\"><a class=\"point\" title=\"Добавить в корзину\" onclick=\"add2cart(this);\"><img src=\"/i/add-to-cart.png\" alt=\"Добавить в корзину\"></a><a href=\"javascript:jaloby3('26397231392', 23435272062 , '26397235342');\" title=\"Отправить запрос о наличии\"><img src=\"/i/add-review.png\" alt=\"Оставить отзыв о наличии\"></a></td></tr></tbody></table></div>"]
["</div>"]
["<div class=\"product-inner collapsed\" id=\"good26645029652\">"]
[null,"<div class=\"product-legend\">"]
[null,null,"<div class=\"product-price\"><span><a href=\"/action/35/\"><img src=\"\" class=\"tip\" title=\"День моделиста\" alt=\"\"></a></span>600.99 руб. </div>"]
[null,null,"<a href=\"/opengood/26645029652/#goodopen26645029652\">\"REZARK\"   ROTC-005   Пазл 3D   20x21x11 см  70 элемент.  </a>"]
[null,"</div>"]
[null,"<div class=\"image-preview\"><a onclick=\"detailwindow(26645029652,0,'http://images.firma-gamma.ru/100x100/d/c/g26645029652.jpg');\" style=\"cursor:pointer;\"><img class=\"img imgflowpic\" src=\"http://images.firma-gamma.ru/100x100/d/c/g26645029652.jpg\" style=\"margin:3px\" alt=\"\" rezark\"=\"\" rotc-005=\"\" Пазл=\"\" 3d=\"\" 20x21x11=\"\" см=\"\" 70=\"\" элемент.\"=\"\" imgflow=\"http://images.firma-gamma.ru/208x208/d/c/g26645029652.jpg\"></a><a onclick=\"detailwindow(26645029652,0,'http://images.firma-gamma.ru/100x100/8/f/g26645029652u.jpg');\" style=\"cursor:pointer;\"><img class=\"img imgflowpic\" src=\"http://images.firma-gamma.ru/100x100/8/f/g26645029652u.jpg\" style=\"margin:3px\" alt=\"\" rezark\"=\"\" rotc-005=\"\" Пазл=\"\" 3d=\"\" 20x21x11=\"\" см=\"\" 70=\"\" элемент.\"=\"\" imgflow=\"http://images.firma-gamma.ru/208x208/8/f/g26645029652u.jpg\"></a><a onclick=\"detailwindow(26645029652,0,'http://images.firma-gamma.ru/100x100/3/e/g26645029652u_1.jpg');\" style=\"cursor:pointer;\"><img class=\"img imgflowpic\" src=\"http://images.firma-gamma.ru/100x100/3/e/g26645029652u_1.jpg\" style=\"margin:3px\" alt=\"\" rezark\"=\"\" rotc-005=\"\" Пазл=\"\" 3d=\"\" 20x21x11=\"\" см=\"\" 70=\"\" элемент.\"=\"\" imgflow=\"http://images.firma-gamma.ru/208x208/3/e/g26645029652u_1.jpg\"></a></div>"]
[null,"<div class=\"product-body\"><div class=\"descr\"><p>Серия детских домиков ТМ \"Rezark\" под арт.ROTC - это объемные 3D пазлы из фанеры 3 мм с нанесенным на нее принтом. Чтобы придать красочный вид модели, производитель использует специальное оборудование, которое склеивает цветную картинку с листом фанеры. Цветная печать в наших наборах высокого качества, хорошо проработана детализация рисунка даже в мелких частях модели. Серия состоит из 5-ти наборов: кухня, ванная комната, гостиная , спальня, кабинет. Все они скрепляются между собой и образуют большой загородный дом. Мебель входит в набор! Для сборки не требуется клей, все детали скрепляются соединением в пазы. Подходит для детей дошкольного возраста. В комплекте имеется подробная инструкция по сборке на русском языке, которая будет понятна и взрослому и ребенку.</p><div class=\"idcodes collapse\">ID товара:26645029652<br></div>Артикул: ROTC-005<br>Аудитория: для девочек<br>Вид: 3D<br>Количество частей: 70<br>Марка: \"REZARK\"<br>Объем единицы продажи, л: 1.243<br>Размер: 20x21x11<br>Рекомендуемый возраст: от 3 лет<br>Тематика: архитектура<br>Тип товара: Пазл<br><br><span><a href=\"/action/35/\"><img src=\"\" class=\"tip\" title=\"День моделиста\" alt=\"\"></a></span><br><br></div><br><span class=\"de_14 mrrc\">МРРЦ:<strong class=\"de_16\">1199</strong> руб/упак. Удельная м. опт. цена без скидки:<strong class=\"de_16\">600.99</strong> руб/упак. Наценка:<strong>100%</strong><img src=\"/i/tip.jpg\" class=\"tip\" title=\"Минимальная рекомендуемая розничная цена (МРРЦ) и процент наценки до МРРЦ от закупочной цены с учетом Вашей скидки. Мелкооптовая цена за розничную единицу продажи (удельная м. опт. цена) указана без учета Вашей скидки.\" alt=\"\"><br><a href=\"javascript:jaloby_mrrc('26645029652', 23435272062);\" title=\"\">Оставить отзыв о минимальной рекомендуемой розничной цене</a><p></p><br></span><span class=\"de_14\">Цена (мелкооптовая):<strong class=\"de_16\">600.99</strong> руб.  / штуку (от 1 шт  одного цвета/наименования)</span><br><br><div class=\"descr inv\"><a href=\"javascript:detailwindow(26645029652,0,'');\">Подробно</a></div><p><a href=\"javascript:jaloby1('26645029652', 23435272062);\" title=\"\">Отправить запрос о применении\\цене\\качестве товара<img src=\"/i/add-review.png\" style=\"margin-bottom:-8px;\" alt=\"Отправить запрос\"></a></p><table><thead><tr><td class=\"first\">&nbsp;</td><td class=\"idcodes collapse\">&nbsp;</td><td class=\"first\"><label for=\"add-all-2\">Добавить все наименования по</label><input class=\"form-text multiname\" type=\"number\" maxlength=\"60\" size=\"60\" value=\"\" name=\"add_all\"></td><td><a class=\"point\" onclick=\"detail_multiname_set(this);\"><img alt=\"Добавить все наименования в корзину\" src=\"/i/add-to-cart-all.gif\"></a></td></tr></thead><tbody><tr class=\"details\" id=\"det26645031442\"><td class=\"first\">кабинет</td><td class=\"idcodes collapse\">26645031442</td><td class=\"second\"><label class=\"empty\" for=\"detail26645031442\"><span class=\"green\">(Москва) в наличии</span><input id=\"detail26645031442\" type=\"number\" name=\"detail26645031442\" value=\"\" class=\"form-text detailinput\"></label></td><td class=\"last\"><a class=\"point\" title=\"Добавить в корзину\" onclick=\"add2cart(this);\"><img src=\"/i/add-to-cart.png\" alt=\"Добавить в корзину\"></a><a href=\"javascript:jaloby3('26645029652', 23435272062 , '26645031442');\" title=\"Отправить запрос о наличии\"><img src=\"/i/add-review.png\" alt=\"Оставить отзыв о наличии\"></a></td></tr></tbody></table></div>"]
["</div>"]
["</div><script src=\"/jscripts/images.js\"></script>        "]
[]
["</div></div></div></div>"]
[]
["<div id=\"cart_change\" class=\"SplashScr\"><div class=\"SplashScrInnerCont\"><div class=\"SplashScrCont2\">"]
[null,null,null,"<p><strong>Внимание!</strong></p><p>У некоторых товаров Вы изменили количество, но не сохранили"]
["изменения в корзине. Сохранить изменения в заказе?</p>"]
[null,null,null,"<p>[ <a href=\"javascript:go_2_cart_end(1);javascript:showloading();\">Сохранить</a> ] [ <a href=\"javascript:go_2_cart_end(0);javascript:showloading();\">Не сохранять</a> ] [ <a href=\"javascript:$('#cart_change').hide();\">Отменить</a> ]</p>"]
["        </div>"]
["</div></div>"]
[]
["<div id=\"idSplashScreen27\" class=\"SplashScr\"><div class=\"SplashScrInnerCont\"><div class=\"SplashScrCont2\">"]
[null,null,null,"<p><strong>Внимание!!!</strong></p><p>У некоторых товаров Вы изменили количество, но не сохранили"]
["изменения в корзине. Сохранить изменения в заказе?</p>"]
[null,null,null,"<p>[ <a href=\"javascript:sort_ask_yes();\">Сохранить</a> ] [ <a href=\"javascript:sort_ask_no();\">Не сохранять</a> ] [ <a href=\"javascript:sort_ask_cancel();\">Отменить</a> ]</p>"]
["        </div>"]
["</div></div>"]
[]
["<div id=\"ClearCart\" class=\"SplashScr\"><div class=\"SplashScrInnerCont\"><div class=\"SplashScrCont2\">"]
[null,null,null,"<p><strong>Очистить корзину?</strong></p>"]
[null,null,null,"<p>Внимание! Очистка корзины вызывает удаление товара из Вашего заказа.</p>"]
[null,null,null,"<p>[ <a href=\"javascript:go_2_clearcart_end();\">Очистить корзину</a> ] [ <a href=\"javascript:$('#ClearCart').hide();\">Отменить</a> ]</p>"]
["        </div>"]
["</div></div>"]
[]
["<div id=\"addtocart\" class=\"SplashScr\"><div class=\"SplashScrInnerCont\"><div class=\"SplashScrCont2\">"]
["<img src=\"/i/ajax-loader.gif\" style=\"padding-bottom:10px\"><h1>Добавление в корзину...</h1></div>"]
["</div></div>"]
[]
["<div id=\"idCartFull\" class=\"SplashScr\"><div class=\"SplashScrInnerCont\"><div class=\"SplashScrCont2 style=\" height:350px;\"=\"\">"]
[null,null,null,"<h1>Уважаемый покупатель!</h1><p>Вы добавили более 900 наименований в корзину. Пожалуйста, отправьте"]
["заказ чтобы товар по нему был зарезервирован за Вами. Если будет дозаказ, в поле Прочая информация допишите: \"будет дозаказ\" чтобы скидка"]
["по всем заказам считалась с общей суммы покупки.</p><p><a onclick=\"$('#idCartFull').hide();\" style=\"cursor:pointer;\">Закрыть сообщение</a></p>"]
["</div></div></div>"]
[]
[]
[]
["<div id=\"idSplashScreen35\" class=\"SplashScr\"><div class=\"SplashScrInnerCont\" style=\"margin-top:-100px;\">"]
["        <div class=\"SplashScrCont2\" style=\"height:190px;width:220px;\">"]
[null,null,"<div style=\"text-align:right;width:220px;\">[ <a href=\"javascript:entre_close();\">Закрыть форму</a> ]</div>"]
[null,null,"<br><h1>Вход для филиалов</h1><form action=\"\" method=\"post\" name=\"form3\" id=\"form3\" onsubmit=\"return checkform2(this)\">"]
[null,null,"</form>"]
["</div></div></div>"]
["<div id=\"loading\" class=\"SplashScr\" style=\"z-index: 500; display: none;\"><div class=\"SplashScrInnerCont\">"]
["<div class=\"SplashScrCont2\" style=\"width:70px;left:150px;\"><h1>Загрузка...</h1><img src=\"/i/35-0.gif\"></div></div></div>"]
["<div id=\"group_jaloba\" class=\"SplashScr\"><div class=\"SplashScrInnerCont\">"]
["        <div class=\"SplashScrCont2\">"]
[null,null,"<form action=\"\" method=\"post\" name=\"form2\" id=\"form2\"></form>"]
["</div></div></div>"]
["<div id=\"group_jaloba_end\" class=\"SplashScr\"><div class=\"SplashScrInnerCont\" style=\"margin-top:-100px;\">"]
["        <div class=\"SplashScrCont2\" style=\"height:140px;width:220px;\">"]
[null,null,"<div style=\"text-align:right;width:220px;\">[ <a href=\"javascript:$('#group_jaloba_end').hide();\">Закрыть форму</a> ]</div>"]
[null,null,null,"<p style=\"margin-top:40px;\">Спасибо за отзыв!<br> Ответ на отзыв поступит на указанный Вами е-мейл в течение 3-х рабочих дней.</p>"]
["</div></div></div>"]
["<div id=\"single_jaloba\" class=\"SplashScr\"><div class=\"SplashScrInnerCont\">"]
["        <div class=\"SplashScrCont2\">"]
[null,null,"<form name=\"form33\" id=\"form33\"></form>"]
["</div></div></div>"]
["<div id=\"good_container\" class=\"MainContScreen\" style=\"display:none;\">"]
[null,"<div id=\"good_spec_container\" class=\"MainSpecContScreen\">"]
[null,null,"<div id=\"good_subcontainer\" class=\"MainSubContScreen\">"]
[null,null,"<div style=\"\" class=\"testclass\"></div>"]
["</div></div></div>"]
["<div class=\"hint_cont\" style=\"display:none;\"><div class=\"hint_pointer\"></div><div class=\"hint_text\">Не заполнено количество. Товар НЕ ДОБАВЛЕН.</div></div>"]
["<div id=\"viewphoto\" style=\"display: none; border: 0px; margin-left: 230px; width: 200px; height: auto; z-index: 1000; position: fixed; left: 0px; top: 10px;\"><img src=\"http://images.firma-gamma.ru/208x208/6/8/g23840183702.jpg\" width=\"264.5751311064591\" ;=\"\"></div>"]
["    <div id=\"chat\" style=\"left: 521px;\"><div class=\"clearfix\">"]
["        <div id=\"open-chat\">Чат (<b style=\"color:red\">нет операторов</b>)</div>"]
["      </div></div>"]
["<div id=\"cart_container\" class=\"MainContScreen\" style=\"display:none;\">"]
[null,"<div id=\"good_spec_container\" class=\"MainSpecContScreen\">"]
[null,null,"<div id=\"good_subcontainer\" class=\"MainSubContScreen\">"]
[null,null,"<div style=\"\" class=\"testclass\">",null,"<div class=\"closed_g\"><input type=\"hidden\" id=\"good_id\" value=\"#good32526\"> <a href=\"javascript: if(detailclose)$('#good_container').hide();\" class=\"buttons\"><span class=\"but_closed\"></span></a> </div>"]

{"sheet":"Лист2","index":1,"n_rows":0,"n_cols":0,"rows_kept":0,"cut":false,"hidden":false,"merged":[]}

{"sheet":"Лист3","index":2,"n_rows":0,"n_cols":0,"rows_kept":0,"cut":false,"hidden":false,"merged":[]}